{"text_format":"1","workbook":"xlsx","n_sheets":3,"sheets":["ورقة1","العاملين ","الاستمارة "],"not_rendered":{"charts":0,"images":0,"macros":0,"external_links":0,"defined_names":3,"comments":3,"pivot_tables":0},"unopened":[],"bounds":{"document_bytes":16777216,"sheet_cells":100000,"rows_first":2000,"rows_last":500,"rows_between":2000,"halvings":0,"cell_chars":16384,"cell_head_chars":4096},"cells_cut":0,"cells_raw":0,"read":"whole","date_system":"1900"}

{"sheet":"ورقة1","index":0,"n_rows":9,"n_cols":12,"rows_kept":9,"cut":false,"hidden":false,"merged":[[5,0,5,1],[6,0,6,1],[6,11,7,20],[7,0,7,1],[0,0,0,1],[1,0,1,1],[1,11,4,13],[2,0,2,1],[3,0,3,1],[4,0,4,1]]}
["إدارة ",null,"الشهداء التعليمية","بيانات العاملين "]
["مدرسة ",null,"السوالمية","الاستمارة ",null,null,null,null,null,null,null,"صمم هذا البرنامج اخوكم فى الله أ/محمد محمد عبد الله عبد الصمد رئيس قسم التدريب بادارة الشهداء نسألكم الدعاء بظاهرالغيب"]
["شهر ",null,"مارس 2018","خلف الاستمارة "]
["مدير المدرسة",null,"محمد","فردية "]
["سنة ",null,2018,"خلف فردية "]
["مسئول المرتبات",null,"محمد"]
[null,null,null,null,null,null,null,null,null,null,null,"يجب توزيع عدد العاملين على مجموعة من الكشوف بواقع 25 عامل للكشف على أن يكون كشف التجميعه من ضمن الكشوف فمثلا 50 عامل توزع 25كشف 1 و23 للكشف 2 وعدد 2عامل لكشف التجميعة ،خانة التوقيع بالاستلام اكتب فيها رقم العامل الموجودفى البيانات ، تأكد من عدم وجود بيانات فى الكشوف الغير مستعمله وذلكبالذهاب للكشف والضغطعلى مفتاحمسح البيانات فى يسار الكشف"]
[]
[null,null,null,null,null,null,null,null,null,null,"aya6672"]

{"sheet":"العاملين ","index":1,"n_rows":463,"n_cols":143,"rows_kept":463,"cut":false,"hidden":false,"merged":[[0,41,0,45],[0,63,0,72],[1,0,2,0],[1,1,2,1],[1,2,2,2],[1,3,2,3],[1,4,2,4],[1,5,2,5],[1,7,2,7],[1,13,2,13],[1,14,2,14],[1,15,2,15],[1,16,2,16],[0,7,0,10],[1,8,2,8],[1,9,2,9],[1,10,2,10],[1,11,2,11],[1,12,2,12],[1,17,2,17],[1,18,2,18],[1,31,2,31],[1,20,2,20],[1,21,2,21],[1,22,2,22],[1,23,2,23],[1,24,2,24],[1,25,2,25],[1,26,2,26],[1,19,2,19],[1,27,2,27],[1,28,2,28],[1,29,2,29],[1,30,2,30],[1,32,2,32],[1,33,2,33],[1,34,2,34],[1,35,2,35],[1,36,2,36],[1,57,2,57],[1,58,2,58],[1,59,2,59],[1,60,2,60],[1,37,2,37],[1,38,2,38],[1,39,2,39],[1,40,2,40],[1,41,2,41],[1,42,2,42],[1,44,1,47],[1,49,2,49],[1,50,2,50],[1,51,2,51],[1,52,1,56],[1,43,2,43],[1,61,2,61],[1,62,2,62],[1,82,2,82],[4,75,4,77],[6,75,6,77],[1,64,2,64],[1,65,2,65],[1,66,2,66],[1,67,2,67],[1,68,2,68],[1,63,2,63],[1,69,2,69],[9,75,9,77],[10,75,10,77],[1,70,2,70],[1,71,2,71],[1,72,2,72]]}
[null,null,null,null,null,null,null,"استحقاقات",null,null,null,null,null,null,null,null,null,null,null,null,null,null,null,null,null,null,null,null,null,null,null,null,null,null,null,null,null,null,null,null,null,"استقطاعات",null,null,null,null,null,null,null,null,null,null,null,null,null,null,null,null,null,null,null,null,null,"الخلايا الحمراء لا تدخل بها بيانات فهى تحسب نفسها"]
["م","الاســــــــــــم ","نقابي","نقابى /غيرنقابى","الحالة الاجتماعية","اكتب 1 للحاصل على ال 33%",null,"الوظيفة","المرتب الذى يحسب عليه الكادر","المرتب الاساسي ","علاوة  2012 ","علاوة   2013","علاوة  2014  ","علاةة   2015 ","علاوة   2016 ","ع اجتماعية","ع اجتماعيةاضافية","أعباء وظيفية","بدل نظارة","حافز مدير","بدل تفرغ","بدل تجاريين","بدل عدوي","حافز ماجستير","حافزدكتوراة","بدل تسكين","الحدالادنى","اكتب ما تشاء","اكتب ما تشاء","اكتب ما تشاء","اكتب ما تشاء","اكتب ما تشاء","اكتب ما تشاء","اكتب ما تشاء","اكتب ما تشاء","نقابة اجتماعية","نقابة تطبيقين ","رابطه","ضريبة الدخل ","دمغة عادية   ","دمغة نسبيه  ","أرباب عهد","خدمات عمالية","نقابة بحث علمى 5%","اقساط بنوك",null,null,null,null,"نصف العلاوة","ايرادات تربيةوتعليم","انقطاع ","للحالات خاصة فقط",null,null,null,null,"اكتب ماتشاء","اكتب ماتشاء","اكتب ماتشاء","اكتب ماتشاء","اكتب ماتشاء","اكتب ماتشاء","منحة","بدل معلم اضافى","بدل معلم ","بدل اعتماد ","حافز 25 %","حافز أداء ","الـ91.5","ال50%","ال 33%","الحد الادنى",null,null,null,null,null,null,null,null,null,"الوظيفة "]
[null,null,null,null,null,null,"الرقم القومى",null,null,null,null,null,null,null,null,null,null,null,null,null,null,null,null,null,null,null,null,null,null,null,null,null,null,null,null,null,null,null,null,null,null,null,null,null,"ناصر","القاهرة","الاهلى","اكتب ما تشاء","اكتب اسم البنك",null,null,null,"زمالة","جماعى","نقابة ","نادى المحافطة ","نادى الادارة",null,null,null,null,null,null,null,null,null,null,null,null,null,null,null,null,null,null,null,null,null,null,null,null,null,null,null,null,"حافز 25%","حافزأداء"]
[1,"محمد1",{"$f":"IF(D4=\"نقابى\",1,IF(D4=\"حالة خاصة\",2,0))","v":1},"نقابى","متزوج+2",0,null,"معلم",666.98,1000,null,62.23,62.73,66.69,null,4,{"$f":"IF(E4=\"متزوج\",2,IF(E4=\"متزوج+1\",4,IF(E4=\"متزوج+2\",6,IF(E4=\"متزوجة\",2,0))))","v":6},350,null,null,null,null," ",null,null,null,{"$f":"BU4","v":0},null,null,null,null,null,null,null,null,null,4,1,7.25,15.45,null,null,0,null,null,null,null,null,"khwv",null,null," ",5,5,5,5,5,null,null,null,null,null,null,{"$f":"IF(H4=\"معلم مساعد\",10,IF(H4=\"معلم تعاقد\",10,IF(H4=\"معلم\",10,IF(H4=\"معلم أول\",10,IF(H4=\"معلم أول أ\",10,IF(H4=\"خبير\",10,IF(H4=\"كبير\",10,IF(H4=\"عامل تعاقد\",0,\"\"))))))))","v":10},{"$f":"IF(H4=\"معلم مساعد\",I4*0/100,IF(H4=\"معلم تعاقد\",I4*0/100,IF(H4=\"معلم\",I4*50/100,IF(H4=\"معلم أول\",I4*50/100,IF(H4=\"معلم أول أ\",I4*50/100,IF(H4=\"خبير\",I4*50/100,IF(H4=\"كبير\",I4*50/100,)))))))","v":333.49},{"$f":"IF(H4=\"معلم مساعد\",I4*50/100,IF(H4=\"عامل تعاقد\",I4*0/100,IF(H4=\"معلم\",I4*50/100,IF(H4=\"معلم أول\",I4*50/100,IF(H4=\"معلم أول أ\",I4*50/100,IF(H4=\"خبير\",I4*50/100,IF(H4=\"كبير\",I4*50/100,)))))))","v":333.49},{"$f":"IF(H4=\"إدارى\",I4*0,IF(H4=\"معلم مساعد\",I4*0/100,IF(H4=\"معلم\",I4*50/100,IF(H4=\"معلم أول\",I4*75/100,IF(H4=\"معلم أول أ\",I4*100/100,IF(H4=\"خبير\",I4*125/100,IF(H4=\"كبير\",I4*150/100,)))))))","v":333.49},{"$f":"INT(IF(H4=\"عامل تعاقد\",I4*25/100,IF(H4=\"معلم مساعد\",I4*25/100,IF(H4=\"معلم\",I4*25/100,IF(H4=\"معلم أول\",I4*25/100,IF(H4=\"معلم أول أ\",I4*25/100,IF(H4=\"خبير\",I4*25/100,IF(H4=\"كبير\",I4*25/100,))))))))","v":166},{"$f":"INT(IF(H4=\"إدارى\",J4*0/100,IF(H4=\"معلم مساعد\",I4*125/100,IF(H4=\"معلم\",I4*75/100,IF(H4=\"معلم أول\",I4*50/100,IF(H4=\"معلم أول أ\",I4*25/100,IF(H4=\"خبير\",I4*25/100,IF(H4=\"كبير\",I4*25/100,))))))))","v":500},{"$f":"INT(IF(H4=\"عامل تعاقد\",I4*0.9166,IF(H4=\"معلم تعاقد\",I4*0.9166,0)))","v":0},{"$f":"INT(IF(H4=\"عامل تعاقد\",I4*0.5,IF(H4=\"معلم تعاقد\",I4*0.5,0)))","v":0},{"$f":"INT(IF(F4=1,I4*0.3333,0))","v":0},{"$f":"IF(H4=\"عامل تعاقد\",225,IF(H4=\"معلم تعاقد\",300,0))","v":0},null,null,null,null,null,null,{"$f":"IF($B4>0,(SUM(R4:AD4)-50),0)","v":300},{"$f":"IF(CB4<250,(CB4*0.006),IF(CB4<500,(CB4*0.0065),IF(CB4<1000,(CB4*0.007),IF(CB4<5000,(CB4*0.0075),IF(CB4>5000,(CB4*0.008),\" \" )))))","v":1.95},{"$f":"CEILING($CC4,0.05)","v":1.9500000000000002},"كبير",null,null,null,{"$f":"#VALUE!","v":{"$error":"#VALUE!"}}]
[2,"محمد2",1,"نقابى","متزوجة",0,null,"معلم أول أ",566.52,938.62,null,52.79,53.29,56.69,null,4,{"$f":"IF(E5=\"متزوج\",2,IF(E5=\"متزوج+1\",4,IF(E5=\"متزوج+2\",6,IF(E5=\"متزوجة\",2,0))))","v":2},null,null,null,null,null,null,null,null,null,{"$f":"BU5","v":0},null,null,null,null,null,null,null,null,null,null,1,26.73,14.95,null,null,null,null,null,null,null,null,null,null,4,null,null,null,null,null,null,null," ",null,null,null,null,{"$f":"IF(H5=\"معلم مساعد\",10,IF(H5=\"معلم تعاقد\",10,IF(H5=\"معلم\",10,IF(H5=\"معلم أول\",10,IF(H5=\"معلم أول أ\",10,IF(H5=\"خبير\",10,IF(H5=\"كبير\",10,IF(H5=\"عامل تعاقد\",0,\"\"))))))))","v":10},{"$f":"IF(H5=\"عقد مميز\",I5*0/100,IF(H5=\"معلم تعاقد\",I5*0/100,IF(H5=\"معلم\",I5*50/100,IF(H5=\"معلم أول\",I5*50/100,IF(H5=\"معلم أول أ\",I5*50/100,IF(H5=\"خبير\",I5*50/100,IF(H5=\"كبير\",I5*50/100,)))))))","v":283.26},{"$f":"IF(H5=\"معلم مساعد\",I5*50/100,IF(H5=\"عامل تعاقد\",I5*0/100,IF(H5=\"معلم\",I5*50/100,IF(H5=\"معلم أول\",I5*50/100,IF(H5=\"معلم أول أ\",I5*50/100,IF(H5=\"خبير\",I5*50/100,IF(H5=\"كبير\",I5*50/100,)))))))","v":283.26},{"$f":"IF(H5=\"إدارى\",I5*0,IF(H5=\"معلم مساعد\",I5*0/100,IF(H5=\"معلم\",I5*50/100,IF(H5=\"معلم أول\",I5*75/100,IF(H5=\"معلم أول أ\",I5*100/100,IF(H5=\"خبير\",I5*125/100,IF(H5=\"كبير\",I5*150/100,)))))))","v":566.52},{"$f":"INT(IF(H5=\"عامل تعاقد\",I5*25/100,IF(H5=\"معلم مساعد\",I5*25/100,IF(H5=\"معلم\",I5*25/100,IF(H5=\"معلم أول\",I5*25/100,IF(H5=\"معلم أول أ\",I5*25/100,IF(H5=\"خبير\",I5*25/100,IF(H5=\"كبير\",I5*25/100,))))))))","v":141},{"$f":"INT(IF(H5=\"إدارى\",J5*0/100,IF(H5=\"معلم مساعد\",I5*125/100,IF(H5=\"معلم\",I5*75/100,IF(H5=\"معلم أول\",I5*50/100,IF(H5=\"معلم أول أ\",I5*25/100,IF(H5=\"خبير\",I5*25/100,IF(H5=\"كبير\",I5*25/100,))))))))","v":141},{"$f":"INT(IF(H5=\"عامل تعاقد\",I5*0.9166,IF(H5=\"معلم تعاقد\",I5*0.9166,0)))","v":0},{"$f":"INT(IF(H5=\"عامل تعاقد\",I5*0.5,IF(H5=\"معلم تعاقد\",I5*0.5,0)))","v":0},{"$f":"INT(IF(F5=1,I5*0.3333,0))","v":0},{"$f":"IF(H5=\"عامل تعاقد\",225,IF(H5=\"معلم تعاقد\",300,0))","v":0},null,null,"الحد الاقصي للمتغيرات فى الشهر",null,null,2800,-50,-0.3,-0.30000000000000004,"خبير",null,null,{"$f":"#VALUE!","v":{"$error":"#VALUE!"}},{"$f":"#VALUE!","v":{"$error":"#VALUE!"}}]
[3,"محمد3",1,"نقابى","متزوج+2",0,null,"معلم",566.52,938.62,null,52.79,53.29,56.69,null,4,6,null,null,null,null,null,null,null,null,null,0,null,null,null,null,null,null,null,null,null,null,1,26.73,14.95,null,null,null,null,null,null,null,null,null,null,4,null,null,null,null,null,null,null," ",null,null,null,null,10,{"$f":"IF(H6=\"عقد مميز\",I6*0/100,IF(H6=\"معلم تعاقد\",I6*0/100,IF(H6=\"معلم\",I6*50/100,IF(H6=\"معلم أول\",I6*50/100,IF(H6=\"معلم أول أ\",I6*50/100,IF(H6=\"خبير\",I6*50/100,IF(H6=\"كبير\",I6*50/100,)))))))","v":283.26},283.26,283.26,141,424,0,0,0,0,null,null,null,null,null,null,-50,-0.3,-0.30000000000000004,"معلم أول أ",null,null,{"$f":"#VALUE!","v":{"$error":"#VALUE!"}},{"$f":"#VALUE!","v":{"$error":"#VALUE!"}},null,null,null,null,null,null,null,null,null,null,null,null,null,null,null,null,null,null,null,null,null,null,null,null,null,null,null,null,null,null,null,null,null,null,null,null,null,null,null,null,null,null,null,null,null,null,null,null,null,null,null,null,null,null,null,"معلم"]
[4,"محمد4",1,"نقابى","متزوج+2",0,null,"معلم أول",511.02,854.21,null,47.01,47.51,51.1,null,4,6,null,null,null,null,null,null,null,null,null,0,null,null,null,null,null,null,null,null,null,null,1,22.26,13.75,null,null,null,null,null,null,null,null,null,null,null,null,null,null,null,null,null,null,null,null,null,null,null,10,255.51,255.51,383.26499999999999,127,255,0,0,0,0,null,null,"الحد الاقصي للمتغيرات  فى السنة",null,null,{"$f":"CA5*12","v":33600},-50,-0.3,-0.30000000000000004,"معلم أول",null,null,{"$f":"#VALUE!","v":{"$error":"#VALUE!"}},{"$f":"#VALUE!","v":{"$error":"#VALUE!"}},null,null,null,"نقابى",null,null,null,null,null,null,null,null,null,null,null,null,null,null,null,null,null,null,null,null,null,null,null,null,null,null,null,null,null,null,null,null,null,null,null,null,null,null,null,null,null,null,null,null,null,null,null,null,null,null,null,"معلم اول"]
[5,"محمد5",1,"نقابى","متزوج+2",0,null,"معلم أول",536.12,891.32,null,49.89,50.39,53.61,null,4,6,null,null,null,null,null,null,null,null,null,0,null,null,null,null,null,null,null,null,null,null,1,19.72,14.35,null,null,null,null,null,null,null,null,null,null,null,null,null,null,null,null,null,null,null,null,null,null,null,10,268.06,268.06,402.09,134,268,0,0,0,0,null,null,null,null,null,null,-50,-0.3,-0.30000000000000004,"معلم",null,null,{"$f":"#VALUE!","v":{"$error":"#VALUE!"}},{"$f":"#VALUE!","v":{"$error":"#VALUE!"}},null,null,null,"غير نقابى",null,null,null,null,null,null,null,null,null,null,null,null,null,null,null,null,null,null,null,null,null,null,null,null,null,null,null,null,null,null,null,null,null,null,null,null,null,null,null,null,null,null,null,null,null,null,null,null,null,null,null,"معلم اول ا"]
[6,"محمد6",1,"نقابى","متزوجة",0,null,"معلم أول",559.4,926.45,null,52.08,52.58,55.94,null,4,2,null,null,null,null,null,null,null,null,null,0,null,null,null,null,null,null,null,null,null,null,1,23.63,14.55,null,null,null,null,null,null,null,null,null,null,null,null,null,null,null,null,null,null,null,null,null,null,null,10,279.7,279.7,419.55,139,279,0,0,0,0,null,null,null,null,null,null,-50,-0.3,-0.30000000000000004,"معلم مساعد",null,null,{"$f":"#VALUE!","v":{"$error":"#VALUE!"}},{"$f":"#VALUE!","v":{"$error":"#VALUE!"}},null,null,null,"حالة خاصة",null,null,null,null,null,null,null,null,null,null,null,null,null,null,null,null,null,null,null,null,null,null,null,null,null,null,null,null,null,null,null,null,null,null,null,null,null,null,null,null,null,null,null,null,null,null,null,null,null,null,null,"معلم خبير"]
[7,"محمد7",1,"نقابى","متزوجة",0,null,"معلم أول",512.17999999999995,855.89,null,47.12,47.62,51.21,null,4,2,null,null,null,null,null,null,null,null,null,0,null,null,null,null,null,null,null,null,null,null,1,22.27,13.95,null,null,null,null,null,null,null,null,null,null,null,null,null,null,null,null,null,null,null,null,null,null,null,10,256.08999999999997,256.08999999999997,384.13499999999993,128,256,0,0,0,0,null,null,"الحد الاقصي للمرتب الاساسي",null,null,1370,-50,-0.3,-0.30000000000000004,"عامل تعاقد",null,null,{"$f":"#VALUE!","v":{"$error":"#VALUE!"}},{"$f":"#VALUE!","v":{"$error":"#VALUE!"}},null,null,null,null,null,null,null,null,null,null,null,null,null,null,null,null,null,null,null,null,null,null,null,null,null,null,null,null,null,null,null,null,null,null,null,null,null,null,null,null,null,null,null,null,null,null,null,null,null,null,null,null,null,null,null,"معلم كبير"]
[8,"محمد8",1,"نقابى","متزوجة",0,null,"معلم أول",512.17999999999995,855.89,null,47.12,47.62,51.21,null,4,2,null,null,null,null,null,null,null,null,null,0,null,null,null,null,null,null,null,null,null,null,1,22.27,13.95,null,null,null,null,null,null,null,null,null,null,null,null,null,null,null,null,null,null,null,null,null,null,null,10,256.08999999999997,256.08999999999997,384.13499999999993,128,256,0,0,0,0,null,null,"الاحد الاقصي للجور المتغيرة",null,null,2800,-50,-0.3,-0.30000000000000004,null,null,null,{"$f":"#VALUE!","v":{"$error":"#VALUE!"}},{"$f":"#VALUE!","v":{"$error":"#VALUE!"}},null,null,null,null,null,null,null,null,null,null,null,null,null,null,null,null,null,null,null,null,null,null,null,null,null,null,null,null,null,null,null,null,null,null,null,null,null,null,null,null,null,null,null,null,null,null,null,null,null,null,null,null,null,null,null,"عقد مميز"]
[9,"محمد9",1,"نقابى","متزوجة",0,null,"معلم أول",504.1,843.7,null,46.35,46.85,50.41,null,4,2,null,null,null,null,null,null,null,null,null,0,null,null,null,null,null,null,null,null,null,null,1,22.01,13.4,null,null,null,null,null,null,null,null,null,null,null,null,null,null,null,null,null,null,null,null,null,null,null,10,252.05,252.05,378.07499999999999,126,252,0,0,0,0,null,null,null,null,null,null,-50,-0.3,-0.30000000000000004,null,null,null,{"$f":"#VALUE!","v":{"$error":"#VALUE!"}},{"$f":"#VALUE!","v":{"$error":"#VALUE!"}}]
[10,"محمد10",1,"نقابى","متزوج+2",0,null,"معلم أول",546.57000000000005,906.88,null,50.87,51.37,54.64,null,4,6,null,null,null,null,null,null,null,null,null,0,null,null,null,null,null,null,null,null,null,null,1,47.68,15.35,null,null,null,null,null,null,null,null,null,null,null,null,null,null,null,null,null,null,null,null,null,null,null,10,273.28500000000003,273.28500000000003,409.92750000000007,136,273,0,0,0,0,null,null,null,null,null,null,-50,-0.3,-0.30000000000000004,null,null,null,{"$f":"#VALUE!","v":{"$error":"#VALUE!"}},{"$f":"#VALUE!","v":{"$error":"#VALUE!"}}]
[11,"محمد11",1,"نقابى","متزوجة",0,null,"معلم أول",504.9,844.62,null,46.43,46.93,50.49,null,4,2,null,null,null,null,null,null,null,null,null,0,null,null,null,null,null,null,null,null,null,null,1,22.03,13.75,null,null,null,null,null,null,null,null,null,null,null,null,null,null,null,null,null,null,null,null,null,null,null,10,252.45,252.45,378.67500000000001,126,252,0,0,0,0,null,null,null,null,null,null,-50,-0.3,-0.30000000000000004,null,null,null,{"$f":"#VALUE!","v":{"$error":"#VALUE!"}},{"$f":"#VALUE!","v":{"$error":"#VALUE!"}}]
[12,"محمد12",1,"نقابى","متزوج+2",0,null,"معلم أول",545.64,906.5,null,50.82,51.32,54.56,null,4,6,null,null,null,null,null,null,null,null,null,0,null,null,null,null,null,null,null,null,null,null,1,null,12.5,null,null,null,null,null,null,null,null,null,null,null,null,null,null,null,null,null,null,null,null,null,null,null,10,272.82,272.82,409.23,136,272,0,0,0,0,null,null,null,null,null,null,-50,-0.3,-0.30000000000000004,null,null,null,{"$f":"#VALUE!","v":{"$error":"#VALUE!"}},{"$f":"#VALUE!","v":{"$error":"#VALUE!"}}]
[13,"محمد13",1,"نقابى","متزوجة",0,null,"معلم أول",499.36,836.86,null,45.91,46.41,49.93,null,4,2,null,null,null,null,null,null,null,null,null,0,null,null,null,null,null,null,null,null,null,null,1,21.73,13.85,null,null,null,null,null,null,null,null,null,null,null,null,null,null,null,null,null,null,null,null,null,null,null,10,249.68,249.68,374.52,124,249,0,0,0,0,null,null,null,null,null,null,-50,-0.3,-0.30000000000000004,null,null,null,{"$f":"#VALUE!","v":{"$error":"#VALUE!"}},{"$f":"#VALUE!","v":{"$error":"#VALUE!"}}]
[14,"محمد14",1,"نقابى","متزوجة",0,null,"معلم أول",530.54,883.67,null,48.85,49.35,53.05,null,4,2,null,null,null,null,null,null,null,null,null,0,null,null,null,null,null,null,null,null,null,null,1,22.76,14.95,null,null,null,null,null,null,null,null,null,null,null,null,null,null,null,null,null,null,null,null,null,null,null,10,265.27,265.27,397.90499999999997,132,265,0,0,0,0,null,null,null,null,null,null,-50,-0.3,-0.30000000000000004,null,null,null,{"$f":"#VALUE!","v":{"$error":"#VALUE!"}},{"$f":"#VALUE!","v":{"$error":"#VALUE!"}}]
[15,"محمد15",1,"نقابى","متزوج+2",0,null,"معلم أول",537.54,894.13,null,49.51,50.01,53.75,null,4,6,null,null,null,null,null,null,null,null,null,0,null,null,null,null,null,null,null,null,null,null,1,22.64,15,null,null,null,null,null,null,null,null,null,null,null,null,null,null,null,null,null,null,null,null,null,null,null,10,268.77,268.77,403.15499999999997,134,268,0,0,0,0,null,null,null,null,null,null,-50,-0.3,-0.30000000000000004,null,null,null,{"$f":"#VALUE!","v":{"$error":"#VALUE!"}},{"$f":"#VALUE!","v":{"$error":"#VALUE!"}}]
[16,"محمد16",1,"نقابى","متزوجة",0,null,"معلم أول",395.16,705.15,null,36.6,37.1,39.51,null,4,2,null,null,null,null,null,null,null,null,null,0,null,null,null,null,null,null,null,null,null,null,1,14.76,9.65,null,null,null,null,null,null,null,null,null,null,null,null,null,null,null,null,null,null,null,null,null,null,null,10,197.58,197.58,296.37000000000006,98,197,0,0,0,0,null,null,null,null,null,null,-50,-0.3,-0.30000000000000004,null,null,null,{"$f":"#VALUE!","v":{"$error":"#VALUE!"}},{"$f":"#VALUE!","v":{"$error":"#VALUE!"}}]
[17,"محمد17",1,"نقابى","متزوجة",0,null,"معلم أول",502.5,840.34,null,46.73,47.23,50.25,null,4,2,null,null,null,null,null,null,null,null,null,0,null,null,null,null,null,null,null,null,null,null,1,25.86,13.45,null,null,null,null,null,null,null,null,null,null,null,null,null,null,null,null,null,null,null,null,null,null,null,10,251.25,251.25,376.875,125,251,0,0,0,0,null,null,null,null,null,null,-50,-0.3,-0.30000000000000004,null,null,null,{"$f":"#VALUE!","v":{"$error":"#VALUE!"}},{"$f":"#VALUE!","v":{"$error":"#VALUE!"}}]
[18,"محمد18",1,"نقابى","متزوجة",0,null,"معلم أول",510.68,854.27,null,46.96,47.46,51.06,null,4,2,null,null,null,null,null,null,null,null,null,0,null,null,null,null,null,null,null,null,null,null,1,22.28,13.85,null,null,null,null,null,null,null,null,null,null,null,null,null,null,null,null,null,null,null,null,null,null,null,10,255.34,255.34,383.01,127,255,0,0,0,0,null,null,null,null,null,null,-50,-0.3,-0.30000000000000004,null,null,null,{"$f":"#VALUE!","v":{"$error":"#VALUE!"}},{"$f":"#VALUE!","v":{"$error":"#VALUE!"}}]
[19,"محمد19",1,"نقابى","متزوجة",0,null,"معلم أول",351.96,637.82000000000005,null,32.54,33.04,35.19,null,4,2,null,null,null,null,null,null,null,null,null,0,null,null,null,null,null,null,null,null,null,null,1,10.81,12,null,null,null,null,null,null,null,null,null,null,null,null,null,null,null,null,null,null,null,null,null,null,null,10,175.98,175.98,263.97000000000003,87,175,0,0,0,0,null,null,null,null,null,null,-50,-0.3,-0.30000000000000004,null,null,null,{"$f":"#VALUE!","v":{"$error":"#VALUE!"}},{"$f":"#VALUE!","v":{"$error":"#VALUE!"}}]
[20,"محمد20",1,"نقابى","متزوج+1",0,null,"معلم أول",351.96,652.6,null,32.54,33.04,35.19,null,4,4,null,null,null,null,null,null,null,null,null,0,null,null,null,null,null,null,null,null,null,null,1,10.65,11.15,null,null,null,null,null,null,null,null,null,null,null,null,null,null,null,null,null,null,null,null,null,null,null,10,175.98,175.98,263.97000000000003,87,175,0,0,0,0,null,null,null,null,null,null,-50,-0.3,-0.30000000000000004,null,null,null,{"$f":"#VALUE!","v":{"$error":"#VALUE!"}},{"$f":"#VALUE!","v":{"$error":"#VALUE!"}}]
[21,"محمد21",1,"نقابى","متزوجة",0,null,"معلم أول",356.96,652.6,null,32.54,33.04,35.19,null,4,2,null,null,null,null,null,null,null,null,null,0,null,null,null,null,null,null,null,null,null,null,1,11.55,11.15,null,null,null,null,null,null,null,null,null,null,null,null,null,null,null,null,null,null,null,null,null,null,null,10,178.48,178.48,267.72000000000003,89,178,0,0,0,0,null,null,null,null,null,null,-50,-0.3,-0.30000000000000004,null,null,null,{"$f":"#VALUE!","v":{"$error":"#VALUE!"}},{"$f":"#VALUE!","v":{"$error":"#VALUE!"}}]
[22,"محمد22",1,"نقابى",null,0,null,"معلم أول",257.82,534.28,null,24.5,24.9,25.78,null,4,0,null,null,null,null,null,null,null,null,null,0,null,null,null,null,null,null,null,null,null,null,1,null,9.25,null,null,null,null,null,null,null,null,null,null,null,null,null,null,null,null,null,null,null,null,null,null,null,10,128.91,128.91,193.36500000000001,64,128,0,0,0,0,null,null,null,null,null,null,-50,-0.3,-0.30000000000000004,null,null,null,{"$f":"#VALUE!","v":{"$error":"#VALUE!"}},{"$f":"#VALUE!","v":{"$error":"#VALUE!"}}]
[23,"محمد23",1,"نقابى","متزوج+2",0,null,"معلم أول",246,460.2,null,7.2,4.8,4.8,null,4,6,null,null,null,null,null,null,null,null,null,0,null,null,null,null,null,null,null,null,null,null,1,null,6,null,null,null,null,null,null,null,null,null,null,null,null,null,null,null,null,null,null,null,null,null,null,null,10,123,123,184.5,61,123,0,0,0,0,null,null,null,null,null,null,-50,-0.3,-0.30000000000000004,null,null,null,{"$f":"#VALUE!","v":{"$error":"#VALUE!"}},{"$f":"#VALUE!","v":{"$error":"#VALUE!"}}]
[24,"محمد24",1,"نقابى","متزوجة",0,null,"معلم أول",246,460.2,null,7.2,4.8,4.8,null,4,2,null,null,null,null,null,null,null,null,null,0,null,null,null,null,null,null,null,null,null,null,1,null,6,null,null,null,null,null,null,null,null,null,null,null,null,null,null,null,null,null,null,null,null,null,null,null,10,123,123,184.5,61,123,0,0,0,0,null,null,null,null,null,null,-50,-0.3,-0.30000000000000004,null,null,null,{"$f":"#VALUE!","v":{"$error":"#VALUE!"}},{"$f":"#VALUE!","v":{"$error":"#VALUE!"}}]
[25,"محمد25",1,"نقابى","متزوجة",0,null,"معلم أول",246,460.2,null,7.2,4.8,4.8,null,4,2,null,null,null,null,null,null,null,null,null,0,null,null,null,null,null,null,null,null,null,null,1,null,6,null,null,null,null,null,null,null,null,null,null,null,null,null,null,null,null,null,null,null,null,null,null,null,10,123,123,184.5,61,123,0,0,0,0,null,null,null,null,null,null,-50,-0.3,-0.30000000000000004,null,null,null,{"$f":"#VALUE!","v":{"$error":"#VALUE!"}},{"$f":"#VALUE!","v":{"$error":"#VALUE!"}}]
[26,"محمد26",1,"نقابى","متزوجة",0,null,"معلم أول",246,460.2,null,7.2,4.8,4.8,null,4,2,null,null,null,null,null,null,null,null,null,0,null,null,null,null,null,null,null,null,null,null,1,null,6,null,null,null,null,null,null,null,null,null,null,null,null,null,null,null,null,null,null,null,null,null,null,null,10,123,123,184.5,61,123,0,0,0,0,null,null,null,null,null,null,-50,-0.3,-0.30000000000000004,null,null,null,{"$f":"#VALUE!","v":{"$error":"#VALUE!"}},{"$f":"#VALUE!","v":{"$error":"#VALUE!"}}]
[27,"محمد27",1,"نقابى",null,0,null,null,0,0,null,null,null,null,null,null,0,null,null,null,null,null,null,null,null,null,0,null,null,null,null,null,null,null,null,null,null,null,null,null,null,null,null,null,null,null,null,null,null,null,null,null,null,null,null,null,null,null,null,null,null,null,null,"",0,0,0,0,0,0,0,0,0,null,null,null,null,null,null,-50,-0.3,-0.30000000000000004,null,null,null,{"$f":"#VALUE!","v":{"$error":"#VALUE!"}},{"$f":"#VALUE!","v":{"$error":"#VALUE!"}}]
[28,"محمد28",1,"نقابى","متزوج+2",0,null,"خبير",638.54999999999995,1056.5899999999999,null,59.54,60.04,63.85,null,4,6,null,null,null,null,null,null,null,null,null,0,null,null,null,null,null,null,null,null,null,null,1,51.65,15,null,null,null,null,null,null,null,null,null,null,null,null,null,null,null,null,null,null,null,null,null,null,null,10,319.27499999999998,319.27499999999998,798.1875,159,159,0,0,0,0,null,null,null,null,null,null,-50,-0.3,-0.30000000000000004,null,null,null,{"$f":"#VALUE!","v":{"$error":"#VALUE!"}},{"$f":"#VALUE!","v":{"$error":"#VALUE!"}}]
[29,"محمد29",1,"نقابى","متزوج+2",0,null,"خبير",546.57000000000005,906.88,null,50.87,51.37,54.64,null,4,6,null,null,null,null,null,null,null,null,null,0,null,null,null,null,null,null,null,null,null,null,1,47.68,15.35,null,null,null,null,null,null,null,null,null,null,null,null,null,null,null,null,null,null,null,null,null,null,null,10,273.28500000000003,273.28500000000003,683.21249999999998,136,136,0,0,0,0,null,null,null,null,null,null,-50,-0.3,-0.30000000000000004,null,null,null,{"$f":"#VALUE!","v":{"$error":"#VALUE!"}},{"$f":"#VALUE!","v":{"$error":"#VALUE!"}}]
[30,"محمد30",1,"نقابى","متزوج+2",0,null,"خبير",574.79999999999995,951.55,null,53.54,54.04,57.48,null,4,6,null,null,null,null,null,null,null,null,null,0,null,null,null,null,null,null,null,null,null,null,1,null,14.95,null,null,null,null,null,null,null,null,null,null,null,null,null,null,null,null,null,null,null,null,null,null,null,10,287.39999999999998,287.39999999999998,718.5,143,143,0,0,0,0,null,null,null,null,null,null,-50,-0.3,-0.30000000000000004,null,null,null,{"$f":"#VALUE!","v":{"$error":"#VALUE!"}},{"$f":"#VALUE!","v":{"$error":"#VALUE!"}}]
[31,"محمد31",1,"نقابى","متزوج+2",0,null,"خبير",537.55999999999995,892.61,null,50.03,50.53,53.75,null,4,6,null,null,null,null,null,null,null,null,null,0,null,null,null,null,null,null,null,null,null,null,1,38.49,14.35,null,null,null,null,null,null,null,null,null,null,null,null,null,null,null,null,null,null,null,null,null,null,null,10,268.77999999999997,268.77999999999997,671.95,134,134,0,0,0,0,null,null,null,null,null,null,-50,-0.3,-0.30000000000000004,null,null,null,{"$f":"#VALUE!","v":{"$error":"#VALUE!"}},{"$f":"#VALUE!","v":{"$error":"#VALUE!"}}]
[32,"محمد32",1,"نقابى","متزوجة",0,null,"خبير",498.56,835.37,null,45.83,46.33,49.85,null,4,2,null,null,null,null,null,null,null,null,null,0,null,null,null,null,null,null,null,null,null,null,1,21.71,13.85,null,null,null,null,null,null,null,null,null,null,null,null,null,null,null,null,null,null,null,null,null,null,null,10,249.28,249.28,623.20000000000005,124,124,0,0,0,0,null,null,null,null,null,null,-50,-0.3,-0.30000000000000004,null,null,null,{"$f":"#VALUE!","v":{"$error":"#VALUE!"}},{"$f":"#VALUE!","v":{"$error":"#VALUE!"}}]
[33,"محمد33",1,"نقابى","متزوج+2",0,null,"خبير",566.52,938.62,null,52.79,53.29,56.69,null,4,6,null,null,null,null,null,null,null,null,null,0,null,null,null,null,null,null,null,null,null,null,1,26.73,14.95,null,null,null,null,null,null,null,null,null,null,4,null,null,null,null,null,null,null,null,null,null,null,null,10,283.26,283.26,708.15,141,141,0,0,0,0,null,null,null,null,null,null,-50,-0.3,-0.30000000000000004,null,null,null,{"$f":"#VALUE!","v":{"$error":"#VALUE!"}},{"$f":"#VALUE!","v":{"$error":"#VALUE!"}}]
[34,"محمد34",1,"نقابى","متزوجة",0,null,"خبير",514.52,860.87,null,47.4,47.9,51.45,null,4,2,null,null,null,null,null,null,null,null,null,0,null,null,null,null,null,null,null,null,null,null,1,null,13.85,null,null,null,null,null,null,null,null,null,null,null,null,null,null,null,null,null,null,null,null,null,null,null,10,257.26,257.26,643.15,128,128,0,0,0,0,null,null,null,null,null,null,-50,-0.3,-0.30000000000000004,null,null,null,{"$f":"#VALUE!","v":{"$error":"#VALUE!"}},{"$f":"#VALUE!","v":{"$error":"#VALUE!"}}]
[35,"محمد35",1,"نقابى",null,0,null,"خبير",null,0,null,null,null,null,null,null,0,null,null,null,null,null,null,null,null,null,0,null,null,null,null,null,null,null,null,null,null,null,null,null,null,null,null,null,null,null,null,null,null,null,null,null,null,null,null,null,null,null,null,null,null,null,null,10,0,0,0,0,0,0,0,0,0,null,null,null,null,null,null,-50,-0.3,-0.30000000000000004,null,null,null,{"$f":"#VALUE!","v":{"$error":"#VALUE!"}},{"$f":"#VALUE!","v":{"$error":"#VALUE!"}}]
[36,"محمد36",1,"نقابى",null,0,null,"خبير",null,0,null,null,null,null,null,null,0,null,null,null,null,null,null,null,null,null,0,null,null,null,null,null,null,null,null,null,null,null,null,null,null,null,null,null,null,null,null,null,null,null,null,null,null,null,null,null,null,null,null,null,null,null,null,10,0,0,0,0,0,0,0,0,0,null,null,null,null,null,null,-50,-0.3,-0.30000000000000004,null,null,null,{"$f":"#VALUE!","v":{"$error":"#VALUE!"}},{"$f":"#VALUE!","v":{"$error":"#VALUE!"}}]
[37,"محمد37",1,"نقابى",null,0,null,"خبير",null,0,null,null,null,null,null,null,0,null,null,null,null,null,null,null,null,null,0,null,null,null,null,null,null,null,null,null,null,null,null,null,null,null,null,null,null,null,null,null,null,null,null,null,null,null,null,null,null,null,null,null,null,null,null,10,0,0,0,0,0,0,0,0,0,null,null,null,null,null,null,-50,-0.3,-0.30000000000000004,null,null,null,{"$f":"#VALUE!","v":{"$error":"#VALUE!"}},{"$f":"#VALUE!","v":{"$error":"#VALUE!"}}]
[38,"محمد38",1,"نقابى",null,0,null,"خبير",null,0,null,null,null,null,null,null,0,null,null,null,null,null,null,null,null,null,0,null,null,null,null,null,null,null,null,null,null,null,null,null,null,null,null,null,null,null,null,null,null,null,null,null,null,null,null,null,null,null,null,null,null,null,null,10,0,0,0,0,0,0,0,0,0,null,null,null,null,null,null,-50,-0.3,-0.30000000000000004,null,null,null,{"$f":"#VALUE!","v":{"$error":"#VALUE!"}},{"$f":"#VALUE!","v":{"$error":"#VALUE!"}}]
[39,"محمد39",0,null,null,0,null,"خبير",null,0,null,null,null,null,null,null,0,null,null,null,null,null,null,null,null,null,0,null,null,null,null,null,null,null,null,null,null,null,null,null,null,null,null,null,null,null,null,null,null,null,null,null,null,null,null,null,null,null,null,null,null,null,null,10,0,0,0,0,0,0,0,0,0,null,null,null,null,null,null,-50,-0.3,-0.30000000000000004,null,null,null,{"$f":"#VALUE!","v":{"$error":"#VALUE!"}},{"$f":"#VALUE!","v":{"$error":"#VALUE!"}}]
[40,"محمد40",0,null,null,0,null,"عامل تعاقد",150,367.5,null,15,15,15,null,null,0,null,null,null,null,null,null,null,null,null,225,null,null,null,null,null,null,null,null,null,null,null,null,6,null,null,null,null,null,null,null,null,null,null,null,null,null,null,null,null,null,null,null,null,null,null,null,0,0,0,0,37,0,137,75,0,225,null,null,null,null,null,null,175,1.05,1.05,null,null,null,{"$f":"#VALUE!","v":{"$error":"#VALUE!"}},{"$f":"#VALUE!","v":{"$error":"#VALUE!"}}]
[41,null,0,null,null,0,null,null,null,null,null,null,null,null,null,null,0,null,null,null,null,null,null,null,null,null,0,null,null,null,null,null,null,null,null,null,null,null,null,null,null,null,null,null,null,null,null,null,null,null,null,null,null,null,null,null,null,null,null,null,null,null,null,"",0,0,0,0,0,0,0,0,0,null,null,null,null,null,null,0,0,0,null,null,null,{"$f":"#VALUE!","v":{"$error":"#VALUE!"}},{"$f":"#VALUE!","v":{"$error":"#VALUE!"}}]
[42,null,0,null,null,0,null,null,null,null,null,null,null,null,null,null,0,null,null,null,null,null,null,null,null,null,0,null,null,null,null,null,null,null,null,null,null,null,null,null,null,null,null,null,null,null,null,null,null,null,null,null,null,null,null,null,null,null,null,null,null,null,null,"",0,0,0,0,0,0,0,0,0,null,null,null,null,null,null,0,0,0,null,null,null,{"$f":"#VALUE!","v":{"$error":"#VALUE!"}},{"$f":"#VALUE!","v":{"$error":"#VALUE!"}}]
[43,null,0,null,null,0,null,null,null,null,null,null,null,null,null,null,0,null,null,null,null,null,null,null,null,null,0,null,null,null,null,null,null,null,null,null,null,null,null,null,null,null,null,null,null,null,null,null,null,null,null,null,null,null,null,null,null,null,null,null,null,null,null,"",0,0,0,0,0,0,0,0,0,null,null,null,null,null,null,0,0,0,null,null,null,{"$f":"#VALUE!","v":{"$error":"#VALUE!"}},{"$f":"#VALUE!","v":{"$error":"#VALUE!"}}]
[44,null,0,null,null,0,null,null,null,null,null,null,null,null,null,null,0,null,null,null,null,null,null,null,null,null,0,null,null,null,null,null,null,null,null,null,null,null,null,null,null,null,null,null,null,null,null,null,null,null,null,null,null,null,null,null,null,null,null,null,null,null,null,"",0,0,0,0,0,0,0,0,0,null,null,null,null,null,null,0,0,0,null,null,null,{"$f":"#VALUE!","v":{"$error":"#VALUE!"}},{"$f":"#VALUE!","v":{"$error":"#VALUE!"}}]
[45,null,0,null,null,0,null,null,null,null,null,null,null,null,null,null,0,null,null,null,null,null,null,null,null,null,0,null,null,null,null,null,null,null,null,null,null,null,null,null,null,null,null,null,null,null,null,null,null,null,null,null,null,null,null,null,null,null,null,null,null,null,null,"",0,0,0,0,0,0,0,0,0,null,null,null,null,null,null,0,0,0,null,null,null,{"$f":"#VALUE!","v":{"$error":"#VALUE!"}},{"$f":"#VALUE!","v":{"$error":"#VALUE!"}}]
[46,null,0,null,null,0,null,null,null,null,null,null,null,null,null,null,0,null,null,null,null,null,null,null,null,null,0,null,null,null,null,null,null,null,null,null,null,null,null,null,null,null,null,null,null,null,null,null,null,null,null,null,null,null,null,null,null,null,null,null,null,null,null,"",0,0,0,0,0,0,0,0,0,null,null,null,null,null,null,0,0,0,null,null,null,{"$f":"#VALUE!","v":{"$error":"#VALUE!"}},{"$f":"#VALUE!","v":{"$error":"#VALUE!"}}]
[47,null,0,null,null,0,null,null,null,null,null,null,null,null,null,null,0,null,null,null,null,null,null,null,null,null,0,null,null,null,null,null,null,null,null,null,null,null,null,null,null,null,null,null,null,null,null,null,null,null,null,null,null,null,null,null,null,null,null,null,null,null,null,"",0,0,0,0,0,0,0,0,0,null,null,null,null,null,null,0,0,0,null,null,null,{"$f":"#VALUE!","v":{"$error":"#VALUE!"}},{"$f":"#VALUE!","v":{"$error":"#VALUE!"}}]
[48,null,0,null,null,0,null,null,null,null,null,null,null,null,null,null,0,null,null,null,null,null,null,null,null,null,0,null,null,null,null,null,null,null,null,null,null,null,null,null,null,null,null,null,null,null,null,null,null,null,null,null,null,null,null,null,null,null,null,null,null,null,null,"",0,0,0,0,0,0,0,0,0,null,null,null,null,null,null,0,0,0,null,null,null,{"$f":"#VALUE!","v":{"$error":"#VALUE!"}},{"$f":"#VALUE!","v":{"$error":"#VALUE!"}}]
[49,null,0,null,null,0,null,null,null,null,null,null,null,null,null,null,0,null,null,null,null,null,null,null,null,null,0,null,null,null,null,null,null,null,null,null,null,null,null,null,null,null,null,null,null,null,null,null,null,null,null,null,null,null,null,null,null,null,null,null,null,null,null,"",0,0,0,0,0,0,0,0,0,null,null,null,null,null,null,0,0,0,null,null,null,{"$f":"#VALUE!","v":{"$error":"#VALUE!"}},{"$f":"#VALUE!","v":{"$error":"#VALUE!"}}]
[50,null,0,null,null,0,null,null,null,null,null,null,null,null,null,null,0,null,null,null,null,null,null,null,null,null,0,null,null,null,null,null,null,null,null,null,null,null,null,null,null,null,null,null,null,null,null,null,null,null,null,null,null,null,null,null,null,null,null,null,null,null,null,"",0,0,0,0,0,0,0,0,0,null,null,null,null,null,null,0,0,0,null,null,null,{"$f":"#VALUE!","v":{"$error":"#VALUE!"}},{"$f":"#VALUE!","v":{"$error":"#VALUE!"}}]
[51,null,0,null,null,0,null,null,null,null,null,null,null,null,null,null,0,null,null,null,null,null,null,null,null,null,0,null,null,null,null,null,null,null,null,null,null,null,null,null,null,null,null,null,null,null,null,null,null,null,null,null,null,null,null,null,null,null,null,null,null,null,null,"",0,0,0,0,0,0,0,0,0,null,null,null,null,null,null,0,0,0,null,null,null,{"$f":"#VALUE!","v":{"$error":"#VALUE!"}},{"$f":"#VALUE!","v":{"$error":"#VALUE!"}}]
[52,null,0,null,null,0,null,null,null,null,null,null,null,null,null,null,0,null,null,null,null,null,null,null,null,null,0,null,null,null,null,null,null,null,null,null,null,null,null,null,null,null,null,null,null,null,null,null,null,null,null,null,null,null,null,null,null,null,null,null,null,null,null,"",0,0,0,0,0,0,0,0,0,null,null,null,null,null,null,0,0,0,null,null,null,{"$f":"#VALUE!","v":{"$error":"#VALUE!"}},{"$f":"#VALUE!","v":{"$error":"#VALUE!"}}]
[53,null,0,null,null,0,null,null,null,null,null,null,null,null,null,null,0,null,null,null,null,null,null,null,null,null,0,null,null,null,null,null,null,null,null,null,null,null,null,null,null,null,null,null,null,null,null,null,null,null,null,null,null,null,null,null,null,null,null,null,null,null,null,"",0,0,0,0,0,0,0,0,0,null,null,null,null,null,null,0,0,0,null,null,null,{"$f":"#VALUE!","v":{"$error":"#VALUE!"}},{"$f":"#VALUE!","v":{"$error":"#VALUE!"}}]
[54,null,0,null,null,0,null,null,null,null,null,null,null,null,null,null,0,null,null,null,null,null,null,null,null,null,0,null,null,null,null,null,null,null,null,null,null,null,null,null,null,null,null,null,null,null,null,null,null,null,null,null,null,null,null,null,null,null,null,null,null,null,null,"",0,0,0,0,0,0,0,0,0,null,null,null,null,null,null,0,0,0,null,null,null,{"$f":"#VALUE!","v":{"$error":"#VALUE!"}},{"$f":"#VALUE!","v":{"$error":"#VALUE!"}}]
[55,null,0,null,null,0,null,null,null,null,null,null,null,null,null,null,0,null,null,null,null,null,null,null,null,null,0,null,null,null,null,null,null,null,null,null,null,null,null,null,null,null,null,null,null,null,null,null,null,null,null,null,null,null,null,null,null,null,null,null,null,null,null,"",0,0,0,0,0,0,0,0,0,null,null,null,null,null,null,0,0,0,null,null,null,{"$f":"#VALUE!","v":{"$error":"#VALUE!"}},{"$f":"#VALUE!","v":{"$error":"#VALUE!"}}]
[56,null,0,null,null,0,null,null,null,null,null,null,null,null,null,null,0,null,null,null,null,null,null,null,null,null,0,null,null,null,null,null,null,null,null,null,null,null,null,null,null,null,null,null,null,null,null,null,null,null,null,null,null,null,null,null,null,null,null,null,null,null,null,"",0,0,0,0,0,0,0,0,0,null,null,null,null,null,null,0,0,0,null,null,null,{"$f":"#VALUE!","v":{"$error":"#VALUE!"}},{"$f":"#VALUE!","v":{"$error":"#VALUE!"}}]
[57,null,0,null,null,0,null,null,null,null,null,null,null,null,null,null,0,null,null,null,null,null,null,null,null,null,0,null,null,null,null,null,null,null,null,null,null,null,null,null,null,null,null,null,null,null,null,null,null,null,null,null,null,null,null,null,null,null,null,null,null,null,null,"",0,0,0,0,0,0,0,0,0,null,null,null,null,null,null,0,0,0,null,null,null,{"$f":"#VALUE!","v":{"$error":"#VALUE!"}},{"$f":"#VALUE!","v":{"$error":"#VALUE!"}}]
[58,null,0,null,null,0,null,null,null,null,null,null,null,null,null,null,0,null,null,null,null,null,null,null,null,null,0,null,null,null,null,null,null,null,null,null,null,null,null,null,null,null,null,null,null,null,null,null,null,null,null,null,null,null,null,null,null,null,null,null,null,null,null,"",0,0,0,0,0,0,0,0,0,null,null,null,null,null,null,0,0,0,null,null,null,{"$f":"#VALUE!","v":{"$error":"#VALUE!"}},{"$f":"#VALUE!","v":{"$error":"#VALUE!"}}]
[59,null,0,null,null,0,null,null,null,null,null,null,null,null,null,null,0,null,null,null,null,null,null,null,null,null,0,null,null,null,null,null,null,null,null,null,null,null,null,null,null,null,null,null,null,null,null,null,null,null,null,null,null,null,null,null,null,null,null,null,null,null,null,"",0,0,0,0,0,0,0,0,0,null,null,null,null,null,null,0,0,0,null,null,null,{"$f":"#VALUE!","v":{"$error":"#VALUE!"}},{"$f":"#VALUE!","v":{"$error":"#VALUE!"}}]
[60,null,0,null,null,0,null,null,null,null,null,null,null,null,null,null,0,null,null,null,null,null,null,null,null,null,0,null,null,null,null,null,null,null,null,null,null,null,null,null,null,null,null,null,null,null,null,null,null,null,null,null,null,null,null,null,null,null,null,null,null,null,null,"",0,0,0,0,0,0,0,0,0,null,null,null,null,null,null,0,0,0,null,null,null,{"$f":"#VALUE!","v":{"$error":"#VALUE!"}},{"$f":"#VALUE!","v":{"$error":"#VALUE!"}}]
[61,null,0,null,null,0,null,null,null,null,null,null,null,null,null,null,0,null,null,null,null,null,null,null,null,null,0,null,null,null,null,null,null,null,null,null,null,null,null,null,null,null,null,null,null,null,null,null,null,null,null,null,null,null,null,null,null,null,null,null,null,null,null,"",0,0,0,0,0,0,0,0,0,null,null,null,null,null,null,0,0,0,null,null,null,{"$f":"#VALUE!","v":{"$error":"#VALUE!"}},{"$f":"#VALUE!","v":{"$error":"#VALUE!"}}]
[62,null,0,null,null,0,null,null,null,null,null,null,null,null,null,null,0,null,null,null,null,null,null,null,null,null,0,null,null,null,null,null,null,null,null,null,null,null,null,null,null,null,null,null,null,null,null,null,null,null,null,null,null,null,null,null,null,null,null,null,null,null,null,"",0,0,0,0,0,0,0,0,0,null,null,null,null,null,null,0,0,0,null,null,null,{"$f":"#VALUE!","v":{"$error":"#VALUE!"}},{"$f":"#VALUE!","v":{"$error":"#VALUE!"}}]
[63,null,0,null,null,0,null,null,null,null,null,null,null,null,null,null,0,null,null,null,null,null,null,null,null,null,0,null,null,null,null,null,null,null,null,null,null,null,null,null,null,null,null,null,null,null,null,null,null,null,null,null,null,null,null,null,null,null,null,null,null,null,null,"",0,0,0,0,0,0,0,0,0,null,null,null,null,null,null,0,0,0,null,null,null,{"$f":"#VALUE!","v":{"$error":"#VALUE!"}},{"$f":"#VALUE!","v":{"$error":"#VALUE!"}}]
[64,null,0,null,null,0,null,null,null,null,null,null,null,null,null,null,0,null,null,null,null,null,null,null,null,null,0,null,null,null,null,null,null,null,null,null,null,null,null,null,null,null,null,null,null,null,null,null,null,null,null,null,null,null,null,null,null,null,null,null,null,null,null,"",0,0,0,0,0,0,0,0,0,null,null,null,null,null,null,0,0,0,null,null,null,{"$f":"#VALUE!","v":{"$error":"#VALUE!"}},{"$f":"#VALUE!","v":{"$error":"#VALUE!"}}]
[65,null,{"$f":"IF(D68=\"نقابى\",1,IF(D68=\"حالة خاصة\",2,0))","v":0},null,null,0,null,null,null,null,null,null,null,null,null,null,{"$f":"IF(E68=\"متزوج\",2,IF(E68=\"متزوج+1\",4,IF(E68=\"متزوج+2\",6,IF(E68=\"متزوجة\",2,0))))","v":0},null,null,null,null,null,null,null,null,null,{"$f":"BU68","v":0},null,null,null,null,null,null,null,null,null,null,null,null,null,null,null,null,null,null,null,null,null,null,null,null,null,null,null,null,null,null,null,null,null,null,null,null,{"$f":"IF(H68=\"معلم مساعد\",10,IF(H68=\"معلم تعاقد\",10,IF(H68=\"معلم\",10,IF(H68=\"معلم أول\",10,IF(H68=\"معلم أول أ\",10,IF(H68=\"خبير\",10,IF(H68=\"كبير\",10,IF(H68=\"عامل تعاقد\",0,\"\"))))))))","v":""},0,{"$f":"IF(H68=\"معلم مساعد\",I68*50/100,IF(H68=\"عامل تعاقد\",I68*0/100,IF(H68=\"معلم\",I68*50/100,IF(H68=\"معلم أول\",I68*50/100,IF(H68=\"معلم أول أ\",I68*50/100,IF(H68=\"خبير\",I68*50/100,IF(H68=\"كبير\",I68*50/100,)))))))","v":0},{"$f":"IF(H68=\"إدارى\",I68*0,IF(H68=\"معلم مساعد\",I68*0/100,IF(H68=\"معلم\",I68*50/100,IF(H68=\"معلم أول\",I68*75/100,IF(H68=\"معلم أول أ\",I68*100/100,IF(H68=\"خبير\",I68*125/100,IF(H68=\"كبير\",I68*150/100,)))))))","v":0},{"$f":"INT(IF(H68=\"عامل تعاقد\",I68*25/100,IF(H68=\"معلم مساعد\",I68*25/100,IF(H68=\"معلم\",I68*25/100,IF(H68=\"معلم أول\",I68*25/100,IF(H68=\"معلم أول أ\",I68*25/100,IF(H68=\"خبير\",I68*25/100,IF(H68=\"كبير\",I68*25/100,))))))))","v":0},{"$f":"INT(IF(H68=\"إدارى\",J68*0/100,IF(H68=\"معلم مساعد\",I68*125/100,IF(H68=\"معلم\",I68*75/100,IF(H68=\"معلم أول\",I68*50/100,IF(H68=\"معلم أول أ\",I68*25/100,IF(H68=\"خبير\",I68*25/100,IF(H68=\"كبير\",I68*25/100,))))))))","v":0},{"$f":"INT(IF(H68=\"عامل تعاقد\",I68*0.9166,IF(H68=\"معلم تعاقد\",I68*0.9166,0)))","v":0},{"$f":"INT(IF(H68=\"عامل تعاقد\",I68*0.5,IF(H68=\"معلم تعاقد\",I68*0.5,0)))","v":0},{"$f":"INT(IF(F68=1,I68*0.3333,0))","v":0},{"$f":"IF(H68=\"عامل تعاقد\",225,IF(H68=\"معلم تعاقد\",300,0))","v":0},null,null,null,null,null,null,{"$f":"IF($B68>0,(SUM(R68:AD68)-50),0)","v":0},{"$f":"IF(CB68<250,(CB68*0.006),IF(CB68<500,(CB68*0.0065),IF(CB68<1000,(CB68*0.007),IF(CB68<5000,(CB68*0.0075),IF(CB68>5000,(CB68*0.008),\" \" )))))","v":0},{"$f":"CEILING($CC68,0.05)","v":0},null,null,null,{"$f":"#VALUE!","v":{"$error":"#VALUE!"}},{"$f":"#VALUE!","v":{"$error":"#VALUE!"}}]
[66,null,0,null,null,0,null,null,null,null,null,null,null,null,null,null,0,null,null,null,null,null,null,null,null,null,0,null,null,null,null,null,null,null,null,null,null,null,null,null,null,null,null,null,null,null,null,null,null,null,null,null,null,null,null,null,null,null,null,null,null,null,null,"",{"$f":"IF(H69=\"عقد مميز\",I69*0/100,IF(H69=\"معلم تعاقد\",I69*0/100,IF(H69=\"معلم\",I69*50/100,IF(H69=\"معلم أول\",I69*50/100,IF(H69=\"معلم أول أ\",I69*50/100,IF(H69=\"خبير\",I69*50/100,IF(H69=\"كبير\",I69*50/100,)))))))","v":0},0,0,0,0,0,0,0,0,null,null,null,null,null,null,0,0,0,null,null,null,{"$f":"#VALUE!","v":{"$error":"#VALUE!"}},{"$f":"#VALUE!","v":{"$error":"#VALUE!"}}]
[67,null,0,null,null,0,null,null,null,null,null,null,null,null,null,null,0,null,null,null,null,null,null,null,null,null,0,null,null,null,null,null,null,null,null,null,null,null,null,null,null,null,null,null,null,null,null,null,null,null,null,null,null,null,null,null,null,null,null,null,null,null,null,"",0,0,0,0,0,0,0,0,0,null,null,null,null,null,null,0,0,0,null,null,null,{"$f":"#VALUE!","v":{"$error":"#VALUE!"}},{"$f":"#VALUE!","v":{"$error":"#VALUE!"}}]
[68,null,0,null,null,0,null,null,null,null,null,null,null,null,null,null,0,null,null,null,null,null,null,null,null,null,0,null,null,null,null,null,null,null,null,null,null,null,null,null,null,null,null,null,null,null,null,null,null,null,null,null,null,null,null,null,null,null,null,null,null,null,null,"",0,0,0,0,0,0,0,0,0,null,null,null,null,null,null,0,0,0,null,null,null,{"$f":"#VALUE!","v":{"$error":"#VALUE!"}},{"$f":"#VALUE!","v":{"$error":"#VALUE!"}}]
[69,null,0,null,null,0,null,null,null,null,null,null,null,null,null,null,0,null,null,null,null,null,null,null,null,null,0,null,null,null,null,null,null,null,null,null,null,null,null,null,null,null,null,null,null,null,null,null,null,null,null,null,null,null,null,null,null,null,null,null,null,null,null,"",0,0,0,0,0,0,0,0,0,null,null,null,null,null,null,0,0,0,null,null,null,{"$f":"#VALUE!","v":{"$error":"#VALUE!"}},{"$f":"#VALUE!","v":{"$error":"#VALUE!"}}]
[70,null,0,null,null,0,null,null,null,null,null,null,null,null,null,null,0,null,null,null,null,null,null,null,null,null,0,null,null,null,null,null,null,null,null,null,null,null,null,null,null,null,null,null,null,null,null,null,null,null,null,null,null,null,null,null,null,null,null,null,null,null,null,"",0,0,0,0,0,0,0,0,0,null,null,null,null,null,null,0,0,0,null,null,null,{"$f":"#VALUE!","v":{"$error":"#VALUE!"}},{"$f":"#VALUE!","v":{"$error":"#VALUE!"}}]
[71,null,0,null,null,0,null,null,null,null,null,null,null,null,null,null,0,null,null,null,null,null,null,null,null,null,0,null,null,null,null,null,null,null,null,null,null,null,null,null,null,null,null,null,null,null,null,null,null,null,null,null,null,null,null,null,null,null,null,null,null,null,null,"",0,0,0,0,0,0,0,0,0,null,null,null,null,null,null,0,0,0,null,null,null,{"$f":"#VALUE!","v":{"$error":"#VALUE!"}},{"$f":"#VALUE!","v":{"$error":"#VALUE!"}}]
[72,null,0,null,null,0,null,null,null,null,null,null,null,null,null,null,0,null,null,null,null,null,null,null,null,null,0,null,null,null,null,null,null,null,null,null,null,null,null,null,null,null,null,null,null,null,null,null,null,null,null,null,null,null,null,null,null,null,null,null,null,null,null,"",0,0,0,0,0,0,0,0,0,null,null,null,null,null,null,0,0,0,null,null,null,{"$f":"#VALUE!","v":{"$error":"#VALUE!"}},{"$f":"#VALUE!","v":{"$error":"#VALUE!"}}]
[73,null,0,null,null,0,null,null,null,null,null,null,null,null,null,null,0,null,null,null,null,null,null,null,null,null,0,null,null,null,null,null,null,null,null,null,null,null,null,null,null,null,null,null,null,null,null,null,null,null,null,null,null,null,null,null,null,null,null,null,null,null,null,"",0,0,0,0,0,0,0,0,0,null,null,null,null,null,null,0,0,0,null,null,null,{"$f":"#VALUE!","v":{"$error":"#VALUE!"}},{"$f":"#VALUE!","v":{"$error":"#VALUE!"}}]
[74,null,0,null,null,0,null,null,null,null,null,null,null,null,null,null,0,null,null,null,null,null,null,null,null,null,0,null,null,null,null,null,null,null,null,null,null,null,null,null,null,null,null,null,null,null,null,null,null,null,null,null,null,null,null,null,null,null,null,null,null,null,null,"",0,0,0,0,0,0,0,0,0,null,null,null,null,null,null,0,0,0,null,null,null,{"$f":"#VALUE!","v":{"$error":"#VALUE!"}},{"$f":"#VALUE!","v":{"$error":"#VALUE!"}}]
[75,null,0,null,null,0,null,null,null,null,null,null,null,null,null,null,0,null,null,null,null,null,null,null,null,null,0,null,null,null,null,null,null,null,null,null,null,null,null,null,null,null,null,null,null,null,null,null,null,null,null,null,null,null,null,null,null,null,null,null,null,null,null,"",0,0,0,0,0,0,0,0,0,null,null,null,null,null,null,0,0,0,null,null,null,{"$f":"#VALUE!","v":{"$error":"#VALUE!"}},{"$f":"#VALUE!","v":{"$error":"#VALUE!"}}]
[76,null,0,null,null,0,null,null,null,null,null,null,null,null,null,null,0,null,null,null,null,null,null,null,null,null,0,null,null,null,null,null,null,null,null,null,null,null,null,null,null,null,null,null,null,null,null,null,null,null,null,null,null,null,null,null,null,null,null,null,null,null,null,"",0,0,0,0,0,0,0,0,0,null,null,null,null,null,null,0,0,0,null,null,null,{"$f":"#VALUE!","v":{"$error":"#VALUE!"}},{"$f":"#VALUE!","v":{"$error":"#VALUE!"}}]
[77,null,0,null,null,0,null,null,null,null,null,null,null,null,null,null,0,null,null,null,null,null,null,null,null,null,0,null,null,null,null,null,null,null,null,null,null,null,null,null,null,null,null,null,null,null,null,null,null,null,null,null,null,null,null,null,null,null,null,null,null,null,null,"",0,0,0,0,0,0,0,0,0,null,null,null,null,null,null,0,0,0,null,null,null,{"$f":"#VALUE!","v":{"$error":"#VALUE!"}},{"$f":"#VALUE!","v":{"$error":"#VALUE!"}}]
[78,null,0,null,null,0,null,null,null,null,null,null,null,null,null,null,0,null,null,null,null,null,null,null,null,null,0,null,null,null,null,null,null,null,null,null,null,null,null,null,null,null,null,null,null,null,null,null,null,null,null,null,null,null,null,null,null,null,null,null,null,null,null,"",0,0,0,0,0,0,0,0,0,null,null,null,null,null,null,0,0,0,null,null,null,{"$f":"#VALUE!","v":{"$error":"#VALUE!"}},{"$f":"#VALUE!","v":{"$error":"#VALUE!"}}]
[79,null,0,null,null,0,null,null,null,null,null,null,null,null,null,null,0,null,null,null,null,null,null,null,null,null,0,null,null,null,null,null,null,null,null,null,null,null,null,null,null,null,null,null,null,null,null,null,null,null,null,null,null,null,null,null,null,null,null,null,null,null,null,"",0,0,0,0,0,0,0,0,0,null,null,null,null,null,null,0,0,0,null,null,null,{"$f":"#VALUE!","v":{"$error":"#VALUE!"}},{"$f":"#VALUE!","v":{"$error":"#VALUE!"}}]
[80,null,0,null,null,0,null,null,null,null,null,null,null,null,null,null,0,null,null,null,null,null,null,null,null,null,0,null,null,null,null,null,null,null,null,null,null,null,null,null,null,null,null,null,null,null,null,null,null,null,null,null,null,null,null,null,null,null,null,null,null,null,null,"",0,0,0,0,0,0,0,0,0,null,null,null,null,null,null,0,0,0,null,null,null,{"$f":"#VALUE!","v":{"$error":"#VALUE!"}},{"$f":"#VALUE!","v":{"$error":"#VALUE!"}}]
[81,null,0,null,null,0,null,null,null,null,null,null,null,null,null,null,0,null,null,null,null,null,null,null,null,null,0,null,null,null,null,null,null,null,null,null,null,null,null,null,null,null,null,null,null,null,null,null,null,null,null,null,null,null,null,null,null,null,null,null,null,null,null,"",0,0,0,0,0,0,0,0,0,null,null,null,null,null,null,0,0,0,null,null,null,{"$f":"#VALUE!","v":{"$error":"#VALUE!"}},{"$f":"#VALUE!","v":{"$error":"#VALUE!"}}]
[82,null,0,null,null,0,null,null,null,null,null,null,null,null,null,null,0,null,null,null,null,null,null,null,null,null,0,null,null,null,null,null,null,null,null,null,null,null,null,null,null,null,null,null,null,null,null,null,null,null,null,null,null,null,null,null,null,null,null,null,null,null,null,"",0,0,0,0,0,0,0,0,0,null,null,null,null,null,null,0,0,0,null,null,null,{"$f":"#VALUE!","v":{"$error":"#VALUE!"}},{"$f":"#VALUE!","v":{"$error":"#VALUE!"}}]
[83,null,0,null,null,0,null,null,null,null,null,null,null,null,null,null,0,null,null,null,null,null,null,null,null,null,0,null,null,null,null,null,null,null,null,null,null,null,null,null,null,null,null,null,null,null,null,null,null,null,null,null,null,null,null,null,null,null,null,null,null,null,null,"",0,0,0,0,0,0,0,0,0,null,null,null,null,null,null,0,0,0,null,null,null,{"$f":"#VALUE!","v":{"$error":"#VALUE!"}},{"$f":"#VALUE!","v":{"$error":"#VALUE!"}}]
[84,null,0,null,null,0,null,null,null,null,null,null,null,null,null,null,0,null,null,null,null,null,null,null,null,null,0,null,null,null,null,null,null,null,null,null,null,null,null,null,null,null,null,null,null,null,null,null,null,null,null,null,null,null,null,null,null,null,null,null,null,null,null,"",0,0,0,0,0,0,0,0,0,null,null,null,null,null,null,0,0,0,null,null,null,{"$f":"#VALUE!","v":{"$error":"#VALUE!"}},{"$f":"#VALUE!","v":{"$error":"#VALUE!"}}]
[85,null,0,null,null,0,null,null,null,null,null,null,null,null,null,null,0,null,null,null,null,null,null,null,null,null,0,null,null,null,null,null,null,null,null,null,null,null,null,null,null,null,null,null,null,null,null,null,null,null,null,null,null,null,null,null,null,null,null,null,null,null,null,"",0,0,0,0,0,0,0,0,0,null,null,null,null,null,null,0,0,0,null,null,null,{"$f":"#VALUE!","v":{"$error":"#VALUE!"}},{"$f":"#VALUE!","v":{"$error":"#VALUE!"}}]
[83,null,0,null,null,0,null,null,null,null,null,null,null,null,null,null,0,null,null,null,null,null,null,null,null,null,0,null,null,null,null,null,null,null,null,null,null,null,null,null,null,null,null,null,null,null,null,null,null,null,null,null,null,null,null,null,null,null,null,null,null,null,null,"",0,0,0,0,0,0,0,0,0,null,null,null,null,null,null,0,0,0,null,null,null,{"$f":"#VALUE!","v":{"$error":"#VALUE!"}},{"$f":"#VALUE!","v":{"$error":"#VALUE!"}}]
[84,null,0,null,null,0,null,null,null,null,null,null,null,null,null,null,0,null,null,null,null,null,null,null,null,null,0,null,null,null,null,null,null,null,null,null,null,null,null,null,null,null,null,null,null,null,null,null,null,null,null,null,null,null,null,null,null,null,null,null,null,null,null,"",0,0,0,0,0,0,0,0,0,null,null,null,null,null,null,0,0,0,null,null,null,{"$f":"#VALUE!","v":{"$error":"#VALUE!"}},{"$f":"#VALUE!","v":{"$error":"#VALUE!"}}]
[88,null,0,null,null,0,null,null,null,null,null,null,null,null,null,null,0,null,null,null,null,null,null,null,null,null,0,null,null,null,null,null,null,null,null,null,null,null,null,null,null,null,null,null,null,null,null,null,null,null,null,null,null,null,null,null,null,null,null,null,null,null,null,"",0,0,0,0,0,0,0,0,0,null,null,null,null,null,null,0,0,0,null,null,null,{"$f":"#VALUE!","v":{"$error":"#VALUE!"}},{"$f":"#VALUE!","v":{"$error":"#VALUE!"}}]
[89,null,0,null,null,0,null,null,null,null,null,null,null,null,null,null,0,null,null,null,null,null,null,null,null,null,0,null,null,null,null,null,null,null,null,null,null,null,null,null,null,null,null,null,null,null,null,null,null,null,null,null,null,null,null,null,null,null,null,null,null,null,null,"",0,0,0,0,0,0,0,0,0,null,null,null,null,null,null,0,0,0,null,null,null,{"$f":"#VALUE!","v":{"$error":"#VALUE!"}},{"$f":"#VALUE!","v":{"$error":"#VALUE!"}}]
[90,null,0,null,null,0,null,null,null,null,null,null,null,null,null,null,0,null,null,null,null,null,null,null,null,null,0,null,null,null,null,null,null,null,null,null,null,null,null,null,null,null,null,null,null,null,null,null,null,null,null,null,null,null,null,null,null,null,null,null,null,null,null,"",0,0,0,0,0,0,0,0,0,null,null,null,null,null,null,0,0,0,null,null,null,{"$f":"#VALUE!","v":{"$error":"#VALUE!"}},{"$f":"#VALUE!","v":{"$error":"#VALUE!"}}]
[91,null,0,null,null,0,null,null,null,null,null,null,null,null,null,null,0,null,null,null,null,null,null,null,null,null,0,null,null,null,null,null,null,null,null,null,null,null,null,null,null,null,null,null,null,null,null,null,null,null,null,null,null,null,null,null,null,null,null,null,null,null,null,"",0,0,0,0,0,0,0,0,0,null,null,null,null,null,null,0,0,0,null,null,null,{"$f":"#VALUE!","v":{"$error":"#VALUE!"}},{"$f":"#VALUE!","v":{"$error":"#VALUE!"}}]
[92,null,0,null,null,0,null,null,null,null,null,null,null,null,null,null,0,null,null,null,null,null,null,null,null,null,0,null,null,null,null,null,null,null,null,null,null,null,null,null,null,null,null,null,null,null,null,null,null,null,null,null,null,null,null,null,null,null,null,null,null,null,null,"",0,0,0,0,0,0,0,0,0,null,null,null,null,null,null,0,0,0,null,null,null,{"$f":"#VALUE!","v":{"$error":"#VALUE!"}},{"$f":"#VALUE!","v":{"$error":"#VALUE!"}}]
[93,null,0,null,null,0,null,null,null,null,null,null,null,null,null,null,0,null,null,null,null,null,null,null,null,null,0,null,null,null,null,null,null,null,null,null,null,null,null,null,null,null,null,null,null,null,null,null,null,null,null,null,null,null,null,null,null,null,null,null,null,null,null,"",0,0,0,0,0,0,0,0,0,null,null,null,null,null,null,0,0,0,null,null,null,{"$f":"#VALUE!","v":{"$error":"#VALUE!"}},{"$f":"#VALUE!","v":{"$error":"#VALUE!"}}]
[94,null,0,null,null,0,null,null,null,null,null,null,null,null,null,null,0,null,null,null,null,null,null,null,null,null,0,null,null,null,null,null,null,null,null,null,null,null,null,null,null,null,null,null,null,null,null,null,null,null,null,null,null,null,null,null,null,null,null,null,null,null,null,"",0,0,0,0,0,0,0,0,0,null,null,null,null,null,null,0,0,0,null,null,null,{"$f":"#VALUE!","v":{"$error":"#VALUE!"}},{"$f":"#VALUE!","v":{"$error":"#VALUE!"}}]
[95,null,0,null,null,0,null,null,null,null,null,null,null,null,null,null,0,null,null,null,null,null,null,null,null,null,0,null,null,null,null,null,null,null,null,null,null,null,null,null,null,null,null,null,null,null,null,null,null,null,null,null,null,null,null,null,null,null,null,null,null,null,null,"",0,0,0,0,0,0,0,0,0,null,null,null,null,null,null,0,0,0,null,null,null,{"$f":"#VALUE!","v":{"$error":"#VALUE!"}},{"$f":"#VALUE!","v":{"$error":"#VALUE!"}}]
[96,null,0,null,null,0,null,null,null,null,null,null,null,null,null,null,0,null,null,null,null,null,null,null,null,null,0,null,null,null,null,null,null,null,null,null,null,null,null,null,null,null,null,null,null,null,null,null,null,null,null,null,null,null,null,null,null,null,null,null,null,null,null,"",0,0,0,0,0,0,0,0,0,null,null,null,null,null,null,0,0,0,null,null,null,{"$f":"#VALUE!","v":{"$error":"#VALUE!"}},{"$f":"#VALUE!","v":{"$error":"#VALUE!"}}]
[97,null,0,null,null,0,null,null,null,null,null,null,null,null,null,null,0,null,null,null,null,null,null,null,null,null,0,null,null,null,null,null,null,null,null,null,null,null,null,null,null,null,null,null,null,null,null,null,null,null,null,null,null,null,null,null,null,null,null,null,null,null,null,"",0,0,0,0,0,0,0,0,0,null,null,null,null,null,null,0,0,0,null,null,null,{"$f":"#VALUE!","v":{"$error":"#VALUE!"}},{"$f":"#VALUE!","v":{"$error":"#VALUE!"}}]
[98,null,0,null,null,0,null,null,null,null,null,null,null,null,null,null,0,null,null,null,null,null,null,null,null,null,0,null,null,null,null,null,null,null,null,null,null,null,null,null,null,null,null,null,null,null,null,null,null,null,null,null,null,null,null,null,null,null,null,null,null,null,null,"",0,0,0,0,0,0,0,0,0,null,null,null,null,null,null,0,0,0,null,null,null,{"$f":"#VALUE!","v":{"$error":"#VALUE!"}},{"$f":"#VALUE!","v":{"$error":"#VALUE!"}}]
[99,null,0,null,null,0,null,null,null,null,null,null,null,null,null,null,0,null,null,null,null,null,null,null,null,null,0,null,null,null,null,null,null,null,null,null,null,null,null,null,null,null,null,null,null,null,null,null,null,null,null,null,null,null,null,null,null,null,null,null,null,null,null,"",0,0,0,0,0,0,0,0,0,null,null,null,null,null,null,0,0,0,null,null,null,{"$f":"#VALUE!","v":{"$error":"#VALUE!"}},{"$f":"#VALUE!","v":{"$error":"#VALUE!"}}]
[100,null,0,null,null,0,null,null,null,null,null,null,null,null,null,null,0,null,null,null,null,null,null,null,null,null,0,null,null,null,null,null,null,null,null,null,null,null,null,null,null,null,null,null,null,null,null,null,null,null,null,null,null,null,null,null,null,null,null,null,null,null,null,"",0,0,0,0,0,0,0,0,0,null,null,null,null,null,null,0,0,0,null,null,null,{"$f":"#VALUE!","v":{"$error":"#VALUE!"}},{"$f":"#VALUE!","v":{"$error":"#VALUE!"}}]
[null,null,0,null,null,0,null,null,null,null,null,null,null,null,null,null,0,null,null,null,null,null,null,null,null,null,0,null,null,null,null,null,null,null,null,null,null,null,null,null,null,null,null,null,null,null,null,null,null,null,null,null,null,null,null,null,null,null,null,null,null,null,null,"",0,0,0,0,0,0,0,0,0,null,null,null,null,null,null,0,0,0,null,null,null,{"$f":"#VALUE!","v":{"$error":"#VALUE!"}},{"$f":"#VALUE!","v":{"$error":"#VALUE!"}}]
[null,null,0,null,null,0,null,null,null,null,null,null,null,null,null,null,0,null,null,null,null,null,null,null,null,null,0,null,null,null,null,null,null,null,null,null,null,null,null,null,null,null,null,null,null,null,null,null,null,null,null,null,null,null,null,null,null,null,null,null,null,null,null,"",0,0,0,0,0,0,0,0,0,null,null,null,null,null,null,0,0,0,null,null,null,{"$f":"#VALUE!","v":{"$error":"#VALUE!"}},{"$f":"#VALUE!","v":{"$error":"#VALUE!"}}]
[null,null,0,null,null,0,null,null,null,null,null,null,null,null,null,null,0,null,null,null,null,null,null,null,null,null,0,null,null,null,null,null,null,null,null,null,null,null,null,null,null,null,null,null,null,null,null,null,null,null,null,null,null,null,null,null,null,null,null,null,null,null,null,"",0,0,0,0,0,0,0,0,0,null,null,null,null,null,null,0,0,0,null,null,null,{"$f":"#VALUE!","v":{"$error":"#VALUE!"}},{"$f":"#VALUE!","v":{"$error":"#VALUE!"}}]
[null,null,0,null,null,0,null,null,null,null,null,null,null,null,null,null,0,null,null,null,null,null,null,null,null,null,0,null,null,null,null,null,null,null,null,null,null,null,null,null,null,null,null,null,null,null,null,null,null,null,null,null,null,null,null,null,null,null,null,null,null,null,null,"",0,0,0,0,0,0,0,0,0,null,null,null,null,null,null,0,0,0,null,null,null,{"$f":"#VALUE!","v":{"$error":"#VALUE!"}},{"$f":"#VALUE!","v":{"$error":"#VALUE!"}}]
[null,null,0,null,null,0,null,null,null,null,null,null,null,null,null,null,0,null,null,null,null,null,null,null,null,null,0,null,null,null,null,null,null,null,null,null,null,null,null,null,null,null,null,null,null,null,null,null,null,null,null,null,null,null,null,null,null,null,null,null,null,null,null,"",0,0,0,0,0,0,0,0,0,null,null,null,null,null,null,0,0,0,null,null,null,{"$f":"#VALUE!","v":{"$error":"#VALUE!"}},{"$f":"#VALUE!","v":{"$error":"#VALUE!"}}]
[null,null,0,null,null,0,null,null,null,null,null,null,null,null,null,null,0,null,null,null,null,null,null,null,null,null,0,null,null,null,null,null,null,null,null,null,null,null,null,null,null,null,null,null,null,null,null,null,null,null,null,null,null,null,null,null,null,null,null,null,null,null,null,"",0,0,0,0,0,0,0,0,0,null,null,null,null,null,null,0,0,0,null,null,null,{"$f":"#VALUE!","v":{"$error":"#VALUE!"}},{"$f":"#VALUE!","v":{"$error":"#VALUE!"}}]
[null,null,0,null,null,0,null,null,null,null,null,null,null,null,null,null,0,null,null,null,null,null,null,null,null,null,0,null,null,null,null,null,null,null,null,null,null,null,null,null,null,null,null,null,null,null,null,null,null,null,null,null,null,null,null,null,null,null,null,null,null,null,null,"",0,0,0,0,0,0,0,0,0,null,null,null,null,null,null,0,0,0,null,null,null,{"$f":"#VALUE!","v":{"$error":"#VALUE!"}},{"$f":"#VALUE!","v":{"$error":"#VALUE!"}}]
[null,null,0,null,null,0,null,null,null,null,null,null,null,null,null,null,0,null,null,null,null,null,null,null,null,null,0,null,null,null,null,null,null,null,null,null,null,null,null,null,null,null,null,null,null,null,null,null,null,null,null,null,null,null,null,null,null,null,null,null,null,null,null,"",0,0,0,0,0,0,0,0,0,null,null,null,null,null,null,0,0,0,null,null,null,{"$f":"#VALUE!","v":{"$error":"#VALUE!"}},{"$f":"#VALUE!","v":{"$error":"#VALUE!"}}]
[null,null,0,null,null,0,null,null,null,null,null,null,null,null,null,null,0,null,null,null,null,null,null,null,null,null,0,null,null,null,null,null,null,null,null,null,null,null,null,null,null,null,null,null,null,null,null,null,null,null,null,null,null,null,null,null,null,null,null,null,null,null,null,"",0,0,0,0,0,0,0,0,0,null,null,null,null,null,null,0,0,0,null,null,null,{"$f":"#VALUE!","v":{"$error":"#VALUE!"}},{"$f":"#VALUE!","v":{"$error":"#VALUE!"}}]
[null,null,0,null,null,0,null,null,null,null,null,null,null,null,null,null,0,null,null,null,null,null,null,null,null,null,0,null,null,null,null,null,null,null,null,null,null,null,null,null,null,null,null,null,null,null,null,null,null,null,null,null,null,null,null,null,null,null,null,null,null,null,null,"",0,0,0,0,0,0,0,0,0,null,null,null,null,null,null,0,0,0,null,null,null,{"$f":"#VALUE!","v":{"$error":"#VALUE!"}},{"$f":"#VALUE!","v":{"$error":"#VALUE!"}}]
[null,null,0,null,null,0,null,null,null,null,null,null,null,null,null,null,0,null,null,null,null,null,null,null,null,null,0,null,null,null,null,null,null,null,null,null,null,null,null,null,null,null,null,null,null,null,null,null,null,null,null,null,null,null,null,null,null,null,null,null,null,null,null,"",0,0,0,0,0,0,0,0,0,null,null,null,null,null,null,0,0,0,null,null,null,{"$f":"#VALUE!","v":{"$error":"#VALUE!"}},{"$f":"#VALUE!","v":{"$error":"#VALUE!"}}]
[null,null,0,null,null,0,null,null,null,null,null,null,null,null,null,null,0,null,null,null,null,null,null,null,null,null,0,null,null,null,null,null,null,null,null,null,null,null,null,null,null,null,null,null,null,null,null,null,null,null,null,null,null,null,null,null,null,null,null,null,null,null,null,"",0,0,0,0,0,0,0,0,0,null,null,null,null,null,null,0,0,0,null,null,null,{"$f":"#VALUE!","v":{"$error":"#VALUE!"}},{"$f":"#VALUE!","v":{"$error":"#VALUE!"}}]
[null,null,0,null,null,0,null,null,null,null,null,null,null,null,null,null,0,null,null,null,null,null,null,null,null,null,0,null,null,null,null,null,null,null,null,null,null,null,null,null,null,null,null,null,null,null,null,null,null,null,null,null,null,null,null,null,null,null,null,null,null,null,null,"",0,0,0,0,0,0,0,0,0,null,null,null,null,null,null,0,0,0,null,null,null,{"$f":"#VALUE!","v":{"$error":"#VALUE!"}},{"$f":"#VALUE!","v":{"$error":"#VALUE!"}}]
[null,null,0,"غير نقابى",null,0,null,null,null,null,null,null,null,null,null,null,0,null,null,null,null,null,null,null,null,null,0,null,null,null,null,null,null,null,null,null,null,null,null,null,null,null,null,null,null,null,null,null,null,null,null,null,null,null,null,null,null,null,null,null,null,null,null,"",0,0,0,0,0,0,0,0,0,null,null,null,null,null,null,0,0,0,null,null,null,{"$f":"#VALUE!","v":{"$error":"#VALUE!"}},{"$f":"#VALUE!","v":{"$error":"#VALUE!"}}]
[null,null,0,null,null,0,null,null,null,null,null,null,null,null,null,null,0,null,null,null,null,null,null,null,null,null,0,null,null,null,null,null,null,null,null,null,null,null,null,null,null,null,null,null,null,null,null,null,null,null,null,null,null,null,null,null,null,null,null,null,null,null,null,"",0,0,0,0,0,0,0,0,0,null,null,null,null,null,null,0,0,0,null,null,null,{"$f":"#VALUE!","v":{"$error":"#VALUE!"}},{"$f":"#VALUE!","v":{"$error":"#VALUE!"}}]
[null,null,0,null,null,0,null,null,null,null,null,null,null,null,null,null,0,null,null,null,null,null,null,null,null,null,0,null,null,null,null,null,null,null,null,null,null,null,null,null,null,null,null,null,null,null,null,null,null,null,null,null,null,null,null,null,null,null,null,null,null,null,null,"",0,0,0,0,0,0,0,0,0,null,null,null,null,null,null,0,0,0,null,null,null,{"$f":"#VALUE!","v":{"$error":"#VALUE!"}},{"$f":"#VALUE!","v":{"$error":"#VALUE!"}}]
[null,null,0,null,null,0,null,null,null,null,null,null,null,null,null,null,0,null,null,null,null,null,null,null,null,null,0,null,null,null,null,null,null,null,null,null,null,null,null,null,null,null,null,null,null,null,null,null,null,null,null,null,null,null,null,null,null,null,null,null,null,null,null,"",0,0,0,0,0,0,0,0,0,null,null,null,null,null,null,0,0,0,null,null,null,{"$f":"#VALUE!","v":{"$error":"#VALUE!"}},{"$f":"#VALUE!","v":{"$error":"#VALUE!"}}]
[null,null,0,null,null,0,null,null,null,null,null,null,null,null,null,null,0,null,null,null,null,null,null,null,null,null,0,null,null,null,null,null,null,null,null,null,null,null,null,null,null,null,null,null,null,null,null,null,null,null,null,null,null,null,null,null,null,null,null,null,null,null,null,"",0,0,0,0,0,0,0,0,0,null,null,null,null,null,null,0,0,0,null,null,null,{"$f":"#VALUE!","v":{"$error":"#VALUE!"}},{"$f":"#VALUE!","v":{"$error":"#VALUE!"}}]
[null,null,0,null,null,0,null,null,null,null,null,null,null,null,null,null,0,null,null,null,null,null,null,null,null,null,0,null,null,null,null,null,null,null,null,null,null,null,null,null,null,null,null,null,null,null,null,null,null,null,null,null,null,null,null,null,null,null,null,null,null,null,null,"",0,0,0,0,0,0,0,0,0,null,null,null,null,null,null,0,0,0,null,null,null,{"$f":"#VALUE!","v":{"$error":"#VALUE!"}},{"$f":"#VALUE!","v":{"$error":"#VALUE!"}}]
[null,null,0,null,null,0,null,null,null,null,null,null,null,null,null,null,0,null,null,null,null,null,null,null,null,null,0,null,null,null,null,null,null,null,null,null,null,null,null,null,null,null,null,null,null,null,null,null,null,null,null,null,null,null,null,null,null,null,null,null,null,null,null,"",0,0,0,0,0,0,0,0,0,null,null,null,null,null,null,0,0,0,null,null,null,{"$f":"#VALUE!","v":{"$error":"#VALUE!"}},{"$f":"#VALUE!","v":{"$error":"#VALUE!"}}]
[null,null,0,null,null,0,null,null,null,null,null,null,null,null,null,null,0,null,null,null,null,null,null,null,null,null,0,null,null,null,null,null,null,null,null,null,null,null,null,null,null,null,null,null,null,null,null,null,null,null,null,null,null,null,null,null,null,null,null,null,null,null,null,"",0,0,0,0,0,0,0,0,0,null,null,null,null,null,null,0,0,0,null,null,null,{"$f":"#VALUE!","v":{"$error":"#VALUE!"}},{"$f":"#VALUE!","v":{"$error":"#VALUE!"}}]
[null,null,0,null,null,0,null,null,null,null,null,null,null,null,null,null,0,null,null,null,null,null,null,null,null,null,0,null,null,null,null,null,null,null,null,null,null,null,null,null,null,null,null,null,null,null,null,null,null,null,null,null,null,null,null,null,null,null,null,null,null,null,null,"",0,0,0,0,0,0,0,0,0,null,null,null,null,null,null,0,0,0,null,null,null,{"$f":"#VALUE!","v":{"$error":"#VALUE!"}},{"$f":"#VALUE!","v":{"$error":"#VALUE!"}}]
[null,null,0,null,null,0,null,null,null,null,null,null,null,null,null,null,0,null,null,null,null,null,null,null,null,null,0,null,null,null,null,null,null,null,null,null,null,null,null,null,null,null,null,null,null,null,null,null,null,null,null,null,null,null,null,null,null,null,null,null,null,null,null,"",0,0,0,0,0,0,0,0,0,null,null,null,null,null,null,0,0,0,null,null,null,{"$f":"#VALUE!","v":{"$error":"#VALUE!"}},{"$f":"#VALUE!","v":{"$error":"#VALUE!"}}]
[null,null,0,null,null,0,null,null,null,null,null,null,null,null,null,null,0,null,null,null,null,null,null,null,null,null,0,null,null,null,null,null,null,null,null,null,null,null,null,null,null,null,null,null,null,null,null,null,null,null,null,null,null,null,null,null,null,null,null,null,null,null,null,"",0,0,0,0,0,0,0,0,0,null,null,null,null,null,null,0,0,0,null,null,null,{"$f":"#VALUE!","v":{"$error":"#VALUE!"}},{"$f":"#VALUE!","v":{"$error":"#VALUE!"}}]
[null,null,0,null,null,0,null,null,null,null,null,null,null,null,null,null,0,null,null,null,null,null,null,null,null,null,0,null,null,null,null,null,null,null,null,null,null,null,null,null,null,null,null,null,null,null,null,null,null,null,null,null,null,null,null,null,null,null,null,null,null,null,null,"",0,0,0,0,0,0,0,0,0,null,null,null,null,null,null,0,0,0,null,null,null,{"$f":"#VALUE!","v":{"$error":"#VALUE!"}},{"$f":"#VALUE!","v":{"$error":"#VALUE!"}}]
[null,null,0,null,null,0,null,null,null,null,null,null,null,null,null,null,0,null,null,null,null,null,null,null,null,null,0,null,null,null,null,null,null,null,null,null,null,null,null,null,null,null,null,null,null,null,null,null,null,null,null,null,null,null,null,null,null,null,null,null,null,null,null,"",0,0,0,0,0,0,0,0,0,null,null,null,null,null,null,0,0,0,null,null,null,{"$f":"#VALUE!","v":{"$error":"#VALUE!"}},{"$f":"#VALUE!","v":{"$error":"#VALUE!"}}]
[null,null,0,null,null,0,null,null,null,null,null,null,null,null,null,null,0,null,null,null,null,null,null,null,null,null,0,null,null,null,null,null,null,null,null,null,null,null,null,null,null,null,null,null,null,null,null,null,null,null,null,null,null,null,null,null,null,null,null,null,null,null,null,"",0,0,0,0,0,0,0,0,0,null,null,null,null,null,null,0,0,0,null,null,null,{"$f":"#VALUE!","v":{"$error":"#VALUE!"}},{"$f":"#VALUE!","v":{"$error":"#VALUE!"}}]
[null,null,0,null,null,0,null,null,null,null,null,null,null,null,null,null,0,null,null,null,null,null,null,null,null,null,0,null,null,null,null,null,null,null,null,null,null,null,null,null,null,null,null,null,null,null,null,null,null,null,null,null,null,null,null,null,null,null,null,null,null,null,null,"",0,0,0,0,0,0,0,0,0,null,null,null,null,null,null,0,0,0,null,null,null,{"$f":"#VALUE!","v":{"$error":"#VALUE!"}},{"$f":"#VALUE!","v":{"$error":"#VALUE!"}}]
[null,null,{"$f":"IF(D132=\"نقابى\",1,IF(D132=\"حالة خاصة\",2,0))","v":0},null,null,0,null,null,null,null,null,null,null,null,null,null,{"$f":"IF(E132=\"متزوج\",2,IF(E132=\"متزوج+1\",4,IF(E132=\"متزوج+2\",6,IF(E132=\"متزوجة\",2,0))))","v":0},null,null,null,null,null,null,null,null,null,{"$f":"BU132","v":0},null,null,null,null,null,null,null,null,null,null,null,null,null,null,null,null,null,null,null,null,null,null,null,null,null,null,null,null,null,null,null,null,null,null,null,null,{"$f":"IF(H132=\"معلم مساعد\",10,IF(H132=\"معلم تعاقد\",10,IF(H132=\"معلم\",10,IF(H132=\"معلم أول\",10,IF(H132=\"معلم أول أ\",10,IF(H132=\"خبير\",10,IF(H132=\"كبير\",10,IF(H132=\"عامل تعاقد\",0,\"\"))))))))","v":""},0,{"$f":"IF(H132=\"معلم مساعد\",I132*50/100,IF(H132=\"عامل تعاقد\",I132*0/100,IF(H132=\"معلم\",I132*50/100,IF(H132=\"معلم أول\",I132*50/100,IF(H132=\"معلم أول أ\",I132*50/100,IF(H132=\"خبير\",I132*50/100,IF(H132=\"كبير\",I132*50/100,)))))))","v":0},{"$f":"IF(H132=\"إدارى\",I132*0,IF(H132=\"معلم مساعد\",I132*0/100,IF(H132=\"معلم\",I132*50/100,IF(H132=\"معلم أول\",I132*75/100,IF(H132=\"معلم أول أ\",I132*100/100,IF(H132=\"خبير\",I132*125/100,IF(H132=\"كبير\",I132*150/100,)))))))","v":0},{"$f":"INT(IF(H132=\"عامل تعاقد\",I132*25/100,IF(H132=\"معلم مساعد\",I132*25/100,IF(H132=\"معلم\",I132*25/100,IF(H132=\"معلم أول\",I132*25/100,IF(H132=\"معلم أول أ\",I132*25/100,IF(H132=\"خبير\",I132*25/100,IF(H132=\"كبير\",I132*25/100,))))))))","v":0},{"$f":"INT(IF(H132=\"إدارى\",J132*0/100,IF(H132=\"معلم مساعد\",I132*125/100,IF(H132=\"معلم\",I132*75/100,IF(H132=\"معلم أول\",I132*50/100,IF(H132=\"معلم أول أ\",I132*25/100,IF(H132=\"خبير\",I132*25/100,IF(H132=\"كبير\",I132*25/100,))))))))","v":0},{"$f":"INT(IF(H132=\"عامل تعاقد\",I132*0.9166,IF(H132=\"معلم تعاقد\",I132*0.9166,0)))","v":0},{"$f":"INT(IF(H132=\"عامل تعاقد\",I132*0.5,IF(H132=\"معلم تعاقد\",I132*0.5,0)))","v":0},{"$f":"INT(IF(F132=1,I132*0.3333,0))","v":0},{"$f":"IF(H132=\"عامل تعاقد\",225,IF(H132=\"معلم تعاقد\",300,0))","v":0},null,null,null,null,null,null,{"$f":"IF($B132>0,(SUM(R132:AD132)-50),0)","v":0},{"$f":"IF(CB132<250,(CB132*0.006),IF(CB132<500,(CB132*0.0065),IF(CB132<1000,(CB132*0.007),IF(CB132<5000,(CB132*0.0075),IF(CB132>5000,(CB132*0.008),\" \" )))))","v":0},{"$f":"CEILING($CC132,0.05)","v":0},null,null,null,{"$f":"#VALUE!","v":{"$error":"#VALUE!"}},{"$f":"#VALUE!","v":{"$error":"#VALUE!"}}]
[null,null,0,null,null,0,null,null,null,null,null,null,null,null,null,null,0,null,null,null,null,null,null,null,null,null,0,null,null,null,null,null,null,null,null,null,null,null,null,null,null,null,null,null,null,null,null,null,null,null,null,null,null,null,null,null,null,null,null,null,null,null,null,"",{"$f":"IF(H133=\"عقد مميز\",I133*0/100,IF(H133=\"معلم تعاقد\",I133*0/100,IF(H133=\"معلم\",I133*50/100,IF(H133=\"معلم أول\",I133*50/100,IF(H133=\"معلم أول أ\",I133*50/100,IF(H133=\"خبير\",I133*50/100,IF(H133=\"كبير\",I133*50/100,)))))))","v":0},0,0,0,0,0,0,0,0,null,null,null,null,null,null,0,0,0,null,null,null,{"$f":"#VALUE!","v":{"$error":"#VALUE!"}},{"$f":"#VALUE!","v":{"$error":"#VALUE!"}}]
[null,null,0,null,null,0,null,null,null,null,null,null,null,null,null,null,0,null,null,null,null,null,null,null,null,null,0,null,null,null,null,null,null,null,null,null,null,null,null,null,null,null,null,null,null,null,null,null,null,null,null,null,null,null,null,null,null,null,null,null,null,null,null,"",0,0,0,0,0,0,0,0,0,null,null,null,null,null,null,0,0,0,null,null,null,{"$f":"#VALUE!","v":{"$error":"#VALUE!"}},{"$f":"#VALUE!","v":{"$error":"#VALUE!"}}]
[null,null,0,null,null,0,null,null,null,null,null,null,null,null,null,null,0,null,null,null,null,null,null,null,null,null,0,null,null,null,null,null,null,null,null,null,null,null,null,null,null,null,null,null,null,null,null,null,null,null,null,null,null,null,null,null,null,null,null,null,null,null,null,"",0,0,0,0,0,0,0,0,0,null,null,null,null,null,null,0,0,0,null,null,null,{"$f":"#VALUE!","v":{"$error":"#VALUE!"}},{"$f":"#VALUE!","v":{"$error":"#VALUE!"}}]
[null,null,0,null,null,0,null,null,null,null,null,null,null,null,null,null,0,null,null,null,null,null,null,null,null,null,0,null,null,null,null,null,null,null,null,null,null,null,null,null,null,null,null,null,null,null,null,null,null,null,null,null,null,null,null,null,null,null,null,null,null,null,null,"",0,0,0,0,0,0,0,0,0,null,null,null,null,null,null,0,0,0,null,null,null,{"$f":"#VALUE!","v":{"$error":"#VALUE!"}},{"$f":"#VALUE!","v":{"$error":"#VALUE!"}}]
[null,null,0,null,null,0,null,null,null,null,null,null,null,null,null,null,0,null,null,null,null,null,null,null,null,null,0,null,null,null,null,null,null,null,null,null,null,null,null,null,null,null,null,null,null,null,null,null,null,null,null,null,null,null,null,null,null,null,null,null,null,null,null,"",0,0,0,0,0,0,0,0,0,null,null,null,null,null,null,0,0,0,null,null,null,{"$f":"#VALUE!","v":{"$error":"#VALUE!"}},{"$f":"#VALUE!","v":{"$error":"#VALUE!"}}]
[null,null,0,null,null,0,null,null,null,null,null,null,null,null,null,null,0,null,null,null,null,null,null,null,null,null,0,null,null,null,null,null,null,null,null,null,null,null,null,null,null,null,null,null,null,null,null,null,null,null,null,null,null,null,null,null,null,null,null,null,null,null,null,"",0,0,0,0,0,0,0,0,0,null,null,null,null,null,null,0,0,0,null,null,null,{"$f":"#VALUE!","v":{"$error":"#VALUE!"}},{"$f":"#VALUE!","v":{"$error":"#VALUE!"}}]
[null,null,0,null,null,0,null,null,null,null,null,null,null,null,null,null,0,null,null,null,null,null,null,null,null,null,0,null,null,null,null,null,null,null,null,null,null,null,null,null,null,null,null,null,null,null,null,null,null,null,null,null,null,null,null,null,null,null,null,null,null,null,null,"",0,0,0,0,0,0,0,0,0,null,null,null,null,null,null,0,0,0,null,null,null,{"$f":"#VALUE!","v":{"$error":"#VALUE!"}},{"$f":"#VALUE!","v":{"$error":"#VALUE!"}}]
[null,null,0,null,null,0,null,null,null,null,null,null,null,null,null,null,0,null,null,null,null,null,null,null,null,null,0,null,null,null,null,null,null,null,null,null,null,null,null,null,null,null,null,null,null,null,null,null,null,null,null,null,null,null,null,null,null,null,null,null,null,null,null,"",0,0,0,0,0,0,0,0,0,null,null,null,null,null,null,0,0,0,null,null,null,{"$f":"#VALUE!","v":{"$error":"#VALUE!"}},{"$f":"#VALUE!","v":{"$error":"#VALUE!"}}]
[null,null,0,null,null,0,null,null,null,null,null,null,null,null,null,null,0,null,null,null,null,null,null,null,null,null,0,null,null,null,null,null,null,null,null,null,null,null,null,null,null,null,null,null,null,null,null,null,null,null,null,null,null,null,null,null,null,null,null,null,null,null,null,"",0,0,0,0,0,0,0,0,0,null,null,null,null,null,null,0,0,0,null,null,null,{"$f":"#VALUE!","v":{"$error":"#VALUE!"}},{"$f":"#VALUE!","v":{"$error":"#VALUE!"}}]
[null,null,0,null,null,0,null,null,null,null,null,null,null,null,null,null,0,null,null,null,null,null,null,null,null,null,0,null,null,null,null,null,null,null,null,null,null,null,null,null,null,null,null,null,null,null,null,null,null,null,null,null,null,null,null,null,null,null,null,null,null,null,null,"",0,0,0,0,0,0,0,0,0,null,null,null,null,null,null,0,0,0,null,null,null,{"$f":"#VALUE!","v":{"$error":"#VALUE!"}},{"$f":"#VALUE!","v":{"$error":"#VALUE!"}}]
[null,null,0,null,null,0,null,null,null,null,null,null,null,null,null,null,0,null,null,null,null,null,null,null,null,null,0,null,null,null,null,null,null,null,null,null,null,null,null,null,null,null,null,null,null,null,null,null,null,null,null,null,null,null,null,null,null,null,null,null,null,null,null,"",0,0,0,0,0,0,0,0,0,null,null,null,null,null,null,0,0,0,null,null,null,{"$f":"#VALUE!","v":{"$error":"#VALUE!"}},{"$f":"#VALUE!","v":{"$error":"#VALUE!"}}]
[null,null,0,null,null,0,null,null,null,null,null,null,null,null,null,null,0,null,null,null,null,null,null,null,null,null,0,null,null,null,null,null,null,null,null,null,null,null,null,null,null,null,null,null,null,null,null,null,null,null,null,null,null,null,null,null,null,null,null,null,null,null,null,"",0,0,0,0,0,0,0,0,0,null,null,null,null,null,null,0,0,0,null,null,null,{"$f":"#VALUE!","v":{"$error":"#VALUE!"}},{"$f":"#VALUE!","v":{"$error":"#VALUE!"}}]
[null,null,0,null,null,0,null,null,null,null,null,null,null,null,null,null,0,null,null,null,null,null,null,null,null,null,0,null,null,null,null,null,null,null,null,null,null,null,null,null,null,null,null,null,null,null,null,null,null,null,null,null,null,null,null,null,null,null,null,null,null,null,null,"",0,0,0,0,0,0,0,0,0,null,null,null,null,null,null,0,0,0,null,null,null,{"$f":"#VALUE!","v":{"$error":"#VALUE!"}},{"$f":"#VALUE!","v":{"$error":"#VALUE!"}}]
[null,null,0,null,null,0,null,null,null,null,null,null,null,null,null,null,0,null,null,null,null,null,null,null,null,null,0,null,null,null,null,null,null,null,null,null,null,null,null,null,null,null,null,null,null,null,null,null,null,null,null,null,null,null,null,null,null,null,null,null,null,null,null,"",0,0,0,0,0,0,0,0,0,null,null,null,null,null,null,0,0,0,null,null,null,{"$f":"#VALUE!","v":{"$error":"#VALUE!"}},{"$f":"#VALUE!","v":{"$error":"#VALUE!"}}]
[null,null,0,null,null,0,null,null,null,null,null,null,null,null,null,null,0,null,null,null,null,null,null,null,null,null,0,null,null,null,null,null,null,null,null,null,null,null,null,null,null,null,null,null,null,null,null,null,null,null,null,null,null,null,null,null,null,null,null,null,null,null,null,"",0,0,0,0,0,0,0,0,0,null,null,null,null,null,null,0,0,0,null,null,null,{"$f":"#VALUE!","v":{"$error":"#VALUE!"}},{"$f":"#VALUE!","v":{"$error":"#VALUE!"}}]
[null,null,0,null,null,0,null,null,null,null,null,null,null,null,null,null,0,null,null,null,null,null,null,null,null,null,0,null,null,null,null,null,null,null,null,null,null,null,null,null,null,null,null,null,null,null,null,null,null,null,null,null,null,null,null,null,null,null,null,null,null,null,null,"",0,0,0,0,0,0,0,0,0,null,null,null,null,null,null,0,0,0,null,null,null,{"$f":"#VALUE!","v":{"$error":"#VALUE!"}},{"$f":"#VALUE!","v":{"$error":"#VALUE!"}}]
[null,null,0,null,null,0,null,null,null,null,null,null,null,null,null,null,0,null,null,null,null,null,null,null,null,null,0,null,null,null,null,null,null,null,null,null,null,null,null,null,null,null,null,null,null,null,null,null,null,null,null,null,null,null,null,null,null,null,null,null,null,null,null,"",0,0,0,0,0,0,0,0,0,null,null,null,null,null,null,0,0,0,null,null,null,{"$f":"#VALUE!","v":{"$error":"#VALUE!"}},{"$f":"#VALUE!","v":{"$error":"#VALUE!"}}]
[null,null,0,null,null,0,null,null,null,null,null,null,null,null,null,null,0,null,null,null,null,null,null,null,null,null,0,null,null,null,null,null,null,null,null,null,null,null,null,null,null,null,null,null,null,null,null,null,null,null,null,null,null,null,null,null,null,null,null,null,null,null,null,"",0,0,0,0,0,0,0,0,0,null,null,null,null,null,null,0,0,0,null,null,null,{"$f":"#VALUE!","v":{"$error":"#VALUE!"}},{"$f":"#VALUE!","v":{"$error":"#VALUE!"}}]
[null,null,0,null,null,0,null,null,null,null,null,null,null,null,null,null,0,null,null,null,null,null,null,null,null,null,0,null,null,null,null,null,null,null,null,null,null,null,null,null,null,null,null,null,null,null,null,null,null,null,null,null,null,null,null,null,null,null,null,null,null,null,null,"",0,0,0,0,0,0,0,0,0,null,null,null,null,null,null,0,0,0,null,null,null,{"$f":"#VALUE!","v":{"$error":"#VALUE!"}},{"$f":"#VALUE!","v":{"$error":"#VALUE!"}}]
[null,null,0,null,null,0,null,null,null,null,null,null,null,null,null,null,0,null,null,null,null,null,null,null,null,null,0,null,null,null,null,null,null,null,null,null,null,null,null,null,null,null,null,null,null,null,null,null,null,null,null,null,null,null,null,null,null,null,null,null,null,null,null,"",0,0,0,0,0,0,0,0,0,null,null,null,null,null,null,0,0,0,null,null,null,{"$f":"#VALUE!","v":{"$error":"#VALUE!"}},{"$f":"#VALUE!","v":{"$error":"#VALUE!"}}]
[null,null,0,null,null,0,null,null,null,null,null,null,null,null,null,null,0,null,null,null,null,null,null,null,null,null,0,null,null,null,null,null,null,null,null,null,null,null,null,null,null,null,null,null,null,null,null,null,null,null,null,null,null,null,null,null,null,null,null,null,null,null,null,"",0,0,0,0,0,0,0,0,0,null,null,null,null,null,null,0,0,0,null,null,null,{"$f":"#VALUE!","v":{"$error":"#VALUE!"}},{"$f":"#VALUE!","v":{"$error":"#VALUE!"}}]
[null,null,0,null,null,0,null,null,null,null,null,null,null,null,null,null,0,null,null,null,null,null,null,null,null,null,0,null,null,null,null,null,null,null,null,null,null,null,null,null,null,null,null,null,null,null,null,null,null,null,null,null,null,null,null,null,null,null,null,null,null,null,null,"",0,0,0,0,0,0,0,0,0,null,null,null,null,null,null,0,0,0,null,null,null,{"$f":"#VALUE!","v":{"$error":"#VALUE!"}},{"$f":"#VALUE!","v":{"$error":"#VALUE!"}}]
[null,null,0,null,null,0,null,null,null,null,null,null,null,null,null,null,0,null,null,null,null,null,null,null,null,null,0,null,null,null,null,null,null,null,null,null,null,null,null,null,null,null,null,null,null,null,null,null,null,null,null,null,null,null,null,null,null,null,null,null,null,null,null,"",0,0,0,0,0,0,0,0,0,null,null,null,null,null,null,0,0,0,null,null,null,{"$f":"#VALUE!","v":{"$error":"#VALUE!"}},{"$f":"#VALUE!","v":{"$error":"#VALUE!"}}]
[null,null,0,null,null,0,null,null,null,null,null,null,null,null,null,null,0,null,null,null,null,null,null,null,null,null,0,null,null,null,null,null,null,null,null,null,null,null,null,null,null,null,null,null,null,null,null,null,null,null,null,null,null,null,null,null,null,null,null,null,null,null,null,"",0,0,0,0,0,0,0,0,0,null,null,null,null,null,null,0,0,0,null,null,null,{"$f":"#VALUE!","v":{"$error":"#VALUE!"}},{"$f":"#VALUE!","v":{"$error":"#VALUE!"}}]
[null,null,0,null,null,0,null,null,null,null,null,null,null,null,null,null,0,null,null,null,null,null,null,null,null,null,0,null,null,null,null,null,null,null,null,null,null,null,null,null,null,null,null,null,null,null,null,null,null,null,null,null,null,null,null,null,null,null,null,null,null,null,null,"",0,0,0,0,0,0,0,0,0,null,null,null,null,null,null,0,0,0,null,null,null,{"$f":"#VALUE!","v":{"$error":"#VALUE!"}},{"$f":"#VALUE!","v":{"$error":"#VALUE!"}}]
[null,null,0,null,null,0,null,null,null,null,null,null,null,null,null,null,0,null,null,null,null,null,null,null,null,null,0,null,null,null,null,null,null,null,null,null,null,null,null,null,null,null,null,null,null,null,null,null,null,null,null,null,null,null,null,null,null,null,null,null,null,null,null,"",0,0,0,0,0,0,0,0,0,null,null,null,null,null,null,0,0,0,null,null,null,{"$f":"#VALUE!","v":{"$error":"#VALUE!"}},{"$f":"#VALUE!","v":{"$error":"#VALUE!"}}]
[null,null,0,null,null,0,null,null,null,null,null,null,null,null,null,null,0,null,null,null,null,null,null,null,null,null,0,null,null,null,null,null,null,null,null,null,null,null,null,null,null,null,null,null,null,null,null,null,null,null,null,null,null,null,null,null,null,null,null,null,null,null,null,"",0,0,0,0,0,0,0,0,0,null,null,null,null,null,null,0,0,0,null,null,null,{"$f":"#VALUE!","v":{"$error":"#VALUE!"}},{"$f":"#VALUE!","v":{"$error":"#VALUE!"}}]
[null,null,0,null,null,0,null,null,null,null,null,null,null,null,null,null,0,null,null,null,null,null,null,null,null,null,0,null,null,null,null,null,null,null,null,null,null,null,null,null,null,null,null,null,null,null,null,null,null,null,null,null,null,null,null,null,null,null,null,null,null,null,null,"",0,0,0,0,0,0,0,0,0,null,null,null,null,null,null,0,0,0,null,null,null,{"$f":"#VALUE!","v":{"$error":"#VALUE!"}},{"$f":"#VALUE!","v":{"$error":"#VALUE!"}}]
[null,null,0,null,null,0,null,null,null,null,null,null,null,null,null,null,0,null,null,null,null,null,null,null,null,null,0,null,null,null,null,null,null,null,null,null,null,null,null,null,null,null,null,null,null,null,null,null,null,null,null,null,null,null,null,null,null,null,null,null,null,null,null,"",0,0,0,0,0,0,0,0,0,null,null,null,null,null,null,0,0,0,null,null,null,{"$f":"#VALUE!","v":{"$error":"#VALUE!"}},{"$f":"#VALUE!","v":{"$error":"#VALUE!"}}]
[null,null,0,null,null,0,null,null,null,null,null,null,null,null,null,null,0,null,null,null,null,null,null,null,null,null,0,null,null,null,null,null,null,null,null,null,null,null,null,null,null,null,null,null,null,null,null,null,null,null,null,null,null,null,null,null,null,null,null,null,null,null,null,"",0,0,0,0,0,0,0,0,0,null,null,null,null,null,null,0,0,0,null,null,null,{"$f":"#VALUE!","v":{"$error":"#VALUE!"}},{"$f":"#VALUE!","v":{"$error":"#VALUE!"}}]
[null,null,0,null,null,0,null,null,null,null,null,null,null,null,null,null,0,null,null,null,null,null,null,null,null,null,0,null,null,null,null,null,null,null,null,null,null,null,null,null,null,null,null,null,null,null,null,null,null,null,null,null,null,null,null,null,null,null,null,null,null,null,null,"",0,0,0,0,0,0,0,0,0,null,null,null,null,null,null,0,0,0,null,null,null,{"$f":"#VALUE!","v":{"$error":"#VALUE!"}},{"$f":"#VALUE!","v":{"$error":"#VALUE!"}}]
[null,null,0,null,null,0,null,null,null,null,null,null,null,null,null,null,0,null,null,null,null,null,null,null,null,null,0,null,null,null,null,null,null,null,null,null,null,null,null,null,null,null,null,null,null,null,null,null,null,null,null,null,null,null,null,null,null,null,null,null,null,null,null,"",0,0,0,0,0,0,0,0,0,null,null,null,null,null,null,0,0,0,null,null,null,{"$f":"#VALUE!","v":{"$error":"#VALUE!"}},{"$f":"#VALUE!","v":{"$error":"#VALUE!"}}]
[null,null,0,null,null,0,null,null,null,null,null,null,null,null,null,null,0,null,null,null,null,null,null,null,null,null,0,null,null,null,null,null,null,null,null,null,null,null,null,null,null,null,null,null,null,null,null,null,null,null,null,null,null,null,null,null,null,null,null,null,null,null,null,"",0,0,0,0,0,0,0,0,0,null,null,null,null,null,null,0,0,0,null,null,null,{"$f":"#VALUE!","v":{"$error":"#VALUE!"}},{"$f":"#VALUE!","v":{"$error":"#VALUE!"}}]
[null,null,0,null,null,0,null,null,null,null,null,null,null,null,null,null,0,null,null,null,null,null,null,null,null,null,0,null,null,null,null,null,null,null,null,null,null,null,null,null,null,null,null,null,null,null,null,null,null,null,null,null,null,null,null,null,null,null,null,null,null,null,null,"",0,0,0,0,0,0,0,0,0,null,null,null,null,null,null,0,0,0,null,null,null,{"$f":"#VALUE!","v":{"$error":"#VALUE!"}},{"$f":"#VALUE!","v":{"$error":"#VALUE!"}}]
[null,null,0,null,null,0,null,null,null,null,null,null,null,null,null,null,0,null,null,null,null,null,null,null,null,null,0,null,null,null,null,null,null,null,null,null,null,null,null,null,null,null,null,null,null,null,null,null,null,null,null,null,null,null,null,null,null,null,null,null,null,null,null,"",0,0,0,0,0,0,0,0,0,null,null,null,null,null,null,0,0,0,null,null,null,{"$f":"#VALUE!","v":{"$error":"#VALUE!"}},{"$f":"#VALUE!","v":{"$error":"#VALUE!"}}]
[null,null,0,null,null,0,null,null,null,null,null,null,null,null,null,null,0,null,null,null,null,null,null,null,null,null,0,null,null,null,null,null,null,null,null,null,null,null,null,null,null,null,null,null,null,null,null,null,null,null,null,null,null,null,null,null,null,null,null,null,null,null,null,"",0,0,0,0,0,0,0,0,0,null,null,null,null,null,null,0,0,0,null,null,null,{"$f":"#VALUE!","v":{"$error":"#VALUE!"}},{"$f":"#VALUE!","v":{"$error":"#VALUE!"}}]
[null,null,0,null,null,0,null,null,null,null,null,null,null,null,null,null,0,null,null,null,null,null,null,null,null,null,0,null,null,null,null,null,null,null,null,null,null,null,null,null,null,null,null,null,null,null,null,null,null,null,null,null,null,null,null,null,null,null,null,null,null,null,null,"",0,0,0,0,0,0,0,0,0,null,null,null,null,null,null,0,0,0,null,null,null,{"$f":"#VALUE!","v":{"$error":"#VALUE!"}},{"$f":"#VALUE!","v":{"$error":"#VALUE!"}}]
[null,null,0,null,null,0,null,null,null,null,null,null,null,null,null,null,0,null,null,null,null,null,null,null,null,null,0,null,null,null,null,null,null,null,null,null,null,null,null,null,null,null,null,null,null,null,null,null,null,null,null,null,null,null,null,null,null,null,null,null,null,null,null,"",0,0,0,0,0,0,0,0,0,null,null,null,null,null,null,0,0,0,null,null,null,{"$f":"#VALUE!","v":{"$error":"#VALUE!"}},{"$f":"#VALUE!","v":{"$error":"#VALUE!"}}]
[null,null,0,null,null,0,null,null,null,null,null,null,null,null,null,null,0,null,null,null,null,null,null,null,null,null,0,null,null,null,null,null,null,null,null,null,null,null,null,null,null,null,null,null,null,null,null,null,null,null,null,null,null,null,null,null,null,null,null,null,null,null,null,"",0,0,0,0,0,0,0,0,0,null,null,null,null,null,null,0,0,0,null,null,null,{"$f":"#VALUE!","v":{"$error":"#VALUE!"}},{"$f":"#VALUE!","v":{"$error":"#VALUE!"}}]
[null,null,0,null,null,0,null,null,null,null,null,null,null,null,null,null,0,null,null,null,null,null,null,null,null,null,0,null,null,null,null,null,null,null,null,null,null,null,null,null,null,null,null,null,null,null,null,null,null,null,null,null,null,null,null,null,null,null,null,null,null,null,null,"",0,0,0,0,0,0,0,0,0,null,null,null,null,null,null,0,0,0,null,null,null,{"$f":"#VALUE!","v":{"$error":"#VALUE!"}},{"$f":"#VALUE!","v":{"$error":"#VALUE!"}}]
[null,null,0,null,null,0,null,null,null,null,null,null,null,null,null,null,0,null,null,null,null,null,null,null,null,null,0,null,null,null,null,null,null,null,null,null,null,null,null,null,null,null,null,null,null,null,null,null,null,null,null,null,null,null,null,null,null,null,null,null,null,null,null,"",0,0,0,0,0,0,0,0,0,null,null,null,null,null,null,0,0,0,null,null,null,{"$f":"#VALUE!","v":{"$error":"#VALUE!"}},{"$f":"#VALUE!","v":{"$error":"#VALUE!"}}]
[null,null,0,null,null,0,null,null,null,null,null,null,null,null,null,null,0,null,null,null,null,null,null,null,null,null,0,null,null,null,null,null,null,null,null,null,null,null,null,null,null,null,null,null,null,null,null,null,null,null,null,null,null,null,null,null,null,null,null,null,null,null,null,"",0,0,0,0,0,0,0,0,0,null,null,null,null,null,null,0,0,0,null,null,null,{"$f":"#VALUE!","v":{"$error":"#VALUE!"}},{"$f":"#VALUE!","v":{"$error":"#VALUE!"}}]
[null,null,0,null,null,0,null,null,null,null,null,null,null,null,null,null,0,null,null,null,null,null,null,null,null,null,0,null,null,null,null,null,null,null,null,null,null,null,null,null,null,null,null,null,null,null,null,null,null,null,null,null,null,null,null,null,null,null,null,null,null,null,null,"",0,0,0,0,0,0,0,0,0,null,null,null,null,null,null,0,0,0,null,null,null,{"$f":"#VALUE!","v":{"$error":"#VALUE!"}},{"$f":"#VALUE!","v":{"$error":"#VALUE!"}}]
[null,null,0,null,null,0,null,null,null,null,null,null,null,null,null,null,0,null,null,null,null,null,null,null,null,null,0,null,null,null,null,null,null,null,null,null,null,null,null,null,null,null,null,null,null,null,null,null,null,null,null,null,null,null,null,null,null,null,null,null,null,null,null,"",0,0,0,0,0,0,0,0,0,null,null,null,null,null,null,0,0,0,null,null,null,{"$f":"#VALUE!","v":{"$error":"#VALUE!"}},{"$f":"#VALUE!","v":{"$error":"#VALUE!"}}]
[null,null,0,null,null,0,null,null,null,null,null,null,null,null,null,null,0,null,null,null,null,null,null,null,null,null,0,null,null,null,null,null,null,null,null,null,null,null,null,null,null,null,null,null,null,null,null,null,null,null,null,null,null,null,null,null,null,null,null,null,null,null,null,"",0,0,0,0,0,0,0,0,0,null,null,null,null,null,null,0,0,0,null,null,null,{"$f":"#VALUE!","v":{"$error":"#VALUE!"}},{"$f":"#VALUE!","v":{"$error":"#VALUE!"}}]
[null,null,0,null,null,0,null,null,null,null,null,null,null,null,null,null,0,null,null,null,null,null,null,null,null,null,0,null,null,null,null,null,null,null,null,null,null,null,null,null,null,null,null,null,null,null,null,null,null,null,null,null,null,null,null,null,null,null,null,null,null,null,null,"",0,0,0,0,0,0,0,0,0,null,null,null,null,null,null,0,0,0,null,null,null,{"$f":"#VALUE!","v":{"$error":"#VALUE!"}},{"$f":"#VALUE!","v":{"$error":"#VALUE!"}}]
[null,null,0,null,null,0,null,null,null,null,null,null,null,null,null,null,0,null,null,null,null,null,null,null,null,null,0,null,null,null,null,null,null,null,null,null,null,null,null,null,null,null,null,null,null,null,null,null,null,null,null,null,null,null,null,null,null,null,null,null,null,null,null,"",0,0,0,0,0,0,0,0,0,null,null,null,null,null,null,0,0,0,null,null,null,{"$f":"#VALUE!","v":{"$error":"#VALUE!"}},{"$f":"#VALUE!","v":{"$error":"#VALUE!"}}]
[null,null,0,null,null,0,null,null,null,null,null,null,null,null,null,null,0,null,null,null,null,null,null,null,null,null,0,null,null,null,null,null,null,null,null,null,null,null,null,null,null,null,null,null,null,null,null,null,null,null,null,null,null,null,null,null,null,null,null,null,null,null,null,"",0,0,0,0,0,0,0,0,0,null,null,null,null,null,null,0,0,0,null,null,null,{"$f":"#VALUE!","v":{"$error":"#VALUE!"}},{"$f":"#VALUE!","v":{"$error":"#VALUE!"}}]
[null,null,0,null,null,0,null,null,null,null,null,null,null,null,null,null,0,null,null,null,null,null,null,null,null,null,0,null,null,null,null,null,null,null,null,null,null,null,null,null,null,null,null,null,null,null,null,null,null,null,null,null,null,null,null,null,null,null,null,null,null,null,null,"",0,0,0,0,0,0,0,0,0,null,null,null,null,null,null,0,0,0,null,null,null,{"$f":"#VALUE!","v":{"$error":"#VALUE!"}},{"$f":"#VALUE!","v":{"$error":"#VALUE!"}}]
[null,null,0,null,null,0,null,null,null,null,null,null,null,null,null,null,0,null,null,null,null,null,null,null,null,null,0,null,null,null,null,null,null,null,null,null,null,null,null,null,null,null,null,null,null,null,null,null,null,null,null,null,null,null,null,null,null,null,null,null,null,null,null,"",0,0,0,0,0,0,0,0,0,null,null,null,null,null,null,0,0,0,null,null,null,{"$f":"#VALUE!","v":{"$error":"#VALUE!"}},{"$f":"#VALUE!","v":{"$error":"#VALUE!"}}]
[null,null,0,null,null,0,null,null,null,null,null,null,null,null,null,null,0,null,null,null,null,null,null,null,null,null,0,null,null,null,null,null,null,null,null,null,null,null,null,null,null,null,null,null,null,null,null,null,null,null,null,null,null,null,null,null,null,null,null,null,null,null,null,"",0,0,0,0,0,0,0,0,0,null,null,null,null,null,null,0,0,0,null,null,null,{"$f":"#VALUE!","v":{"$error":"#VALUE!"}},{"$f":"#VALUE!","v":{"$error":"#VALUE!"}}]
[null,null,0,null,null,0,null,null,null,null,null,null,null,null,null,null,0,null,null,null,null,null,null,null,null,null,0,null,null,null,null,null,null,null,null,null,null,null,null,null,null,null,null,null,null,null,null,null,null,null,null,null,null,null,null,null,null,null,null,null,null,null,null,"",0,0,0,0,0,0,0,0,0,null,null,null,null,null,null,0,0,0,null,null,null,{"$f":"#VALUE!","v":{"$error":"#VALUE!"}},{"$f":"#VALUE!","v":{"$error":"#VALUE!"}}]
[null,null,0,null,null,0,null,null,null,null,null,null,null,null,null,null,0,null,null,null,null,null,null,null,null,null,0,null,null,null,null,null,null,null,null,null,null,null,null,null,null,null,null,null,null,null,null,null,null,null,null,null,null,null,null,null,null,null,null,null,null,null,null,"",0,0,0,0,0,0,0,0,0,null,null,null,null,null,null,0,0,0,null,null,null,{"$f":"#VALUE!","v":{"$error":"#VALUE!"}},{"$f":"#VALUE!","v":{"$error":"#VALUE!"}}]
[null,null,0,null,null,0,null,null,null,null,null,null,null,null,null,null,0,null,null,null,null,null,null,null,null,null,0,null,null,null,null,null,null,null,null,null,null,null,null,null,null,null,null,null,null,null,null,null,null,null,null,null,null,null,null,null,null,null,null,null,null,null,null,"",0,0,0,0,0,0,0,0,0,null,null,null,null,null,null,0,0,0,null,null,null,{"$f":"#VALUE!","v":{"$error":"#VALUE!"}},{"$f":"#VALUE!","v":{"$error":"#VALUE!"}}]
[null,null,0,null,null,0,null,null,null,null,null,null,null,null,null,null,0,null,null,null,null,null,null,null,null,null,0,null,null,null,null,null,null,null,null,null,null,null,null,null,null,null,null,null,null,null,null,null,null,null,null,null,null,null,null,null,null,null,null,null,null,null,null,"",0,0,0,0,0,0,0,0,0,null,null,null,null,null,null,0,0,0,null,null,null,{"$f":"#VALUE!","v":{"$error":"#VALUE!"}},{"$f":"#VALUE!","v":{"$error":"#VALUE!"}}]
[null,null,0,null,null,0,null,null,null,null,null,null,null,null,null,null,0,null,null,null,null,null,null,null,null,null,0,null,null,null,null,null,null,null,null,null,null,null,null,null,null,null,null,null,null,null,null,null,null,null,null,null,null,null,null,null,null,null,null,null,null,null,null,"",0,0,0,0,0,0,0,0,0,null,null,null,null,null,null,0,0,0,null,null,null,{"$f":"#VALUE!","v":{"$error":"#VALUE!"}},{"$f":"#VALUE!","v":{"$error":"#VALUE!"}}]
[null,null,0,null,null,0,null,null,null,null,null,null,null,null,null,null,0,null,null,null,null,null,null,null,null,null,0,null,null,null,null,null,null,null,null,null,null,null,null,null,null,null,null,null,null,null,null,null,null,null,null,null,null,null,null,null,null,null,null,null,null,null,null,"",0,0,0,0,0,0,0,0,0,null,null,null,null,null,null,0,0,0,null,null,null,{"$f":"#VALUE!","v":{"$error":"#VALUE!"}},{"$f":"#VALUE!","v":{"$error":"#VALUE!"}}]
[null,null,0,null,null,0,null,null,null,null,null,null,null,null,null,null,0,null,null,null,null,null,null,null,null,null,0,null,null,null,null,null,null,null,null,null,null,null,null,null,null,null,null,null,null,null,null,null,null,null,null,null,null,null,null,null,null,null,null,null,null,null,null,"",0,0,0,0,0,0,0,0,0,null,null,null,null,null,null,0,0,0,null,null,null,{"$f":"#VALUE!","v":{"$error":"#VALUE!"}},{"$f":"#VALUE!","v":{"$error":"#VALUE!"}}]
[null,null,0,null,null,0,null,null,null,null,null,null,null,null,null,null,0,null,null,null,null,null,null,null,null,null,0,null,null,null,null,null,null,null,null,null,null,null,null,null,null,null,null,null,null,null,null,null,null,null,null,null,null,null,null,null,null,null,null,null,null,null,null,"",0,0,0,0,0,0,0,0,0,null,null,null,null,null,null,0,0,0,null,null,null,{"$f":"#VALUE!","v":{"$error":"#VALUE!"}},{"$f":"#VALUE!","v":{"$error":"#VALUE!"}}]
[null,null,0,null,null,0,null,null,null,null,null,null,null,null,null,null,0,null,null,null,null,null,null,null,null,null,0,null,null,null,null,null,null,null,null,null,null,null,null,null,null,null,null,null,null,null,null,null,null,null,null,null,null,null,null,null,null,null,null,null,null,null,null,"",0,0,0,0,0,0,0,0,0,null,null,null,null,null,null,0,0,0,null,null,null,{"$f":"#VALUE!","v":{"$error":"#VALUE!"}},{"$f":"#VALUE!","v":{"$error":"#VALUE!"}}]
[null,null,0,null,null,0,null,null,null,null,null,null,null,null,null,null,0,null,null,null,null,null,null,null,null,null,0,null,null,null,null,null,null,null,null,null,null,null,null,null,null,null,null,null,null,null,null,null,null,null,null,null,null,null,null,null,null,null,null,null,null,null,null,"",0,0,0,0,0,0,0,0,0,null,null,null,null,null,null,0,0,0,null,null,null,{"$f":"#VALUE!","v":{"$error":"#VALUE!"}},{"$f":"#VALUE!","v":{"$error":"#VALUE!"}}]
[null,null,0,null,null,0,null,null,null,null,null,null,null,null,null,null,0,null,null,null,null,null,null,null,null,null,0,null,null,null,null,null,null,null,null,null,null,null,null,null,null,null,null,null,null,null,null,null,null,null,null,null,null,null,null,null,null,null,null,null,null,null,null,"",0,0,0,0,0,0,0,0,0,null,null,null,null,null,null,0,0,0,null,null,null,{"$f":"#VALUE!","v":{"$error":"#VALUE!"}},{"$f":"#VALUE!","v":{"$error":"#VALUE!"}}]
[null,null,0,null,null,0,null,null,null,null,null,null,null,null,null,null,0,null,null,null,null,null,null,null,null,null,0,null,null,null,null,null,null,null,null,null,null,null,null,null,null,null,null,null,null,null,null,null,null,null,null,null,null,null,null,null,null,null,null,null,null,null,null,"",0,0,0,0,0,0,0,0,0,null,null,null,null,null,null,0,0,0,null,null,null,{"$f":"#VALUE!","v":{"$error":"#VALUE!"}},{"$f":"#VALUE!","v":{"$error":"#VALUE!"}}]
[null,null,{"$f":"IF(D196=\"نقابى\",1,IF(D196=\"حالة خاصة\",2,0))","v":0},null,null,0,null,null,null,null,null,null,null,null,null,null,{"$f":"IF(E196=\"متزوج\",2,IF(E196=\"متزوج+1\",4,IF(E196=\"متزوج+2\",6,IF(E196=\"متزوجة\",2,0))))","v":0},null,null,null,null,null,null,null,null,null,{"$f":"BU196","v":0},null,null,null,null,null,null,null,null,null,null,null,null,null,null,null,null,null,null,null,null,null,null,null,null,null,null,null,null,null,null,null,null,null,null,null,null,{"$f":"IF(H196=\"معلم مساعد\",10,IF(H196=\"معلم تعاقد\",10,IF(H196=\"معلم\",10,IF(H196=\"معلم أول\",10,IF(H196=\"معلم أول أ\",10,IF(H196=\"خبير\",10,IF(H196=\"كبير\",10,IF(H196=\"عامل تعاقد\",0,\"\"))))))))","v":""},0,{"$f":"IF(H196=\"معلم مساعد\",I196*50/100,IF(H196=\"عامل تعاقد\",I196*0/100,IF(H196=\"معلم\",I196*50/100,IF(H196=\"معلم أول\",I196*50/100,IF(H196=\"معلم أول أ\",I196*50/100,IF(H196=\"خبير\",I196*50/100,IF(H196=\"كبير\",I196*50/100,)))))))","v":0},{"$f":"IF(H196=\"إدارى\",I196*0,IF(H196=\"معلم مساعد\",I196*0/100,IF(H196=\"معلم\",I196*50/100,IF(H196=\"معلم أول\",I196*75/100,IF(H196=\"معلم أول أ\",I196*100/100,IF(H196=\"خبير\",I196*125/100,IF(H196=\"كبير\",I196*150/100,)))))))","v":0},{"$f":"INT(IF(H196=\"عامل تعاقد\",I196*25/100,IF(H196=\"معلم مساعد\",I196*25/100,IF(H196=\"معلم\",I196*25/100,IF(H196=\"معلم أول\",I196*25/100,IF(H196=\"معلم أول أ\",I196*25/100,IF(H196=\"خبير\",I196*25/100,IF(H196=\"كبير\",I196*25/100,))))))))","v":0},{"$f":"INT(IF(H196=\"إدارى\",J196*0/100,IF(H196=\"معلم مساعد\",I196*125/100,IF(H196=\"معلم\",I196*75/100,IF(H196=\"معلم أول\",I196*50/100,IF(H196=\"معلم أول أ\",I196*25/100,IF(H196=\"خبير\",I196*25/100,IF(H196=\"كبير\",I196*25/100,))))))))","v":0},{"$f":"INT(IF(H196=\"عامل تعاقد\",I196*0.9166,IF(H196=\"معلم تعاقد\",I196*0.9166,0)))","v":0},{"$f":"INT(IF(H196=\"عامل تعاقد\",I196*0.5,IF(H196=\"معلم تعاقد\",I196*0.5,0)))","v":0},{"$f":"INT(IF(F196=1,I196*0.3333,0))","v":0},{"$f":"IF(H196=\"عامل تعاقد\",225,IF(H196=\"معلم تعاقد\",300,0))","v":0},null,null,null,null,null,null,{"$f":"IF($B196>0,(SUM(R196:AD196)-50),0)","v":0},{"$f":"IF(CB196<250,(CB196*0.006),IF(CB196<500,(CB196*0.0065),IF(CB196<1000,(CB196*0.007),IF(CB196<5000,(CB196*0.0075),IF(CB196>5000,(CB196*0.008),\" \" )))))","v":0},{"$f":"CEILING($CC196,0.05)","v":0},null,null,null,{"$f":"#VALUE!","v":{"$error":"#VALUE!"}},{"$f":"#VALUE!","v":{"$error":"#VALUE!"}}]
[null,null,0,null,null,0,null,null,null,null,null,null,null,null,null,null,0,null,null,null,null,null,null,null,null,null,0,null,null,null,null,null,null,null,null,null,null,null,null,null,null,null,null,null,null,null,null,null,null,null,null,null,null,null,null,null,null,null,null,null,null,null,null,"",{"$f":"IF(H197=\"عقد مميز\",I197*0/100,IF(H197=\"معلم تعاقد\",I197*0/100,IF(H197=\"معلم\",I197*50/100,IF(H197=\"معلم أول\",I197*50/100,IF(H197=\"معلم أول أ\",I197*50/100,IF(H197=\"خبير\",I197*50/100,IF(H197=\"كبير\",I197*50/100,)))))))","v":0},0,0,0,0,0,0,0,0,null,null,null,null,null,null,0,0,0,null,null,null,{"$f":"#VALUE!","v":{"$error":"#VALUE!"}},{"$f":"#VALUE!","v":{"$error":"#VALUE!"}}]
[null,null,0,null,null,0,null,null,null,null,null,null,null,null,null,null,0,null,null,null,null,null,null,null,null,null,0,null,null,null,null,null,null,null,null,null,null,null,null,null,null,null,null,null,null,null,null,null,null,null,null,null,null,null,null,null,null,null,null,null,null,null,null,"",0,0,0,0,0,0,0,0,0,null,null,null,null,null,null,0,0,0,null,null,null,{"$f":"#VALUE!","v":{"$error":"#VALUE!"}},{"$f":"#VALUE!","v":{"$error":"#VALUE!"}}]
[null,null,0,null,null,0,null,null,null,null,null,null,null,null,null,null,0,null,null,null,null,null,null,null,null,null,0,null,null,null,null,null,null,null,null,null,null,null,null,null,null,null,null,null,null,null,null,null,null,null,null,null,null,null,null,null,null,null,null,null,null,null,null,"",0,0,0,0,0,0,0,0,0,null,null,null,null,null,null,0,0,0,null,null,null,{"$f":"#VALUE!","v":{"$error":"#VALUE!"}},{"$f":"#VALUE!","v":{"$error":"#VALUE!"}}]
[null,null,0,null,null,0,null,null,null,null,null,null,null,null,null,null,0,null,null,null,null,null,null,null,null,null,0,null,null,null,null,null,null,null,null,null,null,null,null,null,null,null,null,null,null,null,null,null,null,null,null,null,null,null,null,null,null,null,null,null,null,null,null,"",0,0,0,0,0,0,0,0,0,null,null,null,null,null,null,0,0,0,null,null,null,{"$f":"#VALUE!","v":{"$error":"#VALUE!"}},{"$f":"#VALUE!","v":{"$error":"#VALUE!"}}]
[null,null,0,null,null,0,null,null,null,null,null,null,null,null,null,null,0,null,null,null,null,null,null,null,null,null,0,null,null,null,null,null,null,null,null,null,null,null,null,null,null,null,null,null,null,null,null,null,null,null,null,null,null,null,null,null,null,null,null,null,null,null,null,"",0,0,0,0,0,0,0,0,0,null,null,null,null,null,null,0,0,0,null,null,null,{"$f":"#VALUE!","v":{"$error":"#VALUE!"}},{"$f":"#VALUE!","v":{"$error":"#VALUE!"}}]
[null,null,0,null,null,0,null,null,null,null,null,null,null,null,null,null,0,null,null,null,null,null,null,null,null,null,0,null,null,null,null,null,null,null,null,null,null,null,null,null,null,null,null,null,null,null,null,null,null,null,null,null,null,null,null,null,null,null,null,null,null,null,null,"",0,0,0,0,0,0,0,0,0,null,null,null,null,null,null,0,0,0,null,null,null,{"$f":"#VALUE!","v":{"$error":"#VALUE!"}},{"$f":"#VALUE!","v":{"$error":"#VALUE!"}}]
[null,null,0,null,null,0,null,null,null,null,null,null,null,null,null,null,0,null,null,null,null,null,null,null,null,null,0,null,null,null,null,null,null,null,null,null,null,null,null,null,null,null,null,null,null,null,null,null,null,null,null,null,null,null,null,null,null,null,null,null,null,null,null,"",0,0,0,0,0,0,0,0,0,null,null,null,null,null,null,0,0,0,null,null,null,{"$f":"#VALUE!","v":{"$error":"#VALUE!"}},{"$f":"#VALUE!","v":{"$error":"#VALUE!"}}]
[null,null,0,null,null,0,null,null,null,null,null,null,null,null,null,null,0,null,null,null,null,null,null,null,null,null,0,null,null,null,null,null,null,null,null,null,null,null,null,null,null,null,null,null,null,null,null,null,null,null,null,null,null,null,null,null,null,null,null,null,null,null,null,"",0,0,0,0,0,0,0,0,0,null,null,null,null,null,null,0,0,0,null,null,null,{"$f":"#VALUE!","v":{"$error":"#VALUE!"}},{"$f":"#VALUE!","v":{"$error":"#VALUE!"}}]
[null,null,0,null,null,0,null,null,null,null,null,null,null,null,null,null,0,null,null,null,null,null,null,null,null,null,0,null,null,null,null,null,null,null,null,null,null,null,null,null,null,null,null,null,null,null,null,null,null,null,null,null,null,null,null,null,null,null,null,null,null,null,null,"",0,0,0,0,0,0,0,0,0,null,null,null,null,null,null,0,0,0,null,null,null,{"$f":"#VALUE!","v":{"$error":"#VALUE!"}},{"$f":"#VALUE!","v":{"$error":"#VALUE!"}}]
[null,null,0,null,null,0,null,null,null,null,null,null,null,null,null,null,0,null,null,null,null,null,null,null,null,null,0,null,null,null,null,null,null,null,null,null,null,null,null,null,null,null,null,null,null,null,null,null,null,null,null,null,null,null,null,null,null,null,null,null,null,null,null,"",0,0,0,0,0,0,0,0,0,null,null,null,null,null,null,0,0,0,null,null,null,{"$f":"#VALUE!","v":{"$error":"#VALUE!"}},{"$f":"#VALUE!","v":{"$error":"#VALUE!"}}]
[null,null,0,null,null,0,null,null,null,null,null,null,null,null,null,null,0,null,null,null,null,null,null,null,null,null,0,null,null,null,null,null,null,null,null,null,null,null,null,null,null,null,null,null,null,null,null,null,null,null,null,null,null,null,null,null,null,null,null,null,null,null,null,"",0,0,0,0,0,0,0,0,0,null,null,null,null,null,null,0,0,0,null,null,null,{"$f":"#VALUE!","v":{"$error":"#VALUE!"}},{"$f":"#VALUE!","v":{"$error":"#VALUE!"}}]
[null,null,0,null,null,0,null,null,null,null,null,null,null,null,null,null,0,null,null,null,null,null,null,null,null,null,0,null,null,null,null,null,null,null,null,null,null,null,null,null,null,null,null,null,null,null,null,null,null,null,null,null,null,null,null,null,null,null,null,null,null,null,null,"",0,0,0,0,0,0,0,0,0,null,null,null,null,null,null,0,0,0,null,null,null,{"$f":"#VALUE!","v":{"$error":"#VALUE!"}},{"$f":"#VALUE!","v":{"$error":"#VALUE!"}}]
[null,null,0,null,null,0,null,null,null,null,null,null,null,null,null,null,0,null,null,null,null,null,null,null,null,null,0,null,null,null,null,null,null,null,null,null,null,null,null,null,null,null,null,null,null,null,null,null,null,null,null,null,null,null,null,null,null,null,null,null,null,null,null,"",0,0,0,0,0,0,0,0,0,null,null,null,null,null,null,0,0,0,null,null,null,{"$f":"#VALUE!","v":{"$error":"#VALUE!"}},{"$f":"#VALUE!","v":{"$error":"#VALUE!"}}]
[null,null,0,null,null,0,null,null,null,null,null,null,null,null,null,null,0,null,null,null,null,null,null,null,null,null,0,null,null,null,null,null,null,null,null,null,null,null,null,null,null,null,null,null,null,null,null,null,null,null,null,null,null,null,null,null,null,null,null,null,null,null,null,"",0,0,0,0,0,0,0,0,0,null,null,null,null,null,null,0,0,0,null,null,null,{"$f":"#VALUE!","v":{"$error":"#VALUE!"}},{"$f":"#VALUE!","v":{"$error":"#VALUE!"}}]
[null,null,0,null,null,0,null,null,null,null,null,null,null,null,null,null,0,null,null,null,null,null,null,null,null,null,0,null,null,null,null,null,null,null,null,null,null,null,null,null,null,null,null,null,null,null,null,null,null,null,null,null,null,null,null,null,null,null,null,null,null,null,null,"",0,0,0,0,0,0,0,0,0,null,null,null,null,null,null,0,0,0,null,null,null,{"$f":"#VALUE!","v":{"$error":"#VALUE!"}},{"$f":"#VALUE!","v":{"$error":"#VALUE!"}}]
[null,null,0,null,null,0,null,null,null,null,null,null,null,null,null,null,0,null,null,null,null,null,null,null,null,null,0,null,null,null,null,null,null,null,null,null,null,null,null,null,null,null,null,null,null,null,null,null,null,null,null,null,null,null,null,null,null,null,null,null,null,null,null,"",0,0,0,0,0,0,0,0,0,null,null,null,null,null,null,0,0,0,null,null,null,{"$f":"#VALUE!","v":{"$error":"#VALUE!"}},{"$f":"#VALUE!","v":{"$error":"#VALUE!"}}]
[null,null,0,null,null,0,null,null,null,null,null,null,null,null,null,null,0,null,null,null,null,null,null,null,null,null,0,null,null,null,null,null,null,null,null,null,null,null,null,null,null,null,null,null,null,null,null,null,null,null,null,null,null,null,null,null,null,null,null,null,null,null,null,"",0,0,0,0,0,0,0,0,0,null,null,null,null,null,null,0,0,0,null,null,null,{"$f":"#VALUE!","v":{"$error":"#VALUE!"}},{"$f":"#VALUE!","v":{"$error":"#VALUE!"}}]
[null,null,0,null,null,0,null,null,null,null,null,null,null,null,null,null,0,null,null,null,null,null,null,null,null,null,0,null,null,null,null,null,null,null,null,null,null,null,null,null,null,null,null,null,null,null,null,null,null,null,null,null,null,null,null,null,null,null,null,null,null,null,null,"",0,0,0,0,0,0,0,0,0,null,null,null,null,null,null,0,0,0,null,null,null,{"$f":"#VALUE!","v":{"$error":"#VALUE!"}},{"$f":"#VALUE!","v":{"$error":"#VALUE!"}}]
[null,null,0,null,null,0,null,null,null,null,null,null,null,null,null,null,0,null,null,null,null,null,null,null,null,null,0,null,null,null,null,null,null,null,null,null,null,null,null,null,null,null,null,null,null,null,null,null,null,null,null,null,null,null,null,null,null,null,null,null,null,null,null,"",0,0,0,0,0,0,0,0,0,null,null,null,null,null,null,0,0,0,null,null,null,{"$f":"#VALUE!","v":{"$error":"#VALUE!"}},{"$f":"#VALUE!","v":{"$error":"#VALUE!"}}]
[null,null,0,null,null,0,null,null,null,null,null,null,null,null,null,null,0,null,null,null,null,null,null,null,null,null,0,null,null,null,null,null,null,null,null,null,null,null,null,null,null,null,null,null,null,null,null,null,null,null,null,null,null,null,null,null,null,null,null,null,null,null,null,"",0,0,0,0,0,0,0,0,0,null,null,null,null,null,null,0,0,0,null,null,null,{"$f":"#VALUE!","v":{"$error":"#VALUE!"}},{"$f":"#VALUE!","v":{"$error":"#VALUE!"}}]
[null,null,0,null,null,0,null,null,null,null,null,null,null,null,null,null,0,null,null,null,null,null,null,null,null,null,0,null,null,null,null,null,null,null,null,null,null,null,null,null,null,null,null,null,null,null,null,null,null,null,null,null,null,null,null,null,null,null,null,null,null,null,null,"",0,0,0,0,0,0,0,0,0,null,null,null,null,null,null,0,0,0,null,null,null,{"$f":"#VALUE!","v":{"$error":"#VALUE!"}},{"$f":"#VALUE!","v":{"$error":"#VALUE!"}}]
[null,null,0,null,null,0,null,null,null,null,null,null,null,null,null,null,0,null,null,null,null,null,null,null,null,null,0,null,null,null,null,null,null,null,null,null,null,null,null,null,null,null,null,null,null,null,null,null,null,null,null,null,null,null,null,null,null,null,null,null,null,null,null,"",0,0,0,0,0,0,0,0,0,null,null,null,null,null,null,0,0,0,null,null,null,{"$f":"#VALUE!","v":{"$error":"#VALUE!"}},{"$f":"#VALUE!","v":{"$error":"#VALUE!"}}]
[null,null,0,null,null,0,null,null,null,null,null,null,null,null,null,null,0,null,null,null,null,null,null,null,null,null,0,null,null,null,null,null,null,null,null,null,null,null,null,null,null,null,null,null,null,null,null,null,null,null,null,null,null,null,null,null,null,null,null,null,null,null,null,"",0,0,0,0,0,0,0,0,0,null,null,null,null,null,null,0,0,0,null,null,null,{"$f":"#VALUE!","v":{"$error":"#VALUE!"}},{"$f":"#VALUE!","v":{"$error":"#VALUE!"}}]
[null,null,0,null,null,0,null,null,null,null,null,null,null,null,null,null,0,null,null,null,null,null,null,null,null,null,0,null,null,null,null,null,null,null,null,null,null,null,null,null,null,null,null,null,null,null,null,null,null,null,null,null,null,null,null,null,null,null,null,null,null,null,null,"",0,0,0,0,0,0,0,0,0,null,null,null,null,null,null,0,0,0,null,null,null,{"$f":"#VALUE!","v":{"$error":"#VALUE!"}},{"$f":"#VALUE!","v":{"$error":"#VALUE!"}}]
[null,null,0,null,null,0,null,null,null,null,null,null,null,null,null,null,0,null,null,null,null,null,null,null,null,null,0,null,null,null,null,null,null,null,null,null,null,null,null,null,null,null,null,null,null,null,null,null,null,null,null,null,null,null,null,null,null,null,null,null,null,null,null,"",0,0,0,0,0,0,0,0,0,null,null,null,null,null,null,0,0,0,null,null,null,{"$f":"#VALUE!","v":{"$error":"#VALUE!"}},{"$f":"#VALUE!","v":{"$error":"#VALUE!"}}]
[null,null,0,null,null,0,null,null,null,null,null,null,null,null,null,null,0,null,null,null,null,null,null,null,null,null,0,null,null,null,null,null,null,null,null,null,null,null,null,null,null,null,null,null,null,null,null,null,null,null,null,null,null,null,null,null,null,null,null,null,null,null,null,"",0,0,0,0,0,0,0,0,0,null,null,null,null,null,null,0,0,0,null,null,null,{"$f":"#VALUE!","v":{"$error":"#VALUE!"}},{"$f":"#VALUE!","v":{"$error":"#VALUE!"}}]
[null,null,0,null,null,0,null,null,null,null,null,null,null,null,null,null,0,null,null,null,null,null,null,null,null,null,0,null,null,null,null,null,null,null,null,null,null,null,null,null,null,null,null,null,null,null,null,null,null,null,null,null,null,null,null,null,null,null,null,null,null,null,null,"",0,0,0,0,0,0,0,0,0,null,null,null,null,null,null,0,0,0,null,null,null,{"$f":"#VALUE!","v":{"$error":"#VALUE!"}},{"$f":"#VALUE!","v":{"$error":"#VALUE!"}}]
[null,null,0,null,null,0,null,null,null,null,null,null,null,null,null,null,0,null,null,null,null,null,null,null,null,null,0,null,null,null,null,null,null,null,null,null,null,null,null,null,null,null,null,null,null,null,null,null,null,null,null,null,null,null,null,null,null,null,null,null,null,null,null,"",0,0,0,0,0,0,0,0,0,null,null,null,null,null,null,0,0,0,null,null,null,{"$f":"#VALUE!","v":{"$error":"#VALUE!"}},{"$f":"#VALUE!","v":{"$error":"#VALUE!"}}]
[null,null,0,null,null,0,null,null,null,null,null,null,null,null,null,null,0,null,null,null,null,null,null,null,null,null,0,null,null,null,null,null,null,null,null,null,null,null,null,null,null,null,null,null,null,null,null,null,null,null,null,null,null,null,null,null,null,null,null,null,null,null,null,"",0,0,0,0,0,0,0,0,0,null,null,null,null,null,null,0,0,0,null,null,null,{"$f":"#VALUE!","v":{"$error":"#VALUE!"}},{"$f":"#VALUE!","v":{"$error":"#VALUE!"}}]
[null,null,0,null,null,0,null,null,null,null,null,null,null,null,null,null,0,null,null,null,null,null,null,null,null,null,0,null,null,null,null,null,null,null,null,null,null,null,null,null,null,null,null,null,null,null,null,null,null,null,null,null,null,null,null,null,null,null,null,null,null,null,null,"",0,0,0,0,0,0,0,0,0,null,null,null,null,null,null,0,0,0,null,null,null,{"$f":"#VALUE!","v":{"$error":"#VALUE!"}},{"$f":"#VALUE!","v":{"$error":"#VALUE!"}}]
[null,null,0,null,null,0,null,null,null,null,null,null,null,null,null,null,0,null,null,null,null,null,null,null,null,null,0,null,null,null,null,null,null,null,null,null,null,null,null,null,null,null,null,null,null,null,null,null,null,null,null,null,null,null,null,null,null,null,null,null,null,null,null,"",0,0,0,0,0,0,0,0,0,null,null,null,null,null,null,0,0,0,null,null,null,{"$f":"#VALUE!","v":{"$error":"#VALUE!"}},{"$f":"#VALUE!","v":{"$error":"#VALUE!"}}]
[null,null,0,null,null,0,null,null,null,null,null,null,null,null,null,null,0,null,null,null,null,null,null,null,null,null,0,null,null,null,null,null,null,null,null,null,null,null,null,null,null,null,null,null,null,null,null,null,null,null,null,null,null,null,null,null,null,null,null,null,null,null,null,"",0,0,0,0,0,0,0,0,0,null,null,null,null,null,null,0,0,0,null,null,null,{"$f":"#VALUE!","v":{"$error":"#VALUE!"}},{"$f":"#VALUE!","v":{"$error":"#VALUE!"}}]
[null,null,0,null,null,0,null,null,null,null,null,null,null,null,null,null,0,null,null,null,null,null,null,null,null,null,0,null,null,null,null,null,null,null,null,null,null,null,null,null,null,null,null,null,null,null,null,null,null,null,null,null,null,null,null,null,null,null,null,null,null,null,null,"",0,0,0,0,0,0,0,0,0,null,null,null,null,null,null,0,0,0,null,null,null,{"$f":"#VALUE!","v":{"$error":"#VALUE!"}},{"$f":"#VALUE!","v":{"$error":"#VALUE!"}}]
[null,null,0,null,null,0,null,null,null,null,null,null,null,null,null,null,0,null,null,null,null,null,null,null,null,null,0,null,null,null,null,null,null,null,null,null,null,null,null,null,null,null,null,null,null,null,null,null,null,null,null,null,null,null,null,null,null,null,null,null,null,null,null,"",0,0,0,0,0,0,0,0,0,null,null,null,null,null,null,0,0,0,null,null,null,{"$f":"#VALUE!","v":{"$error":"#VALUE!"}},{"$f":"#VALUE!","v":{"$error":"#VALUE!"}}]
[null,null,0,null,null,0,null,null,null,null,null,null,null,null,null,null,0,null,null,null,null,null,null,null,null,null,0,null,null,null,null,null,null,null,null,null,null,null,null,null,null,null,null,null,null,null,null,null,null,null,null,null,null,null,null,null,null,null,null,null,null,null,null,"",0,0,0,0,0,0,0,0,0,null,null,null,null,null,null,0,0,0,null,null,null,{"$f":"#VALUE!","v":{"$error":"#VALUE!"}},{"$f":"#VALUE!","v":{"$error":"#VALUE!"}}]
[null,null,0,null,null,0,null,null,null,null,null,null,null,null,null,null,0,null,null,null,null,null,null,null,null,null,0,null,null,null,null,null,null,null,null,null,null,null,null,null,null,null,null,null,null,null,null,null,null,null,null,null,null,null,null,null,null,null,null,null,null,null,null,"",0,0,0,0,0,0,0,0,0,null,null,null,null,null,null,0,0,0,null,null,null,{"$f":"#VALUE!","v":{"$error":"#VALUE!"}},{"$f":"#VALUE!","v":{"$error":"#VALUE!"}}]
[null,null,0,null,null,0,null,null,null,null,null,null,null,null,null,null,0,null,null,null,null,null,null,null,null,null,0,null,null,null,null,null,null,null,null,null,null,null,null,null,null,null,null,null,null,null,null,null,null,null,null,null,null,null,null,null,null,null,null,null,null,null,null,"",0,0,0,0,0,0,0,0,0,null,null,null,null,null,null,0,0,0,null,null,null,{"$f":"#VALUE!","v":{"$error":"#VALUE!"}},{"$f":"#VALUE!","v":{"$error":"#VALUE!"}}]
[null,null,0,null,null,0,null,null,null,null,null,null,null,null,null,null,0,null,null,null,null,null,null,null,null,null,0,null,null,null,null,null,null,null,null,null,null,null,null,null,null,null,null,null,null,null,null,null,null,null,null,null,null,null,null,null,null,null,null,null,null,null,null,"",0,0,0,0,0,0,0,0,0,null,null,null,null,null,null,0,0,0,null,null,null,{"$f":"#VALUE!","v":{"$error":"#VALUE!"}},{"$f":"#VALUE!","v":{"$error":"#VALUE!"}}]
[null,null,0,null,null,0,null,null,null,null,null,null,null,null,null,null,0,null,null,null,null,null,null,null,null,null,0,null,null,null,null,null,null,null,null,null,null,null,null,null,null,null,null,null,null,null,null,null,null,null,null,null,null,null,null,null,null,null,null,null,null,null,null,"",0,0,0,0,0,0,0,0,0,null,null,null,null,null,null,0,0,0,null,null,null,{"$f":"#VALUE!","v":{"$error":"#VALUE!"}},{"$f":"#VALUE!","v":{"$error":"#VALUE!"}}]
[null,null,0,null,null,0,null,null,null,null,null,null,null,null,null,null,0,null,null,null,null,null,null,null,null,null,0,null,null,null,null,null,null,null,null,null,null,null,null,null,null,null,null,null,null,null,null,null,null,null,null,null,null,null,null,null,null,null,null,null,null,null,null,"",0,0,0,0,0,0,0,0,0,null,null,null,null,null,null,0,0,0,null,null,null,{"$f":"#VALUE!","v":{"$error":"#VALUE!"}},{"$f":"#VALUE!","v":{"$error":"#VALUE!"}}]
[null,null,0,null,null,0,null,null,null,null,null,null,null,null,null,null,0,null,null,null,null,null,null,null,null,null,0,null,null,null,null,null,null,null,null,null,null,null,null,null,null,null,null,null,null,null,null,null,null,null,null,null,null,null,null,null,null,null,null,null,null,null,null,"",0,0,0,0,0,0,0,0,0,null,null,null,null,null,null,0,0,0,null,null,null,{"$f":"#VALUE!","v":{"$error":"#VALUE!"}},{"$f":"#VALUE!","v":{"$error":"#VALUE!"}}]
[null,null,0,null,null,0,null,null,null,null,null,null,null,null,null,null,0,null,null,null,null,null,null,null,null,null,0,null,null,null,null,null,null,null,null,null,null,null,null,null,null,null,null,null,null,null,null,null,null,null,null,null,null,null,null,null,null,null,null,null,null,null,null,"",0,0,0,0,0,0,0,0,0,null,null,null,null,null,null,0,0,0,null,null,null,{"$f":"#VALUE!","v":{"$error":"#VALUE!"}},{"$f":"#VALUE!","v":{"$error":"#VALUE!"}}]
[null,null,0,null,null,0,null,null,null,null,null,null,null,null,null,null,0,null,null,null,null,null,null,null,null,null,0,null,null,null,null,null,null,null,null,null,null,null,null,null,null,null,null,null,null,null,null,null,null,null,null,null,null,null,null,null,null,null,null,null,null,null,null,"",0,0,0,0,0,0,0,0,0,null,null,null,null,null,null,0,0,0,null,null,null,{"$f":"#VALUE!","v":{"$error":"#VALUE!"}},{"$f":"#VALUE!","v":{"$error":"#VALUE!"}}]
[null,null,0,null,null,0,null,null,null,null,null,null,null,null,null,null,0,null,null,null,null,null,null,null,null,null,0,null,null,null,null,null,null,null,null,null,null,null,null,null,null,null,null,null,null,null,null,null,null,null,null,null,null,null,null,null,null,null,null,null,null,null,null,"",0,0,0,0,0,0,0,0,0,null,null,null,null,null,null,0,0,0,null,null,null,{"$f":"#VALUE!","v":{"$error":"#VALUE!"}},{"$f":"#VALUE!","v":{"$error":"#VALUE!"}}]
[null,null,0,null,null,0,null,null,null,null,null,null,null,null,null,null,0,null,null,null,null,null,null,null,null,null,0,null,null,null,null,null,null,null,null,null,null,null,null,null,null,null,null,null,null,null,null,null,null,null,null,null,null,null,null,null,null,null,null,null,null,null,null,"",0,0,0,0,0,0,0,0,0,null,null,null,null,null,null,0,0,0,null,null,null,{"$f":"#VALUE!","v":{"$error":"#VALUE!"}},{"$f":"#VALUE!","v":{"$error":"#VALUE!"}}]
[null,null,0,null,null,0,null,null,null,null,null,null,null,null,null,null,0,null,null,null,null,null,null,null,null,null,0,null,null,null,null,null,null,null,null,null,null,null,null,null,null,null,null,null,null,null,null,null,null,null,null,null,null,null,null,null,null,null,null,null,null,null,null,"",0,0,0,0,0,0,0,0,0,null,null,null,null,null,null,0,0,0,null,null,null,{"$f":"#VALUE!","v":{"$error":"#VALUE!"}},{"$f":"#VALUE!","v":{"$error":"#VALUE!"}}]
[null,null,0,null,null,0,null,null,null,null,null,null,null,null,null,null,0,null,null,null,null,null,null,null,null,null,0,null,null,null,null,null,null,null,null,null,null,null,null,null,null,null,null,null,null,null,null,null,null,null,null,null,null,null,null,null,null,null,null,null,null,null,null,"",0,0,0,0,0,0,0,0,0,null,null,null,null,null,null,0,0,0,null,null,null,{"$f":"#VALUE!","v":{"$error":"#VALUE!"}},{"$f":"#VALUE!","v":{"$error":"#VALUE!"}}]
[null,null,0,null,null,0,null,null,null,null,null,null,null,null,null,null,0,null,null,null,null,null,null,null,null,null,0,null,null,null,null,null,null,null,null,null,null,null,null,null,null,null,null,null,null,null,null,null,null,null,null,null,null,null,null,null,null,null,null,null,null,null,null,"",0,0,0,0,0,0,0,0,0,null,null,null,null,null,null,0,0,0,null,null,null,{"$f":"#VALUE!","v":{"$error":"#VALUE!"}},{"$f":"#VALUE!","v":{"$error":"#VALUE!"}}]
[null,null,0,null,null,0,null,null,null,null,null,null,null,null,null,null,0,null,null,null,null,null,null,null,null,null,0,null,null,null,null,null,null,null,null,null,null,null,null,null,null,null,null,null,null,null,null,null,null,null,null,null,null,null,null,null,null,null,null,null,null,null,null,"",0,0,0,0,0,0,0,0,0,null,null,null,null,null,null,0,0,0,null,null,null,{"$f":"#VALUE!","v":{"$error":"#VALUE!"}},{"$f":"#VALUE!","v":{"$error":"#VALUE!"}}]
[null,null,0,null,null,0,null,null,null,null,null,null,null,null,null,null,0,null,null,null,null,null,null,null,null,null,0,null,null,null,null,null,null,null,null,null,null,null,null,null,null,null,null,null,null,null,null,null,null,null,null,null,null,null,null,null,null,null,null,null,null,null,null,"",0,0,0,0,0,0,0,0,0,null,null,null,null,null,null,0,0,0,null,null,null,{"$f":"#VALUE!","v":{"$error":"#VALUE!"}},{"$f":"#VALUE!","v":{"$error":"#VALUE!"}}]
[null,null,0,null,null,0,null,null,null,null,null,null,null,null,null,null,0,null,null,null,null,null,null,null,null,null,0,null,null,null,null,null,null,null,null,null,null,null,null,null,null,null,null,null,null,null,null,null,null,null,null,null,null,null,null,null,null,null,null,null,null,null,null,"",0,0,0,0,0,0,0,0,0,null,null,null,null,null,null,0,0,0,null,null,null,{"$f":"#VALUE!","v":{"$error":"#VALUE!"}},{"$f":"#VALUE!","v":{"$error":"#VALUE!"}}]
[null,null,0,null,null,0,null,null,null,null,null,null,null,null,null,null,0,null,null,null,null,null,null,null,null,null,0,null,null,null,null,null,null,null,null,null,null,null,null,null,null,null,null,null,null,null,null,null,null,null,null,null,null,null,null,null,null,null,null,null,null,null,null,"",0,0,0,0,0,0,0,0,0,null,null,null,null,null,null,0,0,0,null,null,null,{"$f":"#VALUE!","v":{"$error":"#VALUE!"}},{"$f":"#VALUE!","v":{"$error":"#VALUE!"}}]
[null,null,0,null,null,0,null,null,null,null,null,null,null,null,null,null,0,null,null,null,null,null,null,null,null,null,0,null,null,null,null,null,null,null,null,null,null,null,null,null,null,null,null,null,null,null,null,null,null,null,null,null,null,null,null,null,null,null,null,null,null,null,null,"",0,0,0,0,0,0,0,0,0,null,null,null,null,null,null,0,0,0,null,null,null,{"$f":"#VALUE!","v":{"$error":"#VALUE!"}},{"$f":"#VALUE!","v":{"$error":"#VALUE!"}}]
[null,null,0,null,null,0,null,null,null,null,null,null,null,null,null,null,0,null,null,null,null,null,null,null,null,null,0,null,null,null,null,null,null,null,null,null,null,null,null,null,null,null,null,null,null,null,null,null,null,null,null,null,null,null,null,null,null,null,null,null,null,null,null,"",0,0,0,0,0,0,0,0,0,null,null,null,null,null,null,0,0,0,null,null,null,{"$f":"#VALUE!","v":{"$error":"#VALUE!"}},{"$f":"#VALUE!","v":{"$error":"#VALUE!"}}]
[null,null,0,null,null,0,null,null,null,null,null,null,null,null,null,null,0,null,null,null,null,null,null,null,null,null,0,null,null,null,null,null,null,null,null,null,null,null,null,null,null,null,null,null,null,null,null,null,null,null,null,null,null,null,null,null,null,null,null,null,null,null,null,"",0,0,0,0,0,0,0,0,0,null,null,null,null,null,null,0,0,0,null,null,null,{"$f":"#VALUE!","v":{"$error":"#VALUE!"}},{"$f":"#VALUE!","v":{"$error":"#VALUE!"}}]
[null,null,0,null,null,0,null,null,null,null,null,null,null,null,null,null,0,null,null,null,null,null,null,null,null,null,0,null,null,null,null,null,null,null,null,null,null,null,null,null,null,null,null,null,null,null,null,null,null,null,null,null,null,null,null,null,null,null,null,null,null,null,null,"",0,0,0,0,0,0,0,0,0,null,null,null,null,null,null,0,0,0,null,null,null,{"$f":"#VALUE!","v":{"$error":"#VALUE!"}},{"$f":"#VALUE!","v":{"$error":"#VALUE!"}}]
[null,null,0,null,null,0,null,null,null,null,null,null,null,null,null,null,0,null,null,null,null,null,null,null,null,null,0,null,null,null,null,null,null,null,null,null,null,null,null,null,null,null,null,null,null,null,null,null,null,null,null,null,null,null,null,null,null,null,null,null,null,null,null,"",0,0,0,0,0,0,0,0,0,null,null,null,null,null,null,0,0,0,null,null,null,{"$f":"#VALUE!","v":{"$error":"#VALUE!"}},{"$f":"#VALUE!","v":{"$error":"#VALUE!"}}]
[null,null,0,null,null,0,null,null,null,null,null,null,null,null,null,null,0,null,null,null,null,null,null,null,null,null,0,null,null,null,null,null,null,null,null,null,null,null,null,null,null,null,null,null,null,null,null,null,null,null,null,null,null,null,null,null,null,null,null,null,null,null,null,"",0,0,0,0,0,0,0,0,0,null,null,null,null,null,null,0,0,0,null,null,null,{"$f":"#VALUE!","v":{"$error":"#VALUE!"}},{"$f":"#VALUE!","v":{"$error":"#VALUE!"}}]
[null,null,0,null,null,0,null,null,null,null,null,null,null,null,null,null,0,null,null,null,null,null,null,null,null,null,0,null,null,null,null,null,null,null,null,null,null,null,null,null,null,null,null,null,null,null,null,null,null,null,null,null,null,null,null,null,null,null,null,null,null,null,null,"",0,0,0,0,0,0,0,0,0,null,null,null,null,null,null,0,0,0,null,null,null,{"$f":"#VALUE!","v":{"$error":"#VALUE!"}},{"$f":"#VALUE!","v":{"$error":"#VALUE!"}}]
[null,null,0,null,null,0,null,null,null,null,null,null,null,null,null,null,0,null,null,null,null,null,null,null,null,null,0,null,null,null,null,null,null,null,null,null,null,null,null,null,null,null,null,null,null,null,null,null,null,null,null,null,null,null,null,null,null,null,null,null,null,null,null,"",0,0,0,0,0,0,0,0,0,null,null,null,null,null,null,0,0,0,null,null,null,{"$f":"#VALUE!","v":{"$error":"#VALUE!"}},{"$f":"#VALUE!","v":{"$error":"#VALUE!"}}]
[null,null,0,null,null,0,null,null,null,null,null,null,null,null,null,null,0,null,null,null,null,null,null,null,null,null,0,null,null,null,null,null,null,null,null,null,null,null,null,null,null,null,null,null,null,null,null,null,null,null,null,null,null,null,null,null,null,null,null,null,null,null,null,"",0,0,0,0,0,0,0,0,0,null,null,null,null,null,null,0,0,0,null,null,null,{"$f":"#VALUE!","v":{"$error":"#VALUE!"}},{"$f":"#VALUE!","v":{"$error":"#VALUE!"}}]
[null,null,0,null,null,0,null,null,null,null,null,null,null,null,null,null,0,null,null,null,null,null,null,null,null,null,0,null,null,null,null,null,null,null,null,null,null,null,null,null,null,null,null,null,null,null,null,null,null,null,null,null,null,null,null,null,null,null,null,null,null,null,null,"",0,0,0,0,0,0,0,0,0,null,null,null,null,null,null,0,0,0,null,null,null,{"$f":"#VALUE!","v":{"$error":"#VALUE!"}},{"$f":"#VALUE!","v":{"$error":"#VALUE!"}}]
[null,null,0,null,null,0,null,null,null,null,null,null,null,null,null,null,0,null,null,null,null,null,null,null,null,null,0,null,null,null,null,null,null,null,null,null,null,null,null,null,null,null,null,null,null,null,null,null,null,null,null,null,null,null,null,null,null,null,null,null,null,null,null,"",0,0,0,0,0,0,0,0,0,null,null,null,null,null,null,0,0,0,null,null,null,{"$f":"#VALUE!","v":{"$error":"#VALUE!"}},{"$f":"#VALUE!","v":{"$error":"#VALUE!"}}]
[null,null,{"$f":"IF(D260=\"نقابى\",1,IF(D260=\"حالة خاصة\",2,0))","v":0},null,null,0,null,null,null,null,null,null,null,null,null,null,0,null,null,null,null,null,null,null,null,null,0,null,null,null,null,null,null,null,null,null,null,null,null,null,null,null,null,null,null,null,null,null,null,null,null,null,null,null,null,null,null,null,null,null,null,null,null,{"$f":"IF(H260=\"معلم مساعد\",10,IF(H260=\"معلم تعاقد\",10,IF(H260=\"معلم\",10,IF(H260=\"معلم أول\",10,IF(H260=\"معلم أول أ\",10,IF(H260=\"خبير\",10,IF(H260=\"كبير\",10,IF(H260=\"عامل تعاقد\",0,\"\"))))))))","v":""},0,{"$f":"IF(H260=\"معلم مساعد\",I260*50/100,IF(H260=\"عامل تعاقد\",I260*0/100,IF(H260=\"معلم\",I260*50/100,IF(H260=\"معلم أول\",I260*50/100,IF(H260=\"معلم أول أ\",I260*50/100,IF(H260=\"خبير\",I260*50/100,IF(H260=\"كبير\",I260*50/100,)))))))","v":0},{"$f":"IF(H260=\"إدارى\",I260*0,IF(H260=\"معلم مساعد\",I260*0/100,IF(H260=\"معلم\",I260*50/100,IF(H260=\"معلم أول\",I260*75/100,IF(H260=\"معلم أول أ\",I260*100/100,IF(H260=\"خبير\",I260*125/100,IF(H260=\"كبير\",I260*150/100,)))))))","v":0},{"$f":"INT(IF(H260=\"عامل تعاقد\",I260*25/100,IF(H260=\"معلم مساعد\",I260*25/100,IF(H260=\"معلم\",I260*25/100,IF(H260=\"معلم أول\",I260*25/100,IF(H260=\"معلم أول أ\",I260*25/100,IF(H260=\"خبير\",I260*25/100,IF(H260=\"كبير\",I260*25/100,))))))))","v":0},{"$f":"INT(IF(H260=\"إدارى\",J260*0/100,IF(H260=\"معلم مساعد\",I260*125/100,IF(H260=\"معلم\",I260*75/100,IF(H260=\"معلم أول\",I260*50/100,IF(H260=\"معلم أول أ\",I260*25/100,IF(H260=\"خبير\",I260*25/100,IF(H260=\"كبير\",I260*25/100,))))))))","v":0},{"$f":"INT(IF(H260=\"عامل تعاقد\",I260*0.9166,IF(H260=\"معلم تعاقد\",I260*0.9166,0)))","v":0},{"$f":"INT(IF(H260=\"عامل تعاقد\",I260*0.5,IF(H260=\"معلم تعاقد\",I260*0.5,0)))","v":0},{"$f":"INT(IF(F260=1,I260*0.3333,0))","v":0},{"$f":"IF(H260=\"عامل تعاقد\",225,IF(H260=\"معلم تعاقد\",300,0))","v":0},null,null,null,null,null,null,0,{"$f":"IF(CB260<250,(CB260*0.006),IF(CB260<500,(CB260*0.0065),IF(CB260<1000,(CB260*0.007),IF(CB260<5000,(CB260*0.0075),IF(CB260>5000,(CB260*0.008),\" \" )))))","v":0},0,null,null,null,{"$f":"#VALUE!","v":{"$error":"#VALUE!"}},{"$f":"#VALUE!","v":{"$error":"#VALUE!"}}]
[null,null,0,null,null,0,null,null,null,null,null,null,null,null,null,null,0,null,null,null,null,null,null,null,null,null,0,null,null,null,null,null,null,null,null,null,null,null,null,null,null,null,null,null,null,null,null,null,null,null,null,null,null,null,null,null,null,null,null,null,null,null,null,"",{"$f":"IF(H261=\"عقد مميز\",I261*0/100,IF(H261=\"معلم تعاقد\",I261*0/100,IF(H261=\"معلم\",I261*50/100,IF(H261=\"معلم أول\",I261*50/100,IF(H261=\"معلم أول أ\",I261*50/100,IF(H261=\"خبير\",I261*50/100,IF(H261=\"كبير\",I261*50/100,)))))))","v":0},0,0,0,0,0,0,0,0,null,null,null,null,null,null,0,0,0,null,null,null,{"$f":"#VALUE!","v":{"$error":"#VALUE!"}},{"$f":"#VALUE!","v":{"$error":"#VALUE!"}}]
[null,null,null,null,null,null,null,null,null,null,null,null,null,null,null,null,null,null,null,null,null,null,null,null,null,null,null,null,null,null,null,null,null,null,null,null,null,null,null,null,null,null,null,null,null,null,null,null,null,null,null,null,null,null,null,null,null,null,null,null,null,null,null,"",0,0,0,0,0,0,0,0,0,null,null,null,null,null,null,null,null,null,null,null,null,{"$f":"#VALUE!","v":{"$error":"#VALUE!"}},{"$f":"#VALUE!","v":{"$error":"#VALUE!"}}]
[null,null,null,null,null,null,null,null,null,null,null,null,null,null,null,null,null,null,null,null,null,null,null,null,null,null,null,null,null,null,null,null,null,null,null,null,null,null,null,null,null,null,null,null,null,null,null,null,null,null,null,null,null,null,null,null,null,null,null,null,null,null,null,"",0,0,0,0,0,0,0,0,0,null,null,null,null,null,null,null,null,null,null,null,null,{"$f":"#VALUE!","v":{"$error":"#VALUE!"}},{"$f":"#VALUE!","v":{"$error":"#VALUE!"}}]
[null,null,null,null,null,null,null,null,null,null,null,null,null,null,null,null,null,null,null,null,null,null,null,null,null,null,null,null,null,null,null,null,null,null,null,null,null,null,null,null,null,null,null,null,null,null,null,null,null,null,null,null,null,null,null,null,null,null,null,null,null,null,null,"",0,0,0,0,0,0,0,0,0,null,null,null,null,null,null,null,null,null,null,null,null,{"$f":"#VALUE!","v":{"$error":"#VALUE!"}},{"$f":"#VALUE!","v":{"$error":"#VALUE!"}}]
[null,null,null,null,null,null,null,null,null,null,null,null,null,null,null,null,null,null,null,null,null,null,null,null,null,null,null,null,null,null,null,null,null,null,null,null,null,null,null,null,null,null,null,null,null,null,null,null,null,null,null,null,null,null,null,null,null,null,null,null,null,null,null,"",0,0,0,0,0,0,0,0,0,null,null,null,null,null,null,null,null,null,null,null,null,{"$f":"#VALUE!","v":{"$error":"#VALUE!"}},{"$f":"#VALUE!","v":{"$error":"#VALUE!"}}]
[null,null,null,null,null,null,null,null,null,null,null,null,null,null,null,null,null,null,null,null,null,null,null,null,null,null,null,null,null,null,null,null,null,null,null,null,null,null,null,null,null,null,null,null,null,null,null,null,null,null,null,null,null,null,null,null,null,null,null,null,null,null,null,"",0,0,0,0,0,0,0,0,0,null,null,null,null,null,null,null,null,null,null,null,null,{"$f":"#VALUE!","v":{"$error":"#VALUE!"}},{"$f":"#VALUE!","v":{"$error":"#VALUE!"}}]
[null,null,null,null,null,null,null,null,null,null,null,null,null,null,null,null,null,null,null,null,null,null,null,null,null,null,null,null,null,null,null,null,null,null,null,null,null,null,null,null,null,null,null,null,null,null,null,null,null,null,null,null,null,null,null,null,null,null,null,null,null,null,null,"",0,0,0,0,0,0,0,0,0,null,null,null,null,null,null,null,null,null,null,null,null,{"$f":"#VALUE!","v":{"$error":"#VALUE!"}},{"$f":"#VALUE!","v":{"$error":"#VALUE!"}}]
[null,null,null,null,null,null,null,null,null,null,null,null,null,null,null,null,null,null,null,null,null,null,null,null,null,null,null,null,null,null,null,null,null,null,null,null,null,null,null,null,null,null,null,null,null,null,null,null,null,null,null,null,null,null,null,null,null,null,null,null,null,null,null,"",0,0,0,0,0,0,0,0,0,null,null,null,null,null,null,null,null,null,null,null,null,{"$f":"#VALUE!","v":{"$error":"#VALUE!"}},{"$f":"#VALUE!","v":{"$error":"#VALUE!"}}]
[null,null,null,null,null,null,null,null,null,null,null,null,null,null,null,null,null,null,null,null,null,null,null,null,null,null,null,null,null,null,null,null,null,null,null,null,null,null,null,null,null,null,null,null,null,null,null,null,null,null,null,null,null,null,null,null,null,null,null,null,null,null,null,"",0,0,0,0,0,0,0,0,0,null,null,null,null,null,null,null,null,null,null,null,null,{"$f":"#VALUE!","v":{"$error":"#VALUE!"}},{"$f":"#VALUE!","v":{"$error":"#VALUE!"}}]
[null,null,null,null,null,null,null,null,null,null,null,null,null,null,null,null,null,null,null,null,null,null,null,null,null,null,null,null,null,null,null,null,null,null,null,null,null,null,null,null,null,null,null,null,null,null,null,null,null,null,null,null,null,null,null,null,null,null,null,null,null,null,null,"",0,0,0,0,0,0,0,0,0,null,null,null,null,null,null,null,null,null,null,null,null,{"$f":"#VALUE!","v":{"$error":"#VALUE!"}},{"$f":"#VALUE!","v":{"$error":"#VALUE!"}}]
[null,null,null,null,null,null,null,null,null,null,null,null,null,null,null,null,null,null,null,null,null,null,null,null,null,null,null,null,null,null,null,null,null,null,null,null,null,null,null,null,null,null,null,null,null,null,null,null,null,null,null,null,null,null,null,null,null,null,null,null,null,null,null,"",0,0,0,0,0,0,0,0,0,null,null,null,null,null,null,null,null,null,null,null,null,{"$f":"#VALUE!","v":{"$error":"#VALUE!"}},{"$f":"#VALUE!","v":{"$error":"#VALUE!"}}]
[null,null,null,null,null,null,null,null,null,null,null,null,null,null,null,null,null,null,null,null,null,null,null,null,null,null,null,null,null,null,null,null,null,null,null,null,null,null,null,null,null,null,null,null,null,null,null,null,null,null,null,null,null,null,null,null,null,null,null,null,null,null,null,"",0,0,0,0,0,0,0,0,0,null,null,null,null,null,null,null,null,null,null,null,null,{"$f":"#VALUE!","v":{"$error":"#VALUE!"}},{"$f":"#VALUE!","v":{"$error":"#VALUE!"}}]
[null,null,null,null,null,null,null,null,null,null,null,null,null,null,null,null,null,null,null,null,null,null,null,null,null,null,null,null,null,null,null,null,null,null,null,null,null,null,null,null,null,null,null,null,null,null,null,null,null,null,null,null,null,null,null,null,null,null,null,null,null,null,null,"",0,0,0,0,0,0,0,0,0,null,null,null,null,null,null,null,null,null,null,null,null,{"$f":"#VALUE!","v":{"$error":"#VALUE!"}},{"$f":"#VALUE!","v":{"$error":"#VALUE!"}}]
[null,null,null,null,null,null,null,null,null,null,null,null,null,null,null,null,null,null,null,null,null,null,null,null,null,null,null,null,null,null,null,null,null,null,null,null,null,null,null,null,null,null,null,null,null,null,null,null,null,null,null,null,null,null,null,null,null,null,null,null,null,null,null,"",0,0,0,0,0,0,0,0,0,null,null,null,null,null,null,null,null,null,null,null,null,{"$f":"#VALUE!","v":{"$error":"#VALUE!"}},{"$f":"#VALUE!","v":{"$error":"#VALUE!"}}]
[null,null,null,null,null,null,null,null,null,null,null,null,null,null,null,null,null,null,null,null,null,null,null,null,null,null,null,null,null,null,null,null,null,null,null,null,null,null,null,null,null,null,null,null,null,null,null,null,null,null,null,null,null,null,null,null,null,null,null,null,null,null,null,"",0,0,0,0,0,0,0,0,0,null,null,null,null,null,null,null,null,null,null,null,null,{"$f":"#VALUE!","v":{"$error":"#VALUE!"}},{"$f":"#VALUE!","v":{"$error":"#VALUE!"}}]
[null,null,null,null,null,null,null,null,null,null,null,null,null,null,null,null,null,null,null,null,null,null,null,null,null,null,null,null,null,null,null,null,null,null,null,null,null,null,null,null,null,null,null,null,null,null,null,null,null,null,null,null,null,null,null,null,null,null,null,null,null,null,null,"",0,0,0,0,0,0,0,0,0,null,null,null,null,null,null,null,null,null,null,null,null,{"$f":"#VALUE!","v":{"$error":"#VALUE!"}},{"$f":"#VALUE!","v":{"$error":"#VALUE!"}}]
[null,null,null,null,null,null,null,null,null,null,null,null,null,null,null,null,null,null,null,null,null,null,null,null,null,null,null,null,null,null,null,null,null,null,null,null,null,null,null,null,null,null,null,null,null,null,null,null,null,null,null,null,null,null,null,null,null,null,null,null,null,null,null,"",0,0,0,0,0,0,0,0,0,null,null,null,null,null,null,null,null,null,null,null,null,{"$f":"#VALUE!","v":{"$error":"#VALUE!"}},{"$f":"#VALUE!","v":{"$error":"#VALUE!"}}]
[null,null,null,null,null,null,null,null,null,null,null,null,null,null,null,null,null,null,null,null,null,null,null,null,null,null,null,null,null,null,null,null,null,null,null,null,null,null,null,null,null,null,null,null,null,null,null,null,null,null,null,null,null,null,null,null,null,null,null,null,null,null,null,"",0,0,0,0,0,0,0,0,0,null,null,null,null,null,null,null,null,null,null,null,null,{"$f":"#VALUE!","v":{"$error":"#VALUE!"}},{"$f":"#VALUE!","v":{"$error":"#VALUE!"}}]
[null,null,null,null,null,null,null,null,null,null,null,null,null,null,null,null,null,null,null,null,null,null,null,null,null,null,null,null,null,null,null,null,null,null,null,null,null,null,null,null,null,null,null,null,null,null,null,null,null,null,null,null,null,null,null,null,null,null,null,null,null,null,null,"",0,0,0,0,0,0,0,0,0,null,null,null,null,null,null,null,null,null,null,null,null,{"$f":"#VALUE!","v":{"$error":"#VALUE!"}},{"$f":"#VALUE!","v":{"$error":"#VALUE!"}}]
[null,null,null,null,null,null,null,null,null,null,null,null,null,null,null,null,null,null,null,null,null,null,null,null,null,null,null,null,null,null,null,null,null,null,null,null,null,null,null,null,null,null,null,null,null,null,null,null,null,null,null,null,null,null,null,null,null,null,null,null,null,null,null,"",0,0,0,0,0,0,0,0,0,null,null,null,null,null,null,null,null,null,null,null,null,{"$f":"#VALUE!","v":{"$error":"#VALUE!"}},{"$f":"#VALUE!","v":{"$error":"#VALUE!"}}]
[null,null,null,null,null,null,null,null,null,null,null,null,null,null,null,null,null,null,null,null,null,null,null,null,null,null,null,null,null,null,null,null,null,null,null,null,null,null,null,null,null,null,null,null,null,null,null,null,null,null,null,null,null,null,null,null,null,null,null,null,null,null,null,"",0,0,0,0,0,0,0,0,0,null,null,null,null,null,null,null,null,null,null,null,null,{"$f":"#VALUE!","v":{"$error":"#VALUE!"}},{"$f":"#VALUE!","v":{"$error":"#VALUE!"}}]
[null,null,null,null,null,null,null,null,null,null,null,null,null,null,null,null,null,null,null,null,null,null,null,null,null,null,null,null,null,null,null,null,null,null,null,null,null,null,null,null,null,null,null,null,null,null,null,null,null,null,null,null,null,null,null,null,null,null,null,null,null,null,null,"",0,0,0,0,0,0,0,0,0,null,null,null,null,null,null,null,null,null,null,null,null,{"$f":"#VALUE!","v":{"$error":"#VALUE!"}},{"$f":"#VALUE!","v":{"$error":"#VALUE!"}}]
[null,null,null,null,null,null,null,null,null,null,null,null,null,null,null,null,null,null,null,null,null,null,null,null,null,null,null,null,null,null,null,null,null,null,null,null,null,null,null,null,null,null,null,null,null,null,null,null,null,null,null,null,null,null,null,null,null,null,null,null,null,null,null,"",0,0,0,0,0,0,0,0,0,null,null,null,null,null,null,null,null,null,null,null,null,{"$f":"#VALUE!","v":{"$error":"#VALUE!"}},{"$f":"#VALUE!","v":{"$error":"#VALUE!"}}]
[null,null,null,null,null,null,null,null,null,null,null,null,null,null,null,null,null,null,null,null,null,null,null,null,null,null,null,null,null,null,null,null,null,null,null,null,null,null,null,null,null,null,null,null,null,null,null,null,null,null,null,null,null,null,null,null,null,null,null,null,null,null,null,"",0,{"$f":"FLOOR(IF(H284=\"إدارى\",I284*0,IF(H284=\"معلم مساعد\",I284*50/100,IF(H284=\"معلم\",I284*50/100,IF(H284=\"معلم أول\",I284*50/100,IF(H284=\"معلم أول أ\",I284*50/100,IF(H284=\"خبير\",I284*50/100,IF(H284=\"كبير\",I284*50/100,))))))),0.05)","v":0},0,0,0,0,0,0,0,null,null,null,null,null,null,null,null,null,null,null,null,{"$f":"#VALUE!","v":{"$error":"#VALUE!"}},{"$f":"#VALUE!","v":{"$error":"#VALUE!"}}]
[null,null,null,null,null,null,null,null,null,null,null,null,null,null,null,null,null,null,null,null,null,null,null,null,null,null,null,null,null,null,null,null,null,null,null,null,null,null,null,null,null,null,null,null,null,null,null,null,null,null,null,null,null,null,null,null,null,null,null,null,null,null,null,"",0,0,0,0,0,0,0,0,0,null,null,null,null,null,null,null,null,null,null,null,null,{"$f":"#VALUE!","v":{"$error":"#VALUE!"}},{"$f":"#VALUE!","v":{"$error":"#VALUE!"}}]
[null,null,null,null,null,null,null,null,null,null,null,null,null,null,null,null,null,null,null,null,null,null,null,null,null,null,null,null,null,null,null,null,null,null,null,null,null,null,null,null,null,null,null,null,null,null,null,null,null,null,null,null,null,null,null,null,null,null,null,null,null,null,null,"",0,0,0,0,0,0,0,0,0,null,null,null,null,null,null,null,null,null,null,null,null,{"$f":"#VALUE!","v":{"$error":"#VALUE!"}},{"$f":"#VALUE!","v":{"$error":"#VALUE!"}}]
[null,null,null,null,null,null,null,null,null,null,null,null,null,null,null,null,null,null,null,null,null,null,null,null,null,null,null,null,null,null,null,null,null,null,null,null,null,null,null,null,null,null,null,null,null,null,null,null,null,null,null,null,null,null,null,null,null,null,null,null,null,null,null,"",0,0,0,0,0,0,0,0,0,null,null,null,null,null,null,null,null,null,null,null,null,{"$f":"#VALUE!","v":{"$error":"#VALUE!"}},{"$f":"#VALUE!","v":{"$error":"#VALUE!"}}]
[null,null,null,null,null,null,null,null,null,null,null,null,null,null,null,null,null,null,null,null,null,null,null,null,null,null,null,null,null,null,null,null,null,null,null,null,null,null,null,null,null,null,null,null,null,null,null,null,null,null,null,null,null,null,null,null,null,null,null,null,null,null,null,"",0,0,0,0,0,0,0,0,0,null,null,null,null,null,null,null,null,null,null,null,null,{"$f":"#VALUE!","v":{"$error":"#VALUE!"}},{"$f":"#VALUE!","v":{"$error":"#VALUE!"}}]
[null,null,null,null,null,null,null,null,null,null,null,null,null,null,null,null,null,null,null,null,null,null,null,null,null,null,null,null,null,null,null,null,null,null,null,null,null,null,null,null,null,null,null,null,null,null,null,null,null,null,null,null,null,null,null,null,null,null,null,null,null,null,null,"",0,0,0,0,0,0,0,0,0,null,null,null,null,null,null,null,null,null,null,null,null,{"$f":"#VALUE!","v":{"$error":"#VALUE!"}},{"$f":"#VALUE!","v":{"$error":"#VALUE!"}}]
[null,null,null,null,null,null,null,null,null,null,null,null,null,null,null,null,null,null,null,null,null,null,null,null,null,null,null,null,null,null,null,null,null,null,null,null,null,null,null,null,null,null,null,null,null,null,null,null,null,null,null,null,null,null,null,null,null,null,null,null,null,null,null,"",0,0,0,0,0,0,0,0,0,null,null,null,null,null,null,null,null,null,null,null,null,{"$f":"#VALUE!","v":{"$error":"#VALUE!"}},{"$f":"#VALUE!","v":{"$error":"#VALUE!"}}]
[null,null,null,null,null,null,null,null,null,null,null,null,null,null,null,null,null,null,null,null,null,null,null,null,null,null,null,null,null,null,null,null,null,null,null,null,null,null,null,null,null,null,null,null,null,null,null,null,null,null,null,null,null,null,null,null,null,null,null,null,null,null,null,"",0,0,0,0,0,0,0,0,0,null,null,null,null,null,null,null,null,null,null,null,null,{"$f":"#VALUE!","v":{"$error":"#VALUE!"}},{"$f":"#VALUE!","v":{"$error":"#VALUE!"}}]
[null,null,null,null,null,null,null,null,null,null,null,null,null,null,null,null,null,null,null,null,null,null,null,null,null,null,null,null,null,null,null,null,null,null,null,null,null,null,null,null,null,null,null,null,null,null,null,null,null,null,null,null,null,null,null,null,null,null,null,null,null,null,null,"",0,0,0,0,0,0,0,0,0,null,null,null,null,null,null,null,null,null,null,null,null,{"$f":"#VALUE!","v":{"$error":"#VALUE!"}},{"$f":"#VALUE!","v":{"$error":"#VALUE!"}}]
[null,null,null,null,null,null,null,null,null,null,null,null,null,null,null,null,null,null,null,null,null,null,null,null,null,null,null,null,null,null,null,null,null,null,null,null,null,null,null,null,null,null,null,null,null,null,null,null,null,null,null,null,null,null,null,null,null,null,null,null,null,null,null,"",0,0,0,0,0,0,0,0,0,null,null,null,null,null,null,null,null,null,null,null,null,{"$f":"#VALUE!","v":{"$error":"#VALUE!"}},{"$f":"#VALUE!","v":{"$error":"#VALUE!"}}]
[null,null,null,null,null,null,null,null,null,null,null,null,null,null,null,null,null,null,null,null,null,null,null,null,null,null,null,null,null,null,null,null,null,null,null,null,null,null,null,null,null,null,null,null,null,null,null,null,null,null,null,null,null,null,null,null,null,null,null,null,null,null,null,"",0,0,0,0,0,0,0,0,0,null,null,null,null,null,null,null,null,null,null,null,null,{"$f":"#VALUE!","v":{"$error":"#VALUE!"}},{"$f":"#VALUE!","v":{"$error":"#VALUE!"}}]
[null,null,null,null,null,null,null,null,null,null,null,null,null,null,null,null,null,null,null,null,null,null,null,null,null,null,null,null,null,null,null,null,null,null,null,null,null,null,null,null,null,null,null,null,null,null,null,null,null,null,null,null,null,null,null,null,null,null,null,null,null,null,null,"",0,0,0,0,0,0,0,0,0,null,null,null,null,null,null,null,null,null,null,null,null,{"$f":"#VALUE!","v":{"$error":"#VALUE!"}},{"$f":"#VALUE!","v":{"$error":"#VALUE!"}}]
[null,null,null,null,null,null,null,null,null,null,null,null,null,null,null,null,null,null,null,null,null,null,null,null,null,null,null,null,null,null,null,null,null,null,null,null,null,null,null,null,null,null,null,null,null,null,null,null,null,null,null,null,null,null,null,null,null,null,null,null,null,null,null,"",0,0,0,0,0,0,0,0,0,null,null,null,null,null,null,null,null,null,null,null,null,{"$f":"#VALUE!","v":{"$error":"#VALUE!"}},{"$f":"#VALUE!","v":{"$error":"#VALUE!"}}]
[null,null,null,null,null,null,null,null,null,null,null,null,null,null,null,null,null,null,null,null,null,null,null,null,null,null,null,null,null,null,null,null,null,null,null,null,null,null,null,null,null,null,null,null,null,null,null,null,null,null,null,null,null,null,null,null,null,null,null,null,null,null,null,"",0,0,0,0,0,0,0,0,0,null,null,null,null,null,null,null,null,null,null,null,null,{"$f":"#VALUE!","v":{"$error":"#VALUE!"}},{"$f":"#VALUE!","v":{"$error":"#VALUE!"}}]
[null,null,null,null,null,null,null,null,null,null,null,null,null,null,null,null,null,null,null,null,null,null,null,null,null,null,null,null,null,null,null,null,null,null,null,null,null,null,null,null,null,null,null,null,null,null,null,null,null,null,null,null,null,null,null,null,null,null,null,null,null,null,null,"",0,0,0,0,0,0,0,0,0,null,null,null,null,null,null,null,null,null,null,null,null,{"$f":"#VALUE!","v":{"$error":"#VALUE!"}},{"$f":"#VALUE!","v":{"$error":"#VALUE!"}}]
[null,null,null,null,null,null,null,null,null,null,null,null,null,null,null,null,null,null,null,null,null,null,null,null,null,null,null,null,null,null,null,null,null,null,null,null,null,null,null,null,null,null,null,null,null,null,null,null,null,null,null,null,null,null,null,null,null,null,null,null,null,null,null,"",0,0,0,0,0,0,0,0,0,null,null,null,null,null,null,null,null,null,null,null,null,{"$f":"#VALUE!","v":{"$error":"#VALUE!"}},{"$f":"#VALUE!","v":{"$error":"#VALUE!"}}]
[null,null,null,null,null,null,null,null,null,null,null,null,null,null,null,null,null,null,null,null,null,null,null,null,null,null,null,null,null,null,null,null,null,null,null,null,null,null,null,null,null,null,null,null,null,null,null,null,null,null,null,null,null,null,null,null,null,null,null,null,null,null,null,"",0,0,0,0,0,0,0,0,0,null,null,null,null,null,null,null,null,null,null,null,null,{"$f":"#VALUE!","v":{"$error":"#VALUE!"}},{"$f":"#VALUE!","v":{"$error":"#VALUE!"}}]
[null,null,null,null,null,null,null,null,null,null,null,null,null,null,null,null,null,null,null,null,null,null,null,null,null,null,null,null,null,null,null,null,null,null,null,null,null,null,null,null,null,null,null,null,null,null,null,null,null,null,null,null,null,null,null,null,null,null,null,null,null,null,null,"",0,0,0,0,0,0,0,0,0,null,null,null,null,null,null,null,null,null,null,null,null,{"$f":"#VALUE!","v":{"$error":"#VALUE!"}},{"$f":"#VALUE!","v":{"$error":"#VALUE!"}}]
[null,null,null,null,null,null,null,null,null,null,null,null,null,null,null,null,null,null,null,null,null,null,null,null,null,null,null,null,null,null,null,null,null,null,null,null,null,null,null,null,null,null,null,null,null,null,null,null,null,null,null,null,null,null,null,null,null,null,null,null,null,null,null,"",0,0,0,0,0,0,0,0,0,null,null,null,null,null,null,null,null,null,null,null,null,{"$f":"#VALUE!","v":{"$error":"#VALUE!"}},{"$f":"#VALUE!","v":{"$error":"#VALUE!"}}]
[null,null,null,null,null,null,null,null,null,null,null,null,null,null,null,null,null,null,null,null,null,null,null,null,null,null,null,null,null,null,null,null,null,null,null,null,null,null,null,null,null,null,null,null,null,null,null,null,null,null,null,null,null,null,null,null,null,null,null,null,null,null,null,"",0,0,0,0,0,0,0,0,0,null,null,null,null,null,null,null,null,null,null,null,null,{"$f":"#VALUE!","v":{"$error":"#VALUE!"}},{"$f":"#VALUE!","v":{"$error":"#VALUE!"}}]
[null,null,null,null,null,null,null,null,null,null,null,null,null,null,null,null,null,null,null,null,null,null,null,null,null,null,null,null,null,null,null,null,null,null,null,null,null,null,null,null,null,null,null,null,null,null,null,null,null,null,null,null,null,null,null,null,null,null,null,null,null,null,null,"",0,0,0,0,0,0,0,0,0,null,null,null,null,null,null,null,null,null,null,null,null,{"$f":"#VALUE!","v":{"$error":"#VALUE!"}},{"$f":"#VALUE!","v":{"$error":"#VALUE!"}}]
[null,null,null,null,null,null,null,null,null,null,null,null,null,null,null,null,null,null,null,null,null,null,null,null,null,null,null,null,null,null,null,null,null,null,null,null,null,null,null,null,null,null,null,null,null,null,null,null,null,null,null,null,null,null,null,null,null,null,null,null,null,null,null,"",0,0,0,0,0,0,0,0,0,null,null,null,null,null,null,null,null,null,null,null,null,{"$f":"#VALUE!","v":{"$error":"#VALUE!"}},{"$f":"#VALUE!","v":{"$error":"#VALUE!"}}]
[null,null,null,null,null,null,null,null,null,null,null,null,null,null,null,null,null,null,null,null,null,null,null,null,null,null,null,null,null,null,null,null,null,null,null,null,null,null,null,null,null,null,null,null,null,null,null,null,null,null,null,null,null,null,null,null,null,null,null,null,null,null,null,"",0,0,0,0,0,0,0,0,0,null,null,null,null,null,null,null,null,null,null,null,null,{"$f":"#VALUE!","v":{"$error":"#VALUE!"}},{"$f":"#VALUE!","v":{"$error":"#VALUE!"}}]
[null,null,null,null,null,null,null,null,null,null,null,null,null,null,null,null,null,null,null,null,null,null,null,null,null,null,null,null,null,null,null,null,null,null,null,null,null,null,null,null,null,null,null,null,null,null,null,null,null,null,null,null,null,null,null,null,null,null,null,null,null,null,null,"",0,0,0,0,0,0,0,0,0,null,null,null,null,null,null,null,null,null,null,null,null,{"$f":"#VALUE!","v":{"$error":"#VALUE!"}},{"$f":"#VALUE!","v":{"$error":"#VALUE!"}}]
[null,null,null,null,null,null,null,null,null,null,null,null,null,null,null,null,null,null,null,null,null,null,null,null,null,null,null,null,null,null,null,null,null,null,null,null,null,null,null,null,null,null,null,null,null,null,null,null,null,null,null,null,null,null,null,null,null,null,null,null,null,null,null,"",0,0,0,0,0,0,0,0,0,null,null,null,null,null,null,null,null,null,null,null,null,{"$f":"#VALUE!","v":{"$error":"#VALUE!"}},{"$f":"#VALUE!","v":{"$error":"#VALUE!"}}]
[null,null,null,null,null,null,null,null,null,null,null,null,null,null,null,null,null,null,null,null,null,null,null,null,null,null,null,null,null,null,null,null,null,null,null,null,null,null,null,null,null,null,null,null,null,null,null,null,null,null,null,null,null,null,null,null,null,null,null,null,null,null,null,"",0,0,0,0,0,0,0,0,0,null,null,null,null,null,null,null,null,null,null,null,null,{"$f":"#VALUE!","v":{"$error":"#VALUE!"}},{"$f":"#VALUE!","v":{"$error":"#VALUE!"}}]
[null,null,null,null,null,null,null,null,null,null,null,null,null,null,null,null,null,null,null,null,null,null,null,null,null,null,null,null,null,null,null,null,null,null,null,null,null,null,null,null,null,null,null,null,null,null,null,null,null,null,null,null,null,null,null,null,null,null,null,null,null,null,null,"",0,0,0,0,0,0,0,0,0,null,null,null,null,null,null,null,null,null,null,null,null,{"$f":"#VALUE!","v":{"$error":"#VALUE!"}},{"$f":"#VALUE!","v":{"$error":"#VALUE!"}}]
[null,null,null,null,null,null,null,null,null,null,null,null,null,null,null,null,null,null,null,null,null,null,null,null,null,null,null,null,null,null,null,null,null,null,null,null,null,null,null,null,null,null,null,null,null,null,null,null,null,null,null,null,null,null,null,null,null,null,null,null,null,null,null,"",0,0,0,0,0,0,0,0,0,null,null,null,null,null,null,null,null,null,null,null,null,{"$f":"#VALUE!","v":{"$error":"#VALUE!"}},{"$f":"#VALUE!","v":{"$error":"#VALUE!"}}]
[null,null,null,null,null,null,null,null,null,null,null,null,null,null,null,null,null,null,null,null,null,null,null,null,null,null,null,null,null,null,null,null,null,null,null,null,null,null,null,null,null,null,null,null,null,null,null,null,null,null,null,null,null,null,null,null,null,null,null,null,null,null,null,"",0,0,0,0,0,0,0,0,0,null,null,null,null,null,null,null,null,null,null,null,null,{"$f":"#VALUE!","v":{"$error":"#VALUE!"}},{"$f":"#VALUE!","v":{"$error":"#VALUE!"}}]
[null,null,null,null,null,null,null,null,null,null,null,null,null,null,null,null,null,null,null,null,null,null,null,null,null,null,null,null,null,null,null,null,null,null,null,null,null,null,null,null,null,null,null,null,null,null,null,null,null,null,null,null,null,null,null,null,null,null,null,null,null,null,null,"",0,0,0,0,0,0,0,0,0,null,null,null,null,null,null,null,null,null,null,null,null,{"$f":"#VALUE!","v":{"$error":"#VALUE!"}},{"$f":"#VALUE!","v":{"$error":"#VALUE!"}}]
[null,null,null,null,null,null,null,null,null,null,null,null,null,null,null,null,null,null,null,null,null,null,null,null,null,null,null,null,null,null,null,null,null,null,null,null,null,null,null,null,null,null,null,null,null,null,null,null,null,null,null,null,null,null,null,null,null,null,null,null,null,null,null,"",0,0,0,0,0,0,0,0,0,null,null,null,null,null,null,null,null,null,null,null,null,{"$f":"#VALUE!","v":{"$error":"#VALUE!"}},{"$f":"#VALUE!","v":{"$error":"#VALUE!"}}]
[null,null,null,null,null,null,null,null,null,null,null,null,null,null,null,null,null,null,null,null,null,null,null,null,null,null,null,null,null,null,null,null,null,null,null,null,null,null,null,null,null,null,null,null,null,null,null,null,null,null,null,null,null,null,null,null,null,null,null,null,null,null,null,"",0,0,0,0,0,0,0,0,0,null,null,null,null,null,null,null,null,null,null,null,null,{"$f":"#VALUE!","v":{"$error":"#VALUE!"}},{"$f":"#VALUE!","v":{"$error":"#VALUE!"}}]
[null,null,null,null,null,null,null,null,null,null,null,null,null,null,null,null,null,null,null,null,null,null,null,null,null,null,null,null,null,null,null,null,null,null,null,null,null,null,null,null,null,null,null,null,null,null,null,null,null,null,null,null,null,null,null,null,null,null,null,null,null,null,null,"",0,{"$f":"FLOOR(IF(H316=\"إدارى\",I316*0,IF(H316=\"معلم مساعد\",I316*50/100,IF(H316=\"معلم\",I316*50/100,IF(H316=\"معلم أول\",I316*50/100,IF(H316=\"معلم أول أ\",I316*50/100,IF(H316=\"خبير\",I316*50/100,IF(H316=\"كبير\",I316*50/100,))))))),0.05)","v":0},0,0,0,0,0,0,0,null,null,null,null,null,null,null,null,null,null,null,null,{"$f":"#VALUE!","v":{"$error":"#VALUE!"}},{"$f":"#VALUE!","v":{"$error":"#VALUE!"}}]
[null,null,null,null,null,null,null,null,null,null,null,null,null,null,null,null,null,null,null,null,null,null,null,null,null,null,null,null,null,null,null,null,null,null,null,null,null,null,null,null,null,null,null,null,null,null,null,null,null,null,null,null,null,null,null,null,null,null,null,null,null,null,null,"",0,0,0,0,0,0,0,0,0,null,null,null,null,null,null,null,null,null,null,null,null,{"$f":"#VALUE!","v":{"$error":"#VALUE!"}},{"$f":"#VALUE!","v":{"$error":"#VALUE!"}}]
[null,null,null,null,null,null,null,null,null,null,null,null,null,null,null,null,null,null,null,null,null,null,null,null,null,null,null,null,null,null,null,null,null,null,null,null,null,null,null,null,null,null,null,null,null,null,null,null,null,null,null,null,null,null,null,null,null,null,null,null,null,null,null,"",0,0,0,0,0,0,0,0,0,null,null,null,null,null,null,null,null,null,null,null,null,{"$f":"#VALUE!","v":{"$error":"#VALUE!"}},{"$f":"#VALUE!","v":{"$error":"#VALUE!"}}]
[null,null,null,null,null,null,null,null,null,null,null,null,null,null,null,null,null,null,null,null,null,null,null,null,null,null,null,null,null,null,null,null,null,null,null,null,null,null,null,null,null,null,null,null,null,null,null,null,null,null,null,null,null,null,null,null,null,null,null,null,null,null,null,"",0,0,0,0,0,0,0,0,0,null,null,null,null,null,null,null,null,null,null,null,null,{"$f":"#VALUE!","v":{"$error":"#VALUE!"}},{"$f":"#VALUE!","v":{"$error":"#VALUE!"}}]
[null,null,null,null,null,null,null,null,null,null,null,null,null,null,null,null,null,null,null,null,null,null,null,null,null,null,null,null,null,null,null,null,null,null,null,null,null,null,null,null,null,null,null,null,null,null,null,null,null,null,null,null,null,null,null,null,null,null,null,null,null,null,null,"",0,0,0,0,0,0,0,0,0,null,null,null,null,null,null,null,null,null,null,null,null,{"$f":"#VALUE!","v":{"$error":"#VALUE!"}},{"$f":"#VALUE!","v":{"$error":"#VALUE!"}}]
[null,null,null,null,null,null,null,null,null,null,null,null,null,null,null,null,null,null,null,null,null,null,null,null,null,null,null,null,null,null,null,null,null,null,null,null,null,null,null,null,null,null,null,null,null,null,null,null,null,null,null,null,null,null,null,null,null,null,null,null,null,null,null,"",0,0,0,0,0,0,0,0,0,null,null,null,null,null,null,null,null,null,null,null,null,{"$f":"#VALUE!","v":{"$error":"#VALUE!"}},{"$f":"#VALUE!","v":{"$error":"#VALUE!"}}]
[null,null,null,null,null,null,null,null,null,null,null,null,null,null,null,null,null,null,null,null,null,null,null,null,null,null,null,null,null,null,null,null,null,null,null,null,null,null,null,null,null,null,null,null,null,null,null,null,null,null,null,null,null,null,null,null,null,null,null,null,null,null,null,"",0,0,0,0,0,0,0,0,0,null,null,null,null,null,null,null,null,null,null,null,null,{"$f":"#VALUE!","v":{"$error":"#VALUE!"}},{"$f":"#VALUE!","v":{"$error":"#VALUE!"}}]
[null,null,null,null,null,null,null,null,null,null,null,null,null,null,null,null,null,null,null,null,null,null,null,null,null,null,null,null,null,null,null,null,null,null,null,null,null,null,null,null,null,null,null,null,null,null,null,null,null,null,null,null,null,null,null,null,null,null,null,null,null,null,null,"",0,0,0,0,0,0,0,0,0,null,null,null,null,null,null,null,null,null,null,null,null,{"$f":"#VALUE!","v":{"$error":"#VALUE!"}},{"$f":"#VALUE!","v":{"$error":"#VALUE!"}}]
[null,null,null,null,null,null,null,null,null,null,null,null,null,null,null,null,null,null,null,null,null,null,null,null,null,null,null,null,null,null,null,null,null,null,null,null,null,null,null,null,null,null,null,null,null,null,null,null,null,null,null,null,null,null,null,null,null,null,null,null,null,null,null,{"$f":"IF(H324=\"معلم مساعد\",10,IF(H324=\"معلم تعاقد\",10,IF(H324=\"معلم\",10,IF(H324=\"معلم أول\",10,IF(H324=\"معلم أول أ\",10,IF(H324=\"خبير\",10,IF(H324=\"كبير\",10,IF(H324=\"عامل تعاقد\",0,\"\"))))))))","v":""},0,0,{"$f":"IF(H324=\"إدارى\",I324*0,IF(H324=\"معلم مساعد\",I324*0/100,IF(H324=\"معلم\",I324*50/100,IF(H324=\"معلم أول\",I324*75/100,IF(H324=\"معلم أول أ\",I324*100/100,IF(H324=\"خبير\",I324*125/100,IF(H324=\"كبير\",I324*150/100,)))))))","v":0},{"$f":"INT(IF(H324=\"عامل تعاقد\",I324*25/100,IF(H324=\"معلم مساعد\",I324*25/100,IF(H324=\"معلم\",I324*25/100,IF(H324=\"معلم أول\",I324*25/100,IF(H324=\"معلم أول أ\",I324*25/100,IF(H324=\"خبير\",I324*25/100,IF(H324=\"كبير\",I324*25/100,))))))))","v":0},{"$f":"INT(IF(H324=\"إدارى\",J324*0/100,IF(H324=\"معلم مساعد\",I324*125/100,IF(H324=\"معلم\",I324*75/100,IF(H324=\"معلم أول\",I324*50/100,IF(H324=\"معلم أول أ\",I324*25/100,IF(H324=\"خبير\",I324*25/100,IF(H324=\"كبير\",I324*25/100,))))))))","v":0},{"$f":"INT(IF(H324=\"عامل تعاقد\",I324*0.9166,IF(H324=\"معلم تعاقد\",I324*0.9166,0)))","v":0},{"$f":"INT(IF(H324=\"عامل تعاقد\",I324*0.5,IF(H324=\"معلم تعاقد\",I324*0.5,0)))","v":0},{"$f":"INT(IF(F324=1,I324*0.3333,0))","v":0},{"$f":"IF(H324=\"عامل تعاقد\",225,IF(H324=\"معلم تعاقد\",300,0))","v":0},null,null,null,null,null,null,null,null,null,null,null,null,{"$f":"#VALUE!","v":{"$error":"#VALUE!"}},{"$f":"#VALUE!","v":{"$error":"#VALUE!"}}]
[null,null,null,null,null,null,null,null,null,null,null,null,null,null,null,null,null,null,null,null,null,null,null,null,null,null,null,null,null,null,null,null,null,null,null,null,null,null,null,null,null,null,null,null,null,null,null,null,null,null,null,null,null,null,null,null,null,null,null,null,null,null,null,"",{"$f":"IF(H325=\"عقد مميز\",I325*0/100,IF(H325=\"معلم تعاقد\",I325*0/100,IF(H325=\"معلم\",I325*50/100,IF(H325=\"معلم أول\",I325*50/100,IF(H325=\"معلم أول أ\",I325*50/100,IF(H325=\"خبير\",I325*50/100,IF(H325=\"كبير\",I325*50/100,)))))))","v":0},0,0,0,0,0,0,0,0,null,null,null,null,null,null,null,null,null,null,null,null,{"$f":"#VALUE!","v":{"$error":"#VALUE!"}},{"$f":"#VALUE!","v":{"$error":"#VALUE!"}}]
[null,null,null,null,null,null,null,null,null,null,null,null,null,null,null,null,null,null,null,null,null,null,null,null,null,null,null,null,null,null,null,null,null,null,null,null,null,null,null,null,null,null,null,null,null,null,null,null,null,null,null,null,null,null,null,null,null,null,null,null,null,null,null,"",0,0,0,0,0,0,0,0,0,null,null,null,null,null,null,null,null,null,null,null,null,{"$f":"#VALUE!","v":{"$error":"#VALUE!"}},{"$f":"#VALUE!","v":{"$error":"#VALUE!"}}]
[null,null,null,null,null,null,null,null,null,null,null,null,null,null,null,null,null,null,null,null,null,null,null,null,null,null,null,null,null,null,null,null,null,null,null,null,null,null,null,null,null,null,null,null,null,null,null,null,null,null,null,null,null,null,null,null,null,null,null,null,null,null,null,"",0,0,0,0,0,0,0,0,0,null,null,null,null,null,null,null,null,null,null,null,null,{"$f":"#VALUE!","v":{"$error":"#VALUE!"}},{"$f":"#VALUE!","v":{"$error":"#VALUE!"}}]
[null,null,null,null,null,null,null,null,null,null,null,null,null,null,null,null,null,null,null,null,null,null,null,null,null,null,null,null,null,null,null,null,null,null,null,null,null,null,null,null,null,null,null,null,null,null,null,null,null,null,null,null,null,null,null,null,null,null,null,null,null,null,null,"",0,0,0,0,0,0,0,0,0,null,null,null,null,null,null,null,null,null,null,null,null,{"$f":"#VALUE!","v":{"$error":"#VALUE!"}},{"$f":"#VALUE!","v":{"$error":"#VALUE!"}}]
[null,null,null,null,null,null,null,null,null,null,null,null,null,null,null,null,null,null,null,null,null,null,null,null,null,null,null,null,null,null,null,null,null,null,null,null,null,null,null,null,null,null,null,null,null,null,null,null,null,null,null,null,null,null,null,null,null,null,null,null,null,null,null,"",0,0,0,0,0,0,0,0,0,null,null,null,null,null,null,null,null,null,null,null,null,{"$f":"#VALUE!","v":{"$error":"#VALUE!"}},{"$f":"#VALUE!","v":{"$error":"#VALUE!"}}]
[null,null,null,null,null,null,null,null,null,null,null,null,null,null,null,null,null,null,null,null,null,null,null,null,null,null,null,null,null,null,null,null,null,null,null,null,null,null,null,null,null,null,null,null,null,null,null,null,null,null,null,null,null,null,null,null,null,null,null,null,null,null,null,"",0,0,0,0,0,0,0,0,0,null,null,null,null,null,null,null,null,null,null,null,null,{"$f":"#VALUE!","v":{"$error":"#VALUE!"}},{"$f":"#VALUE!","v":{"$error":"#VALUE!"}}]
[null,null,null,null,null,null,null,null,null,null,null,null,null,null,null,null,null,null,null,null,null,null,null,null,null,null,null,null,null,null,null,null,null,null,null,null,null,null,null,null,null,null,null,null,null,null,null,null,null,null,null,null,null,null,null,null,null,null,null,null,null,null,null,"",0,0,0,0,0,0,0,0,0,null,null,null,null,null,null,null,null,null,null,null,null,{"$f":"#VALUE!","v":{"$error":"#VALUE!"}},{"$f":"#VALUE!","v":{"$error":"#VALUE!"}}]
[null,null,null,null,null,null,null,null,null,null,null,null,null,null,null,null,null,null,null,null,null,null,null,null,null,null,null,null,null,null,null,null,null,null,null,null,null,null,null,null,null,null,null,null,null,null,null,null,null,null,null,null,null,null,null,null,null,null,null,null,null,null,null,"",0,0,0,0,0,0,0,0,0,null,null,null,null,null,null,null,null,null,null,null,null,{"$f":"#VALUE!","v":{"$error":"#VALUE!"}},{"$f":"#VALUE!","v":{"$error":"#VALUE!"}}]
[null,null,null,null,null,null,null,null,null,null,null,null,null,null,null,null,null,null,null,null,null,null,null,null,null,null,null,null,null,null,null,null,null,null,null,null,null,null,null,null,null,null,null,null,null,null,null,null,null,null,null,null,null,null,null,null,null,null,null,null,null,null,null,"",0,0,0,0,0,0,0,0,0,null,null,null,null,null,null,null,null,null,null,null,null,{"$f":"#VALUE!","v":{"$error":"#VALUE!"}},{"$f":"#VALUE!","v":{"$error":"#VALUE!"}}]
[null,null,null,null,null,null,null,null,null,null,null,null,null,null,null,null,null,null,null,null,null,null,null,null,null,null,null,null,null,null,null,null,null,null,null,null,null,null,null,null,null,null,null,null,null,null,null,null,null,null,null,null,null,null,null,null,null,null,null,null,null,null,null,"",0,0,0,0,0,0,0,0,0,null,null,null,null,null,null,null,null,null,null,null,null,{"$f":"#VALUE!","v":{"$error":"#VALUE!"}},{"$f":"#VALUE!","v":{"$error":"#VALUE!"}}]
[null,null,null,null,null,null,null,null,null,null,null,null,null,null,null,null,null,null,null,null,null,null,null,null,null,null,null,null,null,null,null,null,null,null,null,null,null,null,null,null,null,null,null,null,null,null,null,null,null,null,null,null,null,null,null,null,null,null,null,null,null,null,null,"",0,0,0,0,0,0,0,0,0,null,null,null,null,null,null,null,null,null,null,null,null,{"$f":"#VALUE!","v":{"$error":"#VALUE!"}},{"$f":"#VALUE!","v":{"$error":"#VALUE!"}}]
[null,null,null,null,null,null,null,null,null,null,null,null,null,null,null,null,null,null,null,null,null,null,null,null,null,null,null,null,null,null,null,null,null,null,null,null,null,null,null,null,null,null,null,null,null,null,null,null,null,null,null,null,null,null,null,null,null,null,null,null,null,null,null,"",0,0,0,0,0,0,0,0,0,null,null,null,null,null,null,null,null,null,null,null,null,{"$f":"#VALUE!","v":{"$error":"#VALUE!"}},{"$f":"#VALUE!","v":{"$error":"#VALUE!"}}]
[null,null,null,null,null,null,null,null,null,null,null,null,null,null,null,null,null,null,null,null,null,null,null,null,null,null,null,null,null,null,null,null,null,null,null,null,null,null,null,null,null,null,null,null,null,null,null,null,null,null,null,null,null,null,null,null,null,null,null,null,null,null,null,"",0,0,0,0,0,0,0,0,0,null,null,null,null,null,null,null,null,null,null,null,null,{"$f":"#VALUE!","v":{"$error":"#VALUE!"}},{"$f":"#VALUE!","v":{"$error":"#VALUE!"}}]
[null,null,null,null,null,null,null,null,null,null,null,null,null,null,null,null,null,null,null,null,null,null,null,null,null,null,null,null,null,null,null,null,null,null,null,null,null,null,null,null,null,null,null,null,null,null,null,null,null,null,null,null,null,null,null,null,null,null,null,null,null,null,null,"",0,0,0,0,0,0,0,0,0,null,null,null,null,null,null,null,null,null,null,null,null,{"$f":"#VALUE!","v":{"$error":"#VALUE!"}},{"$f":"#VALUE!","v":{"$error":"#VALUE!"}}]
[null,null,null,null,null,null,null,null,null,null,null,null,null,null,null,null,null,null,null,null,null,null,null,null,null,null,null,null,null,null,null,null,null,null,null,null,null,null,null,null,null,null,null,null,null,null,null,null,null,null,null,null,null,null,null,null,null,null,null,null,null,null,null,"",0,0,0,0,0,0,0,0,0,null,null,null,null,null,null,null,null,null,null,null,null,{"$f":"#VALUE!","v":{"$error":"#VALUE!"}},{"$f":"#VALUE!","v":{"$error":"#VALUE!"}}]
[null,null,null,null,null,null,null,null,null,null,null,null,null,null,null,null,null,null,null,null,null,null,null,null,null,null,null,null,null,null,null,null,null,null,null,null,null,null,null,null,null,null,null,null,null,null,null,null,null,null,null,null,null,null,null,null,null,null,null,null,null,null,null,"",0,0,0,0,0,0,0,0,0,null,null,null,null,null,null,null,null,null,null,null,null,{"$f":"#VALUE!","v":{"$error":"#VALUE!"}},{"$f":"#VALUE!","v":{"$error":"#VALUE!"}}]
[null,null,null,null,null,null,null,null,null,null,null,null,null,null,null,null,null,null,null,null,null,null,null,null,null,null,null,null,null,null,null,null,null,null,null,null,null,null,null,null,null,null,null,null,null,null,null,null,null,null,null,null,null,null,null,null,null,null,null,null,null,null,null,"",0,0,0,0,0,0,0,0,0,null,null,null,null,null,null,null,null,null,null,null,null,{"$f":"#VALUE!","v":{"$error":"#VALUE!"}},{"$f":"#VALUE!","v":{"$error":"#VALUE!"}}]
[null,null,null,null,null,null,null,null,null,null,null,null,null,null,null,null,null,null,null,null,null,null,null,null,null,null,null,null,null,null,null,null,null,null,null,null,null,null,null,null,null,null,null,null,null,null,null,null,null,null,null,null,null,null,null,null,null,null,null,null,null,null,null,"",0,0,0,0,0,0,0,0,0,null,null,null,null,null,null,null,null,null,null,null,null,{"$f":"#VALUE!","v":{"$error":"#VALUE!"}},{"$f":"#VALUE!","v":{"$error":"#VALUE!"}}]
[null,null,null,null,null,null,null,null,null,null,null,null,null,null,null,null,null,null,null,null,null,null,null,null,null,null,null,null,null,null,null,null,null,null,null,null,null,null,null,null,null,null,null,null,null,null,null,null,null,null,null,null,null,null,null,null,null,null,null,null,null,null,null,"",0,0,0,0,0,0,0,0,0,null,null,null,null,null,null,null,null,null,null,null,null,{"$f":"#VALUE!","v":{"$error":"#VALUE!"}},{"$f":"#VALUE!","v":{"$error":"#VALUE!"}}]
[null,null,null,null,null,null,null,null,null,null,null,null,null,null,null,null,null,null,null,null,null,null,null,null,null,null,null,null,null,null,null,null,null,null,null,null,null,null,null,null,null,null,null,null,null,null,null,null,null,null,null,null,null,null,null,null,null,null,null,null,null,null,null,"",0,0,0,0,0,0,0,0,0,null,null,null,null,null,null,null,null,null,null,null,null,{"$f":"#VALUE!","v":{"$error":"#VALUE!"}},{"$f":"#VALUE!","v":{"$error":"#VALUE!"}}]
[null,null,null,null,null,null,null,null,null,null,null,null,null,null,null,null,null,null,null,null,null,null,null,null,null,null,null,null,null,null,null,null,null,null,null,null,null,null,null,null,null,null,null,null,null,null,null,null,null,null,null,null,null,null,null,null,null,null,null,null,null,null,null,"",0,0,0,0,0,0,0,0,0,null,null,null,null,null,null,null,null,null,null,null,null,{"$f":"#VALUE!","v":{"$error":"#VALUE!"}},{"$f":"#VALUE!","v":{"$error":"#VALUE!"}}]
[null,null,null,null,null,null,null,null,null,null,null,null,null,null,null,null,null,null,null,null,null,null,null,null,null,null,null,null,null,null,null,null,null,null,null,null,null,null,null,null,null,null,null,null,null,null,null,null,null,null,null,null,null,null,null,null,null,null,null,null,null,null,null,"",0,0,0,0,0,0,0,0,0,null,null,null,null,null,null,null,null,null,null,null,null,{"$f":"#VALUE!","v":{"$error":"#VALUE!"}},{"$f":"#VALUE!","v":{"$error":"#VALUE!"}}]
[null,null,null,null,null,null,null,null,null,null,null,null,null,null,null,null,null,null,null,null,null,null,null,null,null,null,null,null,null,null,null,null,null,null,null,null,null,null,null,null,null,null,null,null,null,null,null,null,null,null,null,null,null,null,null,null,null,null,null,null,null,null,null,"",0,0,0,0,0,0,0,0,0,null,null,null,null,null,null,null,null,null,null,null,null,{"$f":"#VALUE!","v":{"$error":"#VALUE!"}},{"$f":"#VALUE!","v":{"$error":"#VALUE!"}}]
[null,null,null,null,null,null,null,null,null,null,null,null,null,null,null,null,null,null,null,null,null,null,null,null,null,null,null,null,null,null,null,null,null,null,null,null,null,null,null,null,null,null,null,null,null,null,null,null,null,null,null,null,null,null,null,null,null,null,null,null,null,null,null,"",0,{"$f":"FLOOR(IF(H348=\"إدارى\",I348*0,IF(H348=\"معلم مساعد\",I348*50/100,IF(H348=\"معلم\",I348*50/100,IF(H348=\"معلم أول\",I348*50/100,IF(H348=\"معلم أول أ\",I348*50/100,IF(H348=\"خبير\",I348*50/100,IF(H348=\"كبير\",I348*50/100,))))))),0.05)","v":0},0,0,0,0,0,0,0,null,null,null,null,null,null,null,null,null,null,null,null,{"$f":"#VALUE!","v":{"$error":"#VALUE!"}},{"$f":"#VALUE!","v":{"$error":"#VALUE!"}}]
[null,null,null,null,null,null,null,null,null,null,null,null,null,null,null,null,null,null,null,null,null,null,null,null,null,null,null,null,null,null,null,null,null,null,null,null,null,null,null,null,null,null,null,null,null,null,null,null,null,null,null,null,null,null,null,null,null,null,null,null,null,null,null,"",0,0,0,0,0,0,0,0,0,null,null,null,null,null,null,null,null,null,null,null,null,{"$f":"#VALUE!","v":{"$error":"#VALUE!"}},{"$f":"#VALUE!","v":{"$error":"#VALUE!"}}]
[null,null,null,null,null,null,null,null,null,null,null,null,null,null,null,null,null,null,null,null,null,null,null,null,null,null,null,null,null,null,null,null,null,null,null,null,null,null,null,null,null,null,null,null,null,null,null,null,null,null,null,null,null,null,null,null,null,null,null,null,null,null,null,"",0,0,0,0,0,0,0,0,0,null,null,null,null,null,null,null,null,null,null,null,null,{"$f":"#VALUE!","v":{"$error":"#VALUE!"}},{"$f":"#VALUE!","v":{"$error":"#VALUE!"}}]
[null,null,null,null,null,null,null,null,null,null,null,null,null,null,null,null,null,null,null,null,null,null,null,null,null,null,null,null,null,null,null,null,null,null,null,null,null,null,null,null,null,null,null,null,null,null,null,null,null,null,null,null,null,null,null,null,null,null,null,null,null,null,null,"",0,0,0,0,0,0,0,0,0,null,null,null,null,null,null,null,null,null,null,null,null,{"$f":"#VALUE!","v":{"$error":"#VALUE!"}},{"$f":"#VALUE!","v":{"$error":"#VALUE!"}}]
[null,null,null,null,null,null,null,null,null,null,null,null,null,null,null,null,null,null,null,null,null,null,null,null,null,null,null,null,null,null,null,null,null,null,null,null,null,null,null,null,null,null,null,null,null,null,null,null,null,null,null,null,null,null,null,null,null,null,null,null,null,null,null,"",0,0,0,0,0,0,0,0,0,null,null,null,null,null,null,null,null,null,null,null,null,{"$f":"#VALUE!","v":{"$error":"#VALUE!"}},{"$f":"#VALUE!","v":{"$error":"#VALUE!"}}]
[null,null,null,null,null,null,null,null,null,null,null,null,null,null,null,null,null,null,null,null,null,null,null,null,null,null,null,null,null,null,null,null,null,null,null,null,null,null,null,null,null,null,null,null,null,null,null,null,null,null,null,null,null,null,null,null,null,null,null,null,null,null,null,"",0,0,0,0,0,0,0,0,0,null,null,null,null,null,null,null,null,null,null,null,null,{"$f":"#VALUE!","v":{"$error":"#VALUE!"}},{"$f":"#VALUE!","v":{"$error":"#VALUE!"}}]
[null,null,null,null,null,null,null,null,null,null,null,null,null,null,null,null,null,null,null,null,null,null,null,null,null,null,null,null,null,null,null,null,null,null,null,null,null,null,null,null,null,null,null,null,null,null,null,null,null,null,null,null,null,null,null,null,null,null,null,null,null,null,null,"",0,0,0,0,0,0,0,0,0,null,null,null,null,null,null,null,null,null,null,null,null,{"$f":"#VALUE!","v":{"$error":"#VALUE!"}},{"$f":"#VALUE!","v":{"$error":"#VALUE!"}}]
[null,null,null,null,null,null,null,null,null,null,null,null,null,null,null,null,null,null,null,null,null,null,null,null,null,null,null,null,null,null,null,null,null,null,null,null,null,null,null,null,null,null,null,null,null,null,null,null,null,null,null,null,null,null,null,null,null,null,null,null,null,null,null,"",0,0,0,0,0,0,0,0,0,null,null,null,null,null,null,null,null,null,null,null,null,{"$f":"#VALUE!","v":{"$error":"#VALUE!"}},{"$f":"#VALUE!","v":{"$error":"#VALUE!"}}]
[null,null,null,null,null,null,null,null,null,null,null,null,null,null,null,null,null,null,null,null,null,null,null,null,null,null,null,null,null,null,null,null,null,null,null,null,null,null,null,null,null,null,null,null,null,null,null,null,null,null,null,null,null,null,null,null,null,null,null,null,null,null,null,"",0,0,0,0,0,0,0,0,0,null,null,null,null,null,null,null,null,null,null,null,null,{"$f":"#VALUE!","v":{"$error":"#VALUE!"}},{"$f":"#VALUE!","v":{"$error":"#VALUE!"}}]
[null,null,null,null,null,null,null,null,null,null,null,null,null,null,null,null,null,null,null,null,null,null,null,null,null,null,null,null,null,null,null,null,null,null,null,null,null,null,null,null,null,null,null,null,null,null,null,null,null,null,null,null,null,null,null,null,null,null,null,null,null,null,null,"",0,0,0,0,0,0,0,0,0,null,null,null,null,null,null,null,null,null,null,null,null,{"$f":"IF(H357=\"عقد مميز\",I357*0/100,IF(H357=\"معلم مساعد\",I357*125/100,IF(H357=\"معلم\",I357*75/100,IF(H357=\"معلم اول\",I357*50/100,IF(H357=\"معلم اول ا\",I357*25/100,IF(H357=\"معلم خبير\",I357*25/100,IF(H357=\"معلم كبير\",I357*25/100,)))))))","v":0},{"$f":"IF(H357=\"عقد مميز\",I357*25/100,IF(H357=\"معلم مساعد\",I357*25/100,IF(H357=\"معلم\",I357*25/100,IF(H357=\"معلم اول\",I357*25/100,IF(H357=\"معلم اول ا\",I357*25/100,IF(H357=\"معلم خبير\",I357*25/100,IF(H357=\"معلم كبير\",I357*25,0)))))))","v":0}]
[null,null,null,null,null,null,null,null,null,null,null,null,null,null,null,null,null,null,null,null,null,null,null,null,null,null,null,null,null,null,null,null,null,null,null,null,null,null,null,null,null,null,null,null,null,null,null,null,null,null,null,null,null,null,null,null,null,null,null,null,null,null,null,"",0,0,0,0,0,0,0,0,0]
[null,null,null,null,null,null,null,null,null,null,null,null,null,null,null,null,null,null,null,null,null,null,null,null,null,null,null,null,null,null,null,null,null,null,null,null,null,null,null,null,null,null,null,null,null,null,null,null,null,null,null,null,null,null,null,null,null,null,null,null,null,null,null,"",0,0,0,0,0,0,0,0,0]
[null,null,null,null,null,null,null,null,null,null,null,null,null,null,null,null,null,null,null,null,null,null,null,null,null,null,null,null,null,null,null,null,null,null,null,null,null,null,null,null,null,null,null,null,null,null,null,null,null,null,null,null,null,null,null,null,null,null,null,null,null,null,null,"",0,0,0,0,0,0,0,0,0]
[null,null,null,null,null,null,null,null,null,null,null,null,null,null,null,null,null,null,null,null,null,null,null,null,null,null,null,null,null,null,null,null,null,null,null,null,null,null,null,null,null,null,null,null,null,null,null,null,null,null,null,null,null,null,null,null,null,null,null,null,null,null,null,"",0,0,0,0,0,0,0,0,0]
[null,null,null,null,null,null,null,null,null,null,null,null,null,null,null,null,null,null,null,null,null,null,null,null,null,null,null,null,null,null,null,null,null,null,null,null,null,null,null,null,null,null,null,null,null,null,null,null,null,null,null,null,null,null,null,null,null,null,null,null,null,null,null,"",0,0,0,0,0,0,0,0,0]
[null,null,null,null,null,null,null,null,null,null,null,null,null,null,null,null,null,null,null,null,null,null,null,null,null,null,null,null,null,null,null,null,null,null,null,null,null,null,null,null,null,null,null,null,null,null,null,null,null,null,null,null,null,null,null,null,null,null,null,null,null,null,null,"",0,0,0,0,0,0,0,0,0]
[null,null,null,null,null,null,null,null,null,null,null,null,null,null,null,null,null,null,null,null,null,null,null,null,null,null,null,null,null,null,null,null,null,null,null,null,null,null,null,null,null,null,null,null,null,null,null,null,null,null,null,null,null,null,null,null,null,null,null,null,null,null,null,"",0,0,0,0,0,0,0,0,0]
[null,null,null,null,null,null,null,null,null,null,null,null,null,null,null,null,null,null,null,null,null,null,null,null,null,null,null,null,null,null,null,null,null,null,null,null,null,null,null,null,null,null,null,null,null,null,null,null,null,null,null,null,null,null,null,null,null,null,null,null,null,null,null,"",0,0,0,0,0,0,0,0,0]
[null,null,null,null,null,null,null,null,null,null,null,null,null,null,null,null,null,null,null,null,null,null,null,null,null,null,null,null,null,null,null,null,null,null,null,null,null,null,null,null,null,null,null,null,null,null,null,null,null,null,null,null,null,null,null,null,null,null,null,null,null,null,null,"",0,0,0,0,0,0,0,0,0]
[null,null,null,null,null,null,null,null,null,null,null,null,null,null,null,null,null,null,null,null,null,null,null,null,null,null,null,null,null,null,null,null,null,null,null,null,null,null,null,null,null,null,null,null,null,null,null,null,null,null,null,null,null,null,null,null,null,null,null,null,null,null,null,"",0,0,0,0,0,0,0,0,0]
[null,null,null,null,null,null,null,null,null,null,null,null,null,null,null,null,null,null,null,null,null,null,null,null,null,null,null,null,null,null,null,null,null,null,null,null,null,null,null,null,null,null,null,null,null,null,null,null,null,null,null,null,null,null,null,null,null,null,null,null,null,null,null,"",0,0,0,0,0,0,0,0,0]
[null,null,null,null,null,null,null,null,null,null,null,null,null,null,null,null,null,null,null,null,null,null,null,null,null,null,null,null,null,null,null,null,null,null,null,null,null,null,null,null,null,null,null,null,null,null,null,null,null,null,null,null,null,null,null,null,null,null,null,null,null,null,null,"",0,0,0,0,0,0,0,0,0]
[null,null,null,null,null,null,null,null,null,null,null,null,null,null,null,null,null,null,null,null,null,null,null,null,null,null,null,null,null,null,null,null,null,null,null,null,null,null,null,null,null,null,null,null,null,null,null,null,null,null,null,null,null,null,null,null,null,null,null,null,null,null,null,"",0,0,0,0,0,0,0,0,0]
[null,null,null,null,null,null,null,null,null,null,null,null,null,null,null,null,null,null,null,null,null,null,null,null,null,null,null,null,null,null,null,null,null,null,null,null,null,null,null,null,null,null,null,null,null,null,null,null,null,null,null,null,null,null,null,null,null,null,null,null,null,null,null,"",0,0,0,0,0,0,0,0,0]
[null,null,null,null,null,null,null,null,null,null,null,null,null,null,null,null,null,null,null,null,null,null,null,null,null,null,null,null,null,null,null,null,null,null,null,null,null,null,null,null,null,null,null,null,null,null,null,null,null,null,null,null,null,null,null,null,null,null,null,null,null,null,null,"",0,0,0,0,0,0,0,0,0]
[null,null,null,null,null,null,null,null,null,null,null,null,null,null,null,null,null,null,null,null,null,null,null,null,null,null,null,null,null,null,null,null,null,null,null,null,null,null,null,null,null,null,null,null,null,null,null,null,null,null,null,null,null,null,null,null,null,null,null,null,null,null,null,"",0,0,0,0,0,0,0,0,0]
[null,null,null,null,null,null,null,null,null,null,null,null,null,null,null,null,null,null,null,null,null,null,null,null,null,null,null,null,null,null,null,null,null,null,null,null,null,null,null,null,null,null,null,null,null,null,null,null,null,null,null,null,null,null,null,null,null,null,null,null,null,null,null,"",0,0,0,0,0,0,0,0,0]
[null,null,null,null,null,null,null,null,null,null,null,null,null,null,null,null,null,null,null,null,null,null,null,null,null,null,null,null,null,null,null,null,null,null,null,null,null,null,null,null,null,null,null,null,null,null,null,null,null,null,null,null,null,null,null,null,null,null,null,null,null,null,null,"",0,0,0,0,0,0,0,0,0]
[null,null,null,null,null,null,null,null,null,null,null,null,null,null,null,null,null,null,null,null,null,null,null,null,null,null,null,null,null,null,null,null,null,null,null,null,null,null,null,null,null,null,null,null,null,null,null,null,null,null,null,null,null,null,null,null,null,null,null,null,null,null,null,"",0,0,0,0,0,0,0,0,0]
[null,null,null,null,null,null,null,null,null,null,null,null,null,null,null,null,null,null,null,null,null,null,null,null,null,null,null,null,null,null,null,null,null,null,null,null,null,null,null,null,null,null,null,null,null,null,null,null,null,null,null,null,null,null,null,null,null,null,null,null,null,null,null,"",0,0,0,0,0,0,0,0,0]
[null,null,null,null,null,null,null,null,null,null,null,null,null,null,null,null,null,null,null,null,null,null,null,null,null,null,null,null,null,null,null,null,null,null,null,null,null,null,null,null,null,null,null,null,null,null,null,null,null,null,null,null,null,null,null,null,null,null,null,null,null,null,null,"",0,0,0,0,0,0,0,0,0]
[null,null,null,null,null,null,null,null,null,null,null,null,null,null,null,null,null,null,null,null,null,null,null,null,null,null,null,null,null,null,null,null,null,null,null,null,null,null,null,null,null,null,null,null,null,null,null,null,null,null,null,null,null,null,null,null,null,null,null,null,null,null,null,"",0,0,0,0,0,0,0,0,0]
[null,null,null,null,null,null,null,null,null,null,null,null,null,null,null,null,null,null,null,null,null,null,null,null,null,null,null,null,null,null,null,null,null,null,null,null,null,null,null,null,null,null,null,null,null,null,null,null,null,null,null,null,null,null,null,null,null,null,null,null,null,null,null,"",0,{"$f":"FLOOR(IF(H380=\"إدارى\",I380*0,IF(H380=\"معلم مساعد\",I380*50/100,IF(H380=\"معلم\",I380*50/100,IF(H380=\"معلم أول\",I380*50/100,IF(H380=\"معلم أول أ\",I380*50/100,IF(H380=\"خبير\",I380*50/100,IF(H380=\"كبير\",I380*50/100,))))))),0.05)","v":0},0,0,0,0,0,0,0]
[null,null,null,null,null,null,null,null,null,null,null,null,null,null,null,null,null,null,null,null,null,null,null,null,null,null,null,null,null,null,null,null,null,null,null,null,null,null,null,null,null,null,null,null,null,null,null,null,null,null,null,null,null,null,null,null,null,null,null,null,null,null,null,"",0,0,0,0,0,0,0,0,0]
[null,null,null,null,null,null,null,null,null,null,null,null,null,null,null,null,null,null,null,null,null,null,null,null,null,null,null,null,null,null,null,null,null,null,null,null,null,null,null,null,null,null,null,null,null,null,null,null,null,null,null,null,null,null,null,null,null,null,null,null,null,null,null,"",0,0,0,0,0,0,0,0,0]
[null,null,null,null,null,null,null,null,null,null,null,null,null,null,null,null,null,null,null,null,null,null,null,null,null,null,null,null,null,null,null,null,null,null,null,null,null,null,null,null,null,null,null,null,null,null,null,null,null,null,null,null,null,null,null,null,null,null,null,null,null,null,null,"",0,0,0,0,0,0,0,0,0]
[null,null,null,null,null,null,null,null,null,null,null,null,null,null,null,null,null,null,null,null,null,null,null,null,null,null,null,null,null,null,null,null,null,null,null,null,null,null,null,null,null,null,null,null,null,null,null,null,null,null,null,null,null,null,null,null,null,null,null,null,null,null,null,"",0,0,0,0,0,0,0,0,0]
[null,null,null,null,null,null,null,null,null,null,null,null,null,null,null,null,null,null,null,null,null,null,null,null,null,null,null,null,null,null,null,null,null,null,null,null,null,null,null,null,null,null,null,null,null,null,null,null,null,null,null,null,null,null,null,null,null,null,null,null,null,null,null,"",0,0,0,0,0,0,0,0,0]
[null,null,null,null,null,null,null,null,null,null,null,null,null,null,null,null,null,null,null,null,null,null,null,null,null,null,null,null,null,null,null,null,null,null,null,null,null,null,null,null,null,null,null,null,null,null,null,null,null,null,null,null,null,null,null,null,null,null,null,null,null,null,null,"",0,0,0,0,0,0,0,0,0]
[null,null,null,null,null,null,null,null,null,null,null,null,null,null,null,null,null,null,null,null,null,null,null,null,null,null,null,null,null,null,null,null,null,null,null,null,null,null,null,null,null,null,null,null,null,null,null,null,null,null,null,null,null,null,null,null,null,null,null,null,null,null,null,"",0,0,0,0,0,0,0,0,0]
[null,null,null,null,null,null,null,null,null,null,null,null,null,null,null,null,null,null,null,null,null,null,null,null,null,null,null,null,null,null,null,null,null,null,null,null,null,null,null,null,null,null,null,null,null,null,null,null,null,null,null,null,null,null,null,null,null,null,null,null,null,null,null,{"$f":"IF(H388=\"معلم مساعد\",10,IF(H388=\"معلم تعاقد\",10,IF(H388=\"معلم\",10,IF(H388=\"معلم أول\",10,IF(H388=\"معلم أول أ\",10,IF(H388=\"خبير\",10,IF(H388=\"كبير\",10,IF(H388=\"عامل تعاقد\",0,\"\"))))))))","v":""},0,0,{"$f":"IF(H388=\"إدارى\",I388*0,IF(H388=\"معلم مساعد\",I388*0/100,IF(H388=\"معلم\",I388*50/100,IF(H388=\"معلم أول\",I388*75/100,IF(H388=\"معلم أول أ\",I388*100/100,IF(H388=\"خبير\",I388*125/100,IF(H388=\"كبير\",I388*150/100,)))))))","v":0},{"$f":"INT(IF(H388=\"عامل تعاقد\",I388*25/100,IF(H388=\"معلم مساعد\",I388*25/100,IF(H388=\"معلم\",I388*25/100,IF(H388=\"معلم أول\",I388*25/100,IF(H388=\"معلم أول أ\",I388*25/100,IF(H388=\"خبير\",I388*25/100,IF(H388=\"كبير\",I388*25/100,))))))))","v":0},{"$f":"INT(IF(H388=\"إدارى\",J388*0/100,IF(H388=\"معلم مساعد\",I388*125/100,IF(H388=\"معلم\",I388*75/100,IF(H388=\"معلم أول\",I388*50/100,IF(H388=\"معلم أول أ\",I388*25/100,IF(H388=\"خبير\",I388*25/100,IF(H388=\"كبير\",I388*25/100,))))))))","v":0},{"$f":"INT(IF(H388=\"عامل تعاقد\",I388*0.9166,IF(H388=\"معلم تعاقد\",I388*0.9166,0)))","v":0},{"$f":"INT(IF(H388=\"عامل تعاقد\",I388*0.5,IF(H388=\"معلم تعاقد\",I388*0.5,0)))","v":0},{"$f":"INT(IF(F388=1,I388*0.3333,0))","v":0},{"$f":"IF(H388=\"عامل تعاقد\",225,IF(H388=\"معلم تعاقد\",300,0))","v":0}]
[null,null,null,null,null,null,null,null,null,null,null,null,null,null,null,null,null,null,null,null,null,null,null,null,null,null,null,null,null,null,null,null,null,null,null,null,null,null,null,null,null,null,null,null,null,null,null,null,null,null,null,null,null,null,null,null,null,null,null,null,null,null,null,"",{"$f":"IF(H389=\"عقد مميز\",I389*0/100,IF(H389=\"معلم تعاقد\",I389*0/100,IF(H389=\"معلم\",I389*50/100,IF(H389=\"معلم أول\",I389*50/100,IF(H389=\"معلم أول أ\",I389*50/100,IF(H389=\"خبير\",I389*50/100,IF(H389=\"كبير\",I389*50/100,)))))))","v":0},0,0,0,0,0,0,0,0]
[null,null,null,null,null,null,null,null,null,null,null,null,null,null,null,null,null,null,null,null,null,null,null,null,null,null,null,null,null,null,null,null,null,null,null,null,null,null,null,null,null,null,null,null,null,null,null,null,null,null,null,null,null,null,null,null,null,null,null,null,null,null,null,"",0,0,0,0,0,0,0,0,0]
[null,null,null,null,null,null,null,null,null,null,null,null,null,null,null,null,null,null,null,null,null,null,null,null,null,null,null,null,null,null,null,null,null,null,null,null,null,null,null,null,null,null,null,null,null,null,null,null,null,null,null,null,null,null,null,null,null,null,null,null,null,null,null,"",0,0,0,0,0,0,0,0,0]
[null,null,null,null,null,null,null,null,null,null,null,null,null,null,null,null,null,null,null,null,null,null,null,null,null,null,null,null,null,null,null,null,null,null,null,null,null,null,null,null,null,null,null,null,null,null,null,null,null,null,null,null,null,null,null,null,null,null,null,null,null,null,null,"",0,0,0,0,0,0,0,0,0]
[null,null,null,null,null,null,null,null,null,null,null,null,null,null,null,null,null,null,null,null,null,null,null,null,null,null,null,null,null,null,null,null,null,null,null,null,null,null,null,null,null,null,null,null,null,null,null,null,null,null,null,null,null,null,null,null,null,null,null,null,null,null,null,"",0,0,0,0,0,0,0,0,0]
[null,null,null,null,null,null,null,null,null,null,null,null,null,null,null,null,null,null,null,null,null,null,null,null,null,null,null,null,null,null,null,null,null,null,null,null,null,null,null,null,null,null,null,null,null,null,null,null,null,null,null,null,null,null,null,null,null,null,null,null,null,null,null,"",0,0,0,0,0,0,0,0,0]
[null,null,null,null,null,null,null,null,null,null,null,null,null,null,null,null,null,null,null,null,null,null,null,null,null,null,null,null,null,null,null,null,null,null,null,null,null,null,null,null,null,null,null,null,null,null,null,null,null,null,null,null,null,null,null,null,null,null,null,null,null,null,null,"",0,0,0,0,0,0,0,0,0]
[null,null,null,null,null,null,null,null,null,null,null,null,null,null,null,null,null,null,null,null,null,null,null,null,null,null,null,null,null,null,null,null,null,null,null,null,null,null,null,null,null,null,null,null,null,null,null,null,null,null,null,null,null,null,null,null,null,null,null,null,null,null,null,"",0,0,0,0,0,0,0,0,0]
[null,null,null,null,null,null,null,null,null,null,null,null,null,null,null,null,null,null,null,null,null,null,null,null,null,null,null,null,null,null,null,null,null,null,null,null,null,null,null,null,null,null,null,null,null,null,null,null,null,null,null,null,null,null,null,null,null,null,null,null,null,null,null,"",0,0,0,0,0,0,0,0,0]
[null,null,null,null,null,null,null,null,null,null,null,null,null,null,null,null,null,null,null,null,null,null,null,null,null,null,null,null,null,null,null,null,null,null,null,null,null,null,null,null,null,null,null,null,null,null,null,null,null,null,null,null,null,null,null,null,null,null,null,null,null,null,null,"",0,0,0,0,0,0,0,0,0]
[null,null,null,null,null,null,null,null,null,null,null,null,null,null,null,null,null,null,null,null,null,null,null,null,null,null,null,null,null,null,null,null,null,null,null,null,null,null,null,null,null,null,null,null,null,null,null,null,null,null,null,null,null,null,null,null,null,null,null,null,null,null,null,"",0,0,0,0,0,0,0,0,0]
[null,null,null,null,null,null,null,null,null,null,null,null,null,null,null,null,null,null,null,null,null,null,null,null,null,null,null,null,null,null,null,null,null,null,null,null,null,null,null,null,null,null,null,null,null,null,null,null,null,null,null,null,null,null,null,null,null,null,null,null,null,null,null,"",0,0,0,0,0,0,0,0,0]
[null,null,null,null,null,null,null,null,null,null,null,null,null,null,null,null,null,null,null,null,null,null,null,null,null,null,null,null,null,null,null,null,null,null,null,null,null,null,null,null,null,null,null,null,null,null,null,null,null,null,null,null,null,null,null,null,null,null,null,null,null,null,null,"",0,0,0,0,0,0,0,0,0]
[null,null,null,null,null,null,null,null,null,null,null,null,null,null,null,null,null,null,null,null,null,null,null,null,null,null,null,null,null,null,null,null,null,null,null,null,null,null,null,null,null,null,null,null,null,null,null,null,null,null,null,null,null,null,null,null,null,null,null,null,null,null,null,"",0,0,0,0,0,0,0,0,0]
[null,null,null,null,null,null,null,null,null,null,null,null,null,null,null,null,null,null,null,null,null,null,null,null,null,null,null,null,null,null,null,null,null,null,null,null,null,null,null,null,null,null,null,null,null,null,null,null,null,null,null,null,null,null,null,null,null,null,null,null,null,null,null,"",0,0,0,0,0,0,0,0,0]
[null,null,null,null,null,null,null,null,null,null,null,null,null,null,null,null,null,null,null,null,null,null,null,null,null,null,null,null,null,null,null,null,null,null,null,null,null,null,null,null,null,null,null,null,null,null,null,null,null,null,null,null,null,null,null,null,null,null,null,null,null,null,null,"",0,0,0,0,0,0,0,0,0]
[null,null,null,null,null,null,null,null,null,null,null,null,null,null,null,null,null,null,null,null,null,null,null,null,null,null,null,null,null,null,null,null,null,null,null,null,null,null,null,null,null,null,null,null,null,null,null,null,null,null,null,null,null,null,null,null,null,null,null,null,null,null,null,"",0,0,0,0,0,0,0,0,0]
[null,null,null,null,null,null,null,null,null,null,null,null,null,null,null,null,null,null,null,null,null,null,null,null,null,null,null,null,null,null,null,null,null,null,null,null,null,null,null,null,null,null,null,null,null,null,null,null,null,null,null,null,null,null,null,null,null,null,null,null,null,null,null,"",0,0,0,0,0,0,0,0,0]
[null,null,null,null,null,null,null,null,null,null,null,null,null,null,null,null,null,null,null,null,null,null,null,null,null,null,null,null,null,null,null,null,null,null,null,null,null,null,null,null,null,null,null,null,null,null,null,null,null,null,null,null,null,null,null,null,null,null,null,null,null,null,null,"",0,0,0,0,0,0,0,0,0]
[null,null,null,null,null,null,null,null,null,null,null,null,null,null,null,null,null,null,null,null,null,null,null,null,null,null,null,null,null,null,null,null,null,null,null,null,null,null,null,null,null,null,null,null,null,null,null,null,null,null,null,null,null,null,null,null,null,null,null,null,null,null,null,"",0,0,0,0,0,0,0,0,0]
[null,null,null,null,null,null,null,null,null,null,null,null,null,null,null,null,null,null,null,null,null,null,null,null,null,null,null,null,null,null,null,null,null,null,null,null,null,null,null,null,null,null,null,null,null,null,null,null,null,null,null,null,null,null,null,null,null,null,null,null,null,null,null,"",0,0,0,0,0,0,0,0,0]
[null,null,null,null,null,null,null,null,null,null,null,null,null,null,null,null,null,null,null,null,null,null,null,null,null,null,null,null,null,null,null,null,null,null,null,null,null,null,null,null,null,null,null,null,null,null,null,null,null,null,null,null,null,null,null,null,null,null,null,null,null,null,null,"",0,0,0,0,0,0,0,0,0]
[null,null,null,null,null,null,null,null,null,null,null,null,null,null,null,null,null,null,null,null,null,null,null,null,null,null,null,null,null,null,null,null,null,null,null,null,null,null,null,null,null,null,null,null,null,null,null,null,null,null,null,null,null,null,null,null,null,null,null,null,null,null,null,"",0,0,0,0,0,0,0,0,0]
[null,null,null,null,null,null,null,null,null,null,null,null,null,null,null,null,null,null,null,null,null,null,null,null,null,null,null,null,null,null,null,null,null,null,null,null,null,null,null,null,null,null,null,null,null,null,null,null,null,null,null,null,null,null,null,null,null,null,null,null,null,null,null,"",0,{"$f":"FLOOR(IF(H412=\"إدارى\",I412*0,IF(H412=\"معلم مساعد\",I412*50/100,IF(H412=\"معلم\",I412*50/100,IF(H412=\"معلم أول\",I412*50/100,IF(H412=\"معلم أول أ\",I412*50/100,IF(H412=\"خبير\",I412*50/100,IF(H412=\"كبير\",I412*50/100,))))))),0.05)","v":0},0,0,0,0,0,0,0]
[null,null,null,null,null,null,null,null,null,null,null,null,null,null,null,null,null,null,null,null,null,null,null,null,null,null,null,null,null,null,null,null,null,null,null,null,null,null,null,null,null,null,null,null,null,null,null,null,null,null,null,null,null,null,null,null,null,null,null,null,null,null,null,"",0,0,0,0,0,0,0,0,0]
[null,null,null,null,null,null,null,null,null,null,null,null,null,null,null,null,null,null,null,null,null,null,null,null,null,null,null,null,null,null,null,null,null,null,null,null,null,null,null,null,null,null,null,null,null,null,null,null,null,null,null,null,null,null,null,null,null,null,null,null,null,null,null,"",0,0,0,0,0,0,0,0,0]
[null,null,null,null,null,null,null,null,null,null,null,null,null,null,null,null,null,null,null,null,null,null,null,null,null,null,null,null,null,null,null,null,null,null,null,null,null,null,null,null,null,null,null,null,null,null,null,null,null,null,null,null,null,null,null,null,null,null,null,null,null,null,null,"",0,0,0,0,0,0,0,0,0]
[null,null,null,null,null,null,null,null,null,null,null,null,null,null,null,null,null,null,null,null,null,null,null,null,null,null,null,null,null,null,null,null,null,null,null,null,null,null,null,null,null,null,null,null,null,null,null,null,null,null,null,null,null,null,null,null,null,null,null,null,null,null,null,"",0,0,0,0,0,0,0,0,0]
[null,null,null,null,null,null,null,null,null,null,null,null,null,null,null,null,null,null,null,null,null,null,null,null,null,null,null,null,null,null,null,null,null,null,null,null,null,null,null,null,null,null,null,null,null,null,null,null,null,null,null,null,null,null,null,null,null,null,null,null,null,null,null,"",0,0,0,0,0,0,0,0,0]
[null,null,null,null,null,null,null,null,null,null,null,null,null,null,null,null,null,null,null,null,null,null,null,null,null,null,null,null,null,null,null,null,null,null,null,null,null,null,null,null,null,null,null,null,null,null,null,null,null,null,null,null,null,null,null,null,null,null,null,null,null,null,null,"",0,0,0,0,0,0,0,0,0]
[null,null,null,null,null,null,null,null,null,null,null,null,null,null,null,null,null,null,null,null,null,null,null,null,null,null,null,null,null,null,null,null,null,null,null,null,null,null,null,null,null,null,null,null,null,null,null,null,null,null,null,null,null,null,null,null,null,null,null,null,null,null,null,"",0,0,0,0,0,0,0,0,0]
[null,null,null,null,null,null,null,null,null,null,null,null,null,null,null,null,null,null,null,null,null,null,null,null,null,null,null,null,null,null,null,null,null,null,null,null,null,null,null,null,null,null,null,null,null,null,null,null,null,null,null,null,null,null,null,null,null,null,null,null,null,null,null,"",0,0,0,0,0,0,0,0,0]
[null,null,null,null,null,null,null,null,null,null,null,null,null,null,null,null,null,null,null,null,null,null,null,null,null,null,null,null,null,null,null,null,null,null,null,null,null,null,null,null,null,null,null,null,null,null,null,null,null,null,null,null,null,null,null,null,null,null,null,null,null,null,null,"",0,0,0,0,0,0,0,0,0]
[null,null,null,null,null,null,null,null,null,null,null,null,null,null,null,null,null,null,null,null,null,null,null,null,null,null,null,null,null,null,null,null,null,null,null,null,null,null,null,null,null,null,null,null,null,null,null,null,null,null,null,null,null,null,null,null,null,null,null,null,null,null,null,"",0,0,0,0,0,0,0,0,0]
[null,null,null,null,null,null,null,null,null,null,null,null,null,null,null,null,null,null,null,null,null,null,null,null,null,null,null,null,null,null,null,null,null,null,null,null,null,null,null,null,null,null,null,null,null,null,null,null,null,null,null,null,null,null,null,null,null,null,null,null,null,null,null,"",0,0,0,0,0,0,0,0,0]
[null,null,null,null,null,null,null,null,null,null,null,null,null,null,null,null,null,null,null,null,null,null,null,null,null,null,null,null,null,null,null,null,null,null,null,null,null,null,null,null,null,null,null,null,null,null,null,null,null,null,null,null,null,null,null,null,null,null,null,null,null,null,null,"",0,0,0,0,0,0,0,0,0]
[null,null,null,null,null,null,null,null,null,null,null,null,null,null,null,null,null,null,null,null,null,null,null,null,null,null,null,null,null,null,null,null,null,null,null,null,null,null,null,null,null,null,null,null,null,null,null,null,null,null,null,null,null,null,null,null,null,null,null,null,null,null,null,"",0,0,0,0,0,0,0,0,0]
[null,null,null,null,null,null,null,null,null,null,null,null,null,null,null,null,null,null,null,null,null,null,null,null,null,null,null,null,null,null,null,null,null,null,null,null,null,null,null,null,null,null,null,null,null,null,null,null,null,null,null,null,null,null,null,null,null,null,null,null,null,null,null,"",0,0,0,0,0,0,0,0,0]
[null,null,null,null,null,null,null,null,null,null,null,null,null,null,null,null,null,null,null,null,null,null,null,null,null,null,null,null,null,null,null,null,null,null,null,null,null,null,null,null,null,null,null,null,null,null,null,null,null,null,null,null,null,null,null,null,null,null,null,null,null,null,null,"",0,0,0,0,0,0,0,0,0]
[null,null,null,null,null,null,null,null,null,null,null,null,null,null,null,null,null,null,null,null,null,null,null,null,null,null,null,null,null,null,null,null,null,null,null,null,null,null,null,null,null,null,null,null,null,null,null,null,null,null,null,null,null,null,null,null,null,null,null,null,null,null,null,null,0,0,0,0,0,0,0]
[null,null,null,null,null,null,null,null,null,null,null,null,null,null,null,null,null,null,null,null,null,null,null,null,null,null,null,null,null,null,null,null,null,null,null,null,null,null,null,null,null,null,null,null,null,null,null,null,null,null,null,null,null,null,null,null,null,null,null,null,null,null,null,null,0,0,0,0,0,0,0]
[null,null,null,null,null,null,null,null,null,null,null,null,null,null,null,null,null,null,null,null,null,null,null,null,null,null,null,null,null,null,null,null,null,null,null,null,null,null,null,null,null,null,null,null,null,null,null,null,null,null,null,null,null,null,null,null,null,null,null,null,null,null,null,null,0,0,0,0,0]
[null,null,null,null,null,null,null,null,null,null,null,null,null,null,null,null,null,null,null,null,null,null,null,null,null,null,null,null,null,null,null,null,null,null,null,null,null,null,null,null,null,null,null,null,null,null,null,null,null,null,null,null,null,null,null,null,null,null,null,null,null,null,null,null,0,0,0,0,0]
[null,null,null,null,null,null,null,null,null,null,null,null,null,null,null,null,null,null,null,null,null,null,null,null,null,null,null,null,null,null,null,null,null,null,null,null,null,null,null,null,null,null,null,null,null,null,null,null,null,null,null,null,null,null,null,null,null,null,null,null,null,null,null,null,0,0,0,0,0]
[null,null,null,null,null,null,null,null,null,null,null,null,null,null,null,null,null,null,null,null,null,null,null,null,null,null,null,null,null,null,null,null,null,null,null,null,null,null,null,null,null,null,null,null,null,null,null,null,null,null,null,null,null,null,null,null,null,null,null,null,null,null,null,null,0,0,0,0,0]
[null,null,null,null,null,null,null,null,null,null,null,null,null,null,null,null,null,null,null,null,null,null,null,null,null,null,null,null,null,null,null,null,null,null,null,null,null,null,null,null,null,null,null,null,null,null,null,null,null,null,null,null,null,null,null,null,null,null,null,null,null,null,null,null,0,0,0,0,0]
[null,null,null,null,null,null,null,null,null,null,null,null,null,null,null,null,null,null,null,null,null,null,null,null,null,null,null,null,null,null,null,null,null,null,null,null,null,null,null,null,null,null,null,null,null,null,null,null,null,null,null,null,null,null,null,null,null,null,null,null,null,null,null,null,0,0,0,0,0]
[null,null,null,null,null,null,null,null,null,null,null,null,null,null,null,null,null,null,null,null,null,null,null,null,null,null,null,null,null,null,null,null,null,null,null,null,null,null,null,null,null,null,null,null,null,null,null,null,null,null,null,null,null,null,null,null,null,null,null,null,null,null,null,null,0,0,0,0,0]
[null,null,null,null,null,null,null,null,null,null,null,null,null,null,null,null,null,null,null,null,null,null,null,null,null,null,null,null,null,null,null,null,null,null,null,null,null,null,null,null,null,null,null,null,null,null,null,null,null,null,null,null,null,null,null,null,null,null,null,null,null,null,null,null,0,0,0,0,0]
[null,null,null,null,null,null,null,null,null,null,null,null,null,null,null,null,null,null,null,null,null,null,null,null,null,null,null,null,null,null,null,null,null,null,null,null,null,null,null,null,null,null,null,null,null,null,null,null,null,null,null,null,null,null,null,null,null,null,null,null,null,null,null,null,0,0,0,0,0]
[null,null,null,null,null,null,null,null,null,null,null,null,null,null,null,null,null,null,null,null,null,null,null,null,null,null,null,null,null,null,null,null,null,null,null,null,null,null,null,null,null,null,null,null,null,null,null,null,null,null,null,null,null,null,null,null,null,null,null,null,null,null,null,null,0,0,0,0,0]
[null,null,null,null,null,null,null,null,null,null,null,null,null,null,null,null,null,null,null,null,null,null,null,null,null,null,null,null,null,null,null,null,null,null,null,null,null,null,null,null,null,null,null,null,null,null,null,null,null,null,null,null,null,null,null,null,null,null,null,null,null,null,null,null,0,0,0,0,0]
[null,null,null,null,null,null,null,null,null,null,null,null,null,null,null,null,null,null,null,null,null,null,null,null,null,null,null,null,null,null,null,null,null,null,null,null,null,null,null,null,null,null,null,null,null,null,null,null,null,null,null,null,null,null,null,null,null,null,null,null,null,null,null,null,0,0,0,0,0]
[null,null,null,null,null,null,null,null,null,null,null,null,null,null,null,null,null,null,null,null,null,null,null,null,null,null,null,null,null,null,null,null,null,null,null,null,null,null,null,null,null,null,null,null,null,null,null,null,null,null,null,null,null,null,null,null,null,null,null,null,null,null,null,null,0,0,0,0,0]
[null,null,null,null,null,null,null,null,null,null,null,null,null,null,null,null,null,null,null,null,null,null,null,null,null,null,null,null,null,null,null,null,null,null,null,null,null,null,null,null,null,null,null,null,null,null,null,null,null,null,null,null,null,null,null,null,null,null,null,null,null,null,null,null,0,0,0,0,0]
[null,null,null,null,null,null,null,null,null,null,null,null,null,null,null,null,null,null,null,null,null,null,null,null,null,null,null,null,null,null,null,null,null,null,null,null,null,null,null,null,null,null,null,null,null,null,null,null,null,null,null,null,null,null,null,null,null,null,null,null,null,null,null,null,0,{"$f":"FLOOR(IF(H444=\"إدارى\",I444*0,IF(H444=\"معلم مساعد\",I444*50/100,IF(H444=\"معلم\",I444*50/100,IF(H444=\"معلم أول\",I444*50/100,IF(H444=\"معلم أول أ\",I444*50/100,IF(H444=\"خبير\",I444*50/100,IF(H444=\"كبير\",I444*50/100,))))))),0.05)","v":0},0,0,0]
[null,null,null,null,null,null,null,null,null,null,null,null,null,null,null,null,null,null,null,null,null,null,null,null,null,null,null,null,null,null,null,null,null,null,null,null,null,null,null,null,null,null,null,null,null,null,null,null,null,null,null,null,null,null,null,null,null,null,null,null,null,null,null,null,0,0,0,0,0]
[null,null,null,null,null,null,null,null,null,null,null,null,null,null,null,null,null,null,null,null,null,null,null,null,null,null,null,null,null,null,null,null,null,null,null,null,null,null,null,null,null,null,null,null,null,null,null,null,null,null,null,null,null,null,null,null,null,null,null,null,null,null,null,null,0,0,0,0,0]
[null,null,null,null,null,null,null,null,null,null,null,null,null,null,null,null,null,null,null,null,null,null,null,null,null,null,null,null,null,null,null,null,null,null,null,null,null,null,null,null,null,null,null,null,null,null,null,null,null,null,null,null,null,null,null,null,null,null,null,null,null,null,null,null,0,0,0,0,0]
[null,null,null,null,null,null,null,null,null,null,null,null,null,null,null,null,null,null,null,null,null,null,null,null,null,null,null,null,null,null,null,null,null,null,null,null,null,null,null,null,null,null,null,null,null,null,null,null,null,null,null,null,null,null,null,null,null,null,null,null,null,null,null,null,0,0,0,0,0]
[null,null,null,null,null,null,null,null,null,null,null,null,null,null,null,null,null,null,null,null,null,null,null,null,null,null,null,null,null,null,null,null,null,null,null,null,null,null,null,null,null,null,null,null,null,null,null,null,null,null,null,null,null,null,null,null,null,null,null,null,null,null,null,null,0,0,0,0,0]
[null,null,null,null,null,null,null,null,null,null,null,null,null,null,null,null,null,null,null,null,null,null,null,null,null,null,null,null,null,null,null,null,null,null,null,null,null,null,null,null,null,null,null,null,null,null,null,null,null,null,null,null,null,null,null,null,null,null,null,null,null,null,null,null,0,0,0,0,0]
[null,null,null,null,null,null,null,null,null,null,null,null,null,null,null,null,null,null,null,null,null,null,null,null,null,null,null,null,null,null,null,null,null,null,null,null,null,null,null,null,null,null,null,null,null,null,null,null,null,null,null,null,null,null,null,null,null,null,null,null,null,null,null,null,0,0,0,0,0]
[null,null,null,null,null,null,null,null,null,null,null,null,null,null,null,null,null,null,null,null,null,null,null,null,null,null,null,null,null,null,null,null,null,null,null,null,null,null,null,null,null,null,null,null,null,null,null,null,null,null,null,null,null,null,null,null,null,null,null,null,null,null,null,null,0,0,{"$f":"IF(H452=\"إدارى\",I452*0,IF(H452=\"معلم مساعد\",I452*0/100,IF(H452=\"معلم\",I452*50/100,IF(H452=\"معلم أول\",I452*75/100,IF(H452=\"معلم أول أ\",I452*100/100,IF(H452=\"خبير\",I452*125/100,IF(H452=\"كبير\",I452*150/100,)))))))","v":0},{"$f":"INT(IF(H452=\"عامل تعاقد\",I452*25/100,IF(H452=\"معلم مساعد\",I452*25/100,IF(H452=\"معلم\",I452*25/100,IF(H452=\"معلم أول\",I452*25/100,IF(H452=\"معلم أول أ\",I452*25/100,IF(H452=\"خبير\",I452*25/100,IF(H452=\"كبير\",I452*25/100,))))))))","v":0},{"$f":"INT(IF(H452=\"إدارى\",J452*0/100,IF(H452=\"معلم مساعد\",I452*125/100,IF(H452=\"معلم\",I452*75/100,IF(H452=\"معلم أول\",I452*50/100,IF(H452=\"معلم أول أ\",I452*25/100,IF(H452=\"خبير\",I452*25/100,IF(H452=\"كبير\",I452*25/100,))))))))","v":0}]
[null,null,null,null,null,null,null,null,null,null,null,null,null,null,null,null,null,null,null,null,null,null,null,null,null,null,null,null,null,null,null,null,null,null,null,null,null,null,null,null,null,null,null,null,null,null,null,null,null,null,null,null,null,null,null,null,null,null,null,null,null,null,null,null,{"$f":"IF(H453=\"عقد مميز\",I453*0/100,IF(H453=\"معلم تعاقد\",I453*0/100,IF(H453=\"معلم\",I453*50/100,IF(H453=\"معلم أول\",I453*50/100,IF(H453=\"معلم أول أ\",I453*50/100,IF(H453=\"خبير\",I453*50/100,IF(H453=\"كبير\",I453*50/100,)))))))","v":0},0,0,0,0]
[null,null,null,null,null,null,null,null,null,null,null,null,null,null,null,null,null,null,null,null,null,null,null,null,null,null,null,null,null,null,null,null,null,null,null,null,null,null,null,null,null,null,null,null,null,null,null,null,null,null,null,null,null,null,null,null,null,null,null,null,null,null,null,null,0,0,0,0,0]
[null,null,null,null,null,null,null,null,null,null,null,null,null,null,null,null,null,null,null,null,null,null,null,null,null,null,null,null,null,null,null,null,null,null,null,null,null,null,null,null,null,null,null,null,null,null,null,null,null,null,null,null,null,null,null,null,null,null,null,null,null,null,null,null,0,0,0,0,0]
[null,null,null,null,null,null,null,null,null,null,null,null,null,null,null,null,null,null,null,null,null,null,null,null,null,null,null,null,null,null,null,null,null,null,null,null,null,null,null,null,null,null,null,null,null,null,null,null,null,null,null,null,null,null,null,null,null,null,null,null,null,null,null,null,0,0,0,0,0]
[null,null,null,null,null,null,null,null,null,null,null,null,null,null,null,null,null,null,null,null,null,null,null,null,null,null,null,null,null,null,null,null,null,null,null,null,null,null,null,null,null,null,null,null,null,null,null,null,null,null,null,null,null,null,null,null,null,null,null,null,null,null,null,null,0,0,0,0,0]
[null,null,null,null,null,null,null,null,null,null,null,null,null,null,null,null,null,null,null,null,null,null,null,null,null,null,null,null,null,null,null,null,null,null,null,null,null,null,null,null,null,null,null,null,null,null,null,null,null,null,null,null,null,null,null,null,null,null,null,null,null,null,null,null,0,0,0,0,0]
[null,null,null,null,null,null,null,null,null,null,null,null,null,null,null,null,null,null,null,null,null,null,null,null,null,null,null,null,null,null,null,null,null,null,null,null,null,null,null,null,null,null,null,null,null,null,null,null,null,null,null,null,null,null,null,null,null,null,null,null,null,null,null,null,0,0,0,0,0]
[null,null,null,null,null,null,null,null,null,null,null,null,null,null,null,null,null,null,null,null,null,null,null,null,null,null,null,null,null,null,null,null,null,null,null,null,null,null,null,null,null,null,null,null,null,null,null,null,null,null,null,null,null,null,null,null,null,null,null,null,null,null,null,null,0,0,0,0,0]
[null,null,null,null,null,null,null,null,null,null,null,null,null,null,null,null,null,null,null,null,null,null,null,null,null,null,null,null,null,null,null,null,null,null,null,null,null,null,null,null,null,null,null,null,null,null,null,null,null,null,null,null,null,null,null,null,null,null,null,null,null,null,null,null,0,0,0,0,0]
[null,null,null,null,null,null,null,null,null,null,null,null,null,null,null,null,null,null,null,null,null,null,null,null,null,null,null,null,null,null,null,null,null,null,null,null,null,null,null,null,null,null,null,null,null,null,null,null,null,null,null,null,null,null,null,null,null,null,null,null,null,null,null,null,0,0,0,0,0]
[null,null,null,null,null,null,null,null,null,null,null,null,null,null,null,null,null,null,null,null,null,null,null,null,null,null,null,null,null,null,null,null,null,null,null,null,null,null,null,null,null,null,null,null,null,null,null,null,null,null,null,null,null,null,null,null,null,null,null,null,null,null,null,null,0,0,0,0,0]

{"sheet":"الاستمارة ","index":2,"n_rows":24,"n_cols":108,"rows_kept":24,"cut":false,"hidden":false,"merged":[[2,45,2,46],[2,47,2,49],[2,87,2,89],[23,4,23,6],[23,7,23,10],[23,29,23,31],[23,26,23,28],[23,86,23,87],[23,88,23,89],[23,90,23,91],[2,8,2,11],[2,29,2,32],[3,93,6,93],[2,54,2,58],[2,59,2,73],[3,2,3,51],[3,53,6,53],[3,54,3,86],[4,1,6,1],[4,2,5,6],[4,7,6,7],[4,8,5,12],[3,87,6,87],[3,88,6,88],[3,89,6,89],[3,90,6,90],[3,91,6,91],[4,13,6,13],[4,14,5,43],[4,44,6,44],[4,46,6,46],[4,47,5,49],[4,77,5,86],[5,45,6,45],[5,54,5,61],[5,62,5,66],[5,74,6,74],[5,75,6,75],[4,50,6,50],[5,76,6,76],[4,51,6,51],[4,52,6,52],[4,54,4,73],[4,74,4,76]]}
[]
[]
[null,null,null,null,null,null,null,null,{"$f":"ورقة1!C1","v":"الشهداء التعليمية"},null,null,null,null,null,null,null,null,null,null,null,null,null,null,null,null,null,null,null,"مدرسة",{"$f":"ورقة1!C2","v":"السوالمية"},null,null,null,null,null,null,null,null,null,null,null,null,null,null,null,"مرتبات شهر",null,{"$f":"ورقة1!C3","v":"مارس 2018"},null,null,null,null,null,null,"مدرسة /  ",null,null,null,null,{"$f":"IF($CL13>0,ورقة1!$C$2,\" \")","v":"السوالمية"},null,null,null,null,null,null,null,null,null,null,null,null,null,null,null,null,null,null,null," ",null,null,null,null,null,null,"مرتبات",{"$f":"ورقة1!C3","v":"مارس 2018"},null,null,{"$f":"FLOOR(CR13,0.05)","v":0},null,null,null,null,null,null,null,null,null,null,null,null,{"$f":"'العاملين '!CA10","v":1370},null,null,null,{"$f":"'العاملين '!CA10","v":1370}]
[null,{"$f":"'العاملين '!CA10","v":1370},"الاســــــــــــــــــــــــــتحـــــــــــــــــــــــــــــــــقــــــــــــــــــــــــــــــــــــــــــــــــــــــــــــــــــــــــــاقـــــــــــــــــــــــــــــــــــات ",null,null,null,null,null,null,null,null,null,null,null,null,null,null,null,null,null,null,null,null,null,null,null,null,null,null,null,null,null,null,null,null,null,null,null,null,null,null,null,null,null,null,null,null,null,null,null,null,null,null,"جملة الاستــــحقــاقات ","الأســـــــــــــــــــــــــــــــــــــتـــــــقـــــــــــــــــطاعـــــــــــــــــات ",null,null,null,null,null,null,null,null,null,null,null,null,null,null,null,null,null,null,null,null,null,null,null,null,null,null,null,null,null,null,null,null,"جملة الأستقطاعات ","الصافي المستحق ","الاســـــــــــــــــــم ","التوقيع بالاســــــــــــتلام ","صافي الشهر السابق ",null,"اسم البنك"]
[null,"م ","الاجور الاســــــــــــــــــــــــــاسية ",null,null,null,null,"الجملة ","الاجور المتغيرة الخاضعة بكامل قيمتها للتأمينات والمعاشات ",null,null,null,null,"الجملة ","الاجور المتغيرة الاخري بنسبة        %",null,null,null,null,null,null,null,null,null,null,null,null,null,null,null,null,null,null,null,null,null,null,null,null,null,null,null,null,null,"الجملة ",{"$f":"'العاملين '!CA5","v":2800},"غير خاضع","حصص الاجور المتغيرة ",null,null,"الجملة ","منحة ","انقطاع",null,"لحســــــــــــــــــــاب الهيئة القوميـــــــــــــــــــــة للتـــــــــــــــــأمين الإجتـــــــــــــــــــــــــماعي ",null,null,null,null,null,null,null,null,null,null,null,null,null,null,null,null,null,null,null,"لحساب جاري دائنة مصلحة الضرائب ",null,null,"لحساب دائنين مختلفين "]
[null,null,null,null,null,null,null,null,null,null,null,null,null,null,null,null,null,null,null,null,null,null,null,null,null,null,null,null,null,null,null,null,null,null,null,null,null,null,null,null,null,null,null,null,null,"خاضع",null,null,null,null,null,null,null,null,"استقطاعات الأجور الاســــــــــــــــــاسية ",null,null,null,null,null,null,null,"استقطاعات الأجور المتغيرة ",null,null,null,null,"الأقساط الخاصة عن الأجور الأساسية ",null,null,null,null,null,null,"ضريبة دخل  ","دمغة عادية   ","دمغة نسبية"]
[null,null,"المرتب "," حصة الحكومة  15%",0.01,"أل 2 %","أ ل3 %",null,"علاوة 2012","علاوة 2013","علاوة 2014","علاوة 2015","علاوة 2016",null,{"$f":"'العاملين '!P2","v":"ع اجتماعية"},{"$f":"'العاملين '!Q2","v":"ع اجتماعيةاضافية"},{"$f":"'العاملين '!R2","v":"أعباء وظيفية"},{"$f":"'العاملين '!AA2","v":"الحدالادنى"},{"$f":"'العاملين '!S2","v":"بدل نظارة"},{"$f":"'العاملين '!T2","v":"حافز مدير"},{"$f":"'العاملين '!U2","v":"بدل تفرغ"},{"$f":"'العاملين '!V2","v":"بدل تجاريين"},{"$f":"'العاملين '!W2","v":"بدل عدوي"},{"$f":"'العاملين '!X2","v":"حافز ماجستير"},{"$f":"'العاملين '!Y2","v":"حافزدكتوراة"},{"$f":"'العاملين '!Z2","v":"بدل تسكين"},{"$f":"'العاملين '!BM2","v":"بدل معلم اضافى"},{"$f":"'العاملين '!BN2","v":"بدل معلم "},{"$f":"'العاملين '!BO2","v":"بدل اعتماد "},{"$f":"'العاملين '!BP2","v":"حافز 25 %"},{"$f":"'العاملين '!BQ2","v":"حافز أداء "},{"$f":"'العاملين '!BR2","v":"الـ91.5"},{"$f":"'العاملين '!BS2","v":"ال50%"},{"$f":"'العاملين '!BT2","v":"ال 33%"},"الاجر الوظيفي","الاجر المكمل","الحافزالتعويضي",{"$f":"'العاملين '!AD2","v":"اكتب ما تشاء"},{"$f":"'العاملين '!AE2","v":"اكتب ما تشاء"},{"$f":"'العاملين '!AF2","v":"اكتب ما تشاء"},{"$f":"'العاملين '!AG2","v":"اكتب ما تشاء"},{"$f":"'العاملين '!AH2","v":"اكتب ما تشاء"},{"$f":"'العاملين '!AI2","v":"اكتب ما تشاء"},{"$f":"'العاملين '!AH2","v":"اكتب ما تشاء"},null,null,null,"ألـ 15 %","ألـ 1 %","ألـ 3%",null,null,null,null," حصة الحكومة  15%","إصابة عمل  1%","الـ 2%",null," حصة الموظف  10%","ال8%","ألـ 3%","ألـ 1 %"," حصة الحكومة  15%","إصابة عمل  1%"," حصة الموظف  10%","ال3%","ال1%","زمالة   7 %","زمالة  جماعى","نقابه","تطبيقين","رابطة ","نادى محافظة","نادي الادارة",null,null,null,{"$f":"'العاملين '!AP2","v":"أرباب عهد"},{"$f":"'العاملين '!AQ2","v":"خدمات عمالية"},{"$f":"'العاملين '!AR2","v":"نقابة بحث علمى 5%"},{"$f":"'العاملين '!AS3","v":"ناصر"},{"$f":"'العاملين '!AT3","v":"القاهرة"},{"$f":"'العاملين '!AU3","v":"الاهلى"},"خصومات اخرى","نقابةتجاريين",{"$f":"'العاملين '!AX2","v":"نصف العلاوة"},"كسر قرش",null,null,null,null,null,null,null,null,null,{"$f":"'العاملين '!CA10","v":1370}]
[null,1,{"$f":"IF($CM8>0,VLOOKUP($CM8,'العاملين '!$A$3:$AR$260,10),0)","v":1000},{"$f":"ROUND(IF(C8<=$CS$7,C8*0.15,$CS$7*0.15),2)","v":150},{"$f":"ROUND(IF(C8<$B$4,C8*$E$7,IF(C8>=$B$4,$E$7*$B$4)),2)","v":10},{"$f":"ROUND(IF(C8<=$CS$7,C8*0.02,$CS$7*0.02),2)","v":20},{"$f":"ROUND(IF(C8<=$CS$7,C8*0.03,$CS$7*0.03),2)","v":30},{"$f":"IF($C8>0,SUM(C8:G8),\" \")","v":1210},{"$f":"IF($CM8>0,VLOOKUP($CM8,'العاملين '!$A$3:$AR$260,11),0)","v":0},{"$f":"IF($CM8>0,VLOOKUP($CM8,'العاملين '!$A$3:$AR$260,12),0)","v":62.23},{"$f":"IF($CM8>0,VLOOKUP($CM8,'العاملين '!$A$3:$AR$260,13),0)","v":62.73},{"$f":"IF($CM8>0,VLOOKUP($CM8,'العاملين '!$A$3:$AR$260,14),0)","v":66.69},{"$f":"IF($CM8>0,VLOOKUP($CM8,'العاملين '!$A$3:$AR$260,15),0)","v":0},{"$f":"IF($C8>0,SUM(I8:M8),0)","v":191.64999999999998},{"$f":"IF($CM8>0,VLOOKUP($CM8,'العاملين '!$A$3:$AR$260,16),0)","v":4},{"$f":"IF($CM8>0,VLOOKUP($CM8,'العاملين '!$A$3:$AR$260,17),0)","v":6},{"$f":"IF($CM8>0,VLOOKUP($CM8,'العاملين '!$A$3:$AR$260,18),0)","v":350},{"$f":"IF($CM8>0,VLOOKUP($CM8,'العاملين '!$A$3:$AR$260,27),0)","v":0},{"$f":"IF($CM8>0,VLOOKUP($CM8,'العاملين '!$A$3:$AR$260,19),0)","v":0},{"$f":"IF($CM8>0,VLOOKUP($CM8,'العاملين '!$A$3:$AR$260,20),0)","v":0},{"$f":"IF($CM8>0,VLOOKUP($CM8,'العاملين '!$A$3:$AR$260,21),0)","v":0},{"$f":"IF($CM8>0,VLOOKUP($CM8,'العاملين '!$A$3:$AR$260,22),0)","v":0},{"$f":"IF($CM8>0,VLOOKUP($CM8,'العاملين '!$A$3:$AR$260,23),0)","v":" "},{"$f":"IF($CM8>0,VLOOKUP($CM8,'العاملين '!$A$3:$AR$260,24),0)","v":0},{"$f":"IF($CM8>0,VLOOKUP($CM8,'العاملين '!$A$3:$AR$260,25),0)","v":0},{"$f":"IF($CM8>0,VLOOKUP($CM8,'العاملين '!$A$3:$AR$260,26),0)","v":0},{"$f":"IF($CM8>0,VLOOKUP($CM8,'العاملين '!$A$3:$CR$260,65),0)","v":333.49},{"$f":"IF($CM8>0,VLOOKUP($CM8,'العاملين '!$A$3:$CR$260,66),0)","v":333.49},{"$f":"IF($CM8>0,VLOOKUP($CM8,'العاملين '!$A$3:$CR$260,67),0)","v":333.49},{"$f":"IF($CM8>0,VLOOKUP($CM8,'العاملين '!$A$3:$CR$260,68),0)","v":166},{"$f":"IF($CM8>0,VLOOKUP($CM8,'العاملين '!$A$3:$CR$260,69),0)","v":500},{"$f":"IF($CM8>0,VLOOKUP($CM8,'العاملين '!$A$3:$CR$260,70),0)","v":0},{"$f":"IF($CM8>0,VLOOKUP($CM8,'العاملين '!$A$3:$CR$260,71),0)","v":0},{"$f":"IF($CM8>0,VLOOKUP($CM8,'العاملين '!$A$3:$CR$260,72),0)","v":0},null,null,null,{"$f":"IF($CM8>0,VLOOKUP($CM8,'العاملين '!$A$3:$CR$260,28),0)","v":0},{"$f":"IF($CM8>0,VLOOKUP($CM8,'العاملين '!$A$3:$CR$260,29),0)","v":0},{"$f":"IF($CM8>0,VLOOKUP($CM8,'العاملين '!$A$3:$CR$260,30),0)","v":0},{"$f":"IF($CM8>0,VLOOKUP($CM8,'العاملين '!$A$3:$CR$260,31),0)","v":0},{"$f":"IF($CM8>0,VLOOKUP($CM8,'العاملين '!$A$3:$CR$260,32),0)","v":0},{"$f":"IF($CM8>0,VLOOKUP($CM8,'العاملين '!$A$3:$CR$260,33),0)","v":0},{"$f":"IF($CM8>0,VLOOKUP($CM8,'العاملين '!$A$3:$CR$260,34),0)","v":0},{"$f":"SUM(N8:AR8)","v":2218.12},{"$f":"IF(AS8>$AT$5,$AT$5,AS8)","v":2218.12},{"$f":"AS8-AT8","v":0},{"$f":"ROUND(($AT8)*15%,2)","v":332.72},{"$f":"ROUND(($AT8)*1%,2)","v":22.18},{"$f":"ROUND(($AT8)*3%,2)","v":66.540000000000006},{"$f":"SUM(AV8:AX8)","v":421.44000000000005},{"$f":"IF($CM8>0,VLOOKUP($CM8,'العاملين '!$A$3:$CR$260,64),0)","v":10},{"$f":"IF($CM8>0,VLOOKUP($CM8,'العاملين '!$A$3:$CR$260,52),0)","v":" "},{"$f":"SUM(AZ8,AY8,AS8,H8,BA8)","v":3859.56},{"$f":"ROUND(IF(C8<=$CS$7,C8*0.15,$CS$7*0.15),2)","v":150},{"$f":"ROUND(IF(C8<=$CS$7,C8*0.01,$CS$7*0.01),2)","v":10},{"$f":"ROUND(IF(C8<=$CS$7,C8*0.02,$CS$7*0.02),2)","v":20},null,{"$f":"IF($C8>0,ROUND(($C8)*10%,2),\" \")","v":100},{"$f":"ROUND(IF(C8<=$CS$7,C8*0.08,$CS$7*0.08),2)","v":80},{"$f":"ROUND(IF(C8<=$CS$7,C8*0.03,$CS$7*0.03),2)","v":30},{"$f":"ROUND(IF(C8<=$CS$7,C8*0.01,$CS$7*0.01),2)","v":10},{"$f":"AV8","v":332.72},22.18,{"$f":"ROUND(($AT8)*10%,2)","v":221.81},{"$f":"AX8","v":66.540000000000006},{"$f":"AW8","v":22.18},{"$f":"IF($CO8=1,ROUND(($C8)*7%,2),IF($CO8=2,VLOOKUP($CM8,'العاملين '!$A$3:$CT$260,53),0))","v":70},{"$f":"IF($CO8=1,0.5,IF($CO8=2,VLOOKUP($CM8,'العاملين '!$A$3:$CS$260,54),0))","v":0.5},{"$f":"IF($CO8=1,4.5,IF($CO8=2,VLOOKUP($CM8,'العاملين '!$A$3:$CT$260,55),0))","v":4.5},{"$f":"IF($CM8>0,VLOOKUP($CM8,'العاملين '!$A$3:$AR$260,37),0)","v":4},{"$f":"IF($CM8>0,VLOOKUP($CM8,'العاملين '!$A$3:$AR$260,38),0)","v":1},{"$f":"IF($CO8=1,0.2,IF($CO8=2,VLOOKUP($CM8,'العاملين '!$A$3:$CT$260,55),0))","v":0.2},{"$f":"IF($CO8=1,0.05,IF($CO8=2,VLOOKUP($CM8,'العاملين '!$A$3:$CT$260,55),0))","v":0.05},{"$f":"IF($CM8>0,VLOOKUP($CM8,'العاملين '!$A$3:$AR$260,39),0)","v":7.25},{"$f":"IF($CM8>0,VLOOKUP($CM8,'العاملين '!$A$3:$AR$260,40),0)","v":15.45},{"$f":"IF($CM8>0,VLOOKUP($CM8,'العاملين '!$A$3:$AR$260,41),0)","v":0},{"$f":"IF($CM8>0,VLOOKUP($CM8,'العاملين '!$A$3:$AR$260,42),0)","v":0},{"$f":"IF($CM8>0,VLOOKUP($CM8,'العاملين '!$A$3:$AR$260,43),0)","v":0},{"$f":"IF($CM8>0,VLOOKUP($CM8,'العاملين '!$A$3:$AR$260,44),0)","v":0},{"$f":"IF($CM8>0,VLOOKUP($CM8,'العاملين '!$A$3:$CR$260,45),0)","v":0},{"$f":"IF($CM8>0,VLOOKUP($CM8,'العاملين '!$A$3:$CR$260,46),0)","v":0},{"$f":"IF($CM8>0,VLOOKUP($CM8,'العاملين '!$A$3:$CR$260,47),0)","v":0},{"$f":"IF($CM8>0,VLOOKUP($CM8,'العاملين '!$A$3:$CR$260,48),0)","v":0},{"$f":"IF($CM8>0,VLOOKUP($CM8,'العاملين '!$A$3:$CR$260,22),0)","v":0},{"$f":"IF($CM8>0,VLOOKUP($CM8,'العاملين '!$A$3:$BU$260,50),0)","v":0},{"$f":"CQ8-CK8","v":2.9999999999745341E-2},{"$f":"SUM(BC8:CI8)","v":1168.4099999999999},{"$f":"FLOOR(CQ8,0.05)","v":2691.15},{"$f":"IF($CM8>0,VLOOKUP($CM8,'العاملين '!$A$3:$AR$260,2),0)","v":"محمد1"},1,null,{"$f":"IF($CM8>0,VLOOKUP($CM8,'العاملين '!$A$3:$CR$260,3),0)","v":1},{"$f":"IF($CM8>0,VLOOKUP($CM8,'العاملين '!$A$3:$CR$260,49),0)","v":"khwv"},{"$f":"BB8-SUM(BC8:CH8)","v":2691.18},null,{"$f":"'العاملين '!BA10","v":0}]
[null,2,{"$f":"IF($CM9>0,VLOOKUP($CM9,'العاملين '!$A$3:$AR$260,10),0)","v":0},{"$f":"ROUND(IF(C9<=$CS$7,C9*0.15,$CS$7*0.15),2)","v":0},{"$f":"ROUND(IF(C9<$B$4,C9*$E$7,IF(C9>=$B$4,$E$7*$B$4)),2)","v":0},{"$f":"ROUND(IF(C9<=$CS$7,C9*0.02,$CS$7*0.02),2)","v":0},{"$f":"ROUND(IF(C9<=$CS$7,C9*0.03,$CS$7*0.03),2)","v":0},{"$f":"IF($C9>0,SUM(C9:G9),\" \")","v":" "},{"$f":"IF($CM9>0,VLOOKUP($CM9,'العاملين '!$A$3:$AR$260,11),0)","v":0},{"$f":"IF($CM9>0,VLOOKUP($CM9,'العاملين '!$A$3:$AR$260,12),0)","v":0},{"$f":"IF($CM9>0,VLOOKUP($CM9,'العاملين '!$A$3:$AR$260,13),0)","v":0},{"$f":"IF($CM9>0,VLOOKUP($CM9,'العاملين '!$A$3:$AR$260,14),0)","v":0},{"$f":"IF($CM9>0,VLOOKUP($CM9,'العاملين '!$A$3:$AR$260,15),0)","v":0},{"$f":"IF($C9>0,SUM(I9:M9),0)","v":0},{"$f":"IF($CM9>0,VLOOKUP($CM9,'العاملين '!$A$3:$AR$260,16),0)","v":0},{"$f":"IF($CM9>0,VLOOKUP($CM9,'العاملين '!$A$3:$AR$260,17),0)","v":0},{"$f":"IF($CM9>0,VLOOKUP($CM9,'العاملين '!$A$3:$AR$260,18),0)","v":0},{"$f":"IF($CM9>0,VLOOKUP($CM9,'العاملين '!$A$3:$AR$260,27),0)","v":0},{"$f":"IF($CM9>0,VLOOKUP($CM9,'العاملين '!$A$3:$AR$260,19),0)","v":0},{"$f":"IF($CM9>0,VLOOKUP($CM9,'العاملين '!$A$3:$AR$260,20),0)","v":0},{"$f":"IF($CM9>0,VLOOKUP($CM9,'العاملين '!$A$3:$AR$260,21),0)","v":0},{"$f":"IF($CM9>0,VLOOKUP($CM9,'العاملين '!$A$3:$AR$260,22),0)","v":0},{"$f":"IF($CM9>0,VLOOKUP($CM9,'العاملين '!$A$3:$AR$260,23),0)","v":0},{"$f":"IF($CM9>0,VLOOKUP($CM9,'العاملين '!$A$3:$AR$260,24),0)","v":0},{"$f":"IF($CM9>0,VLOOKUP($CM9,'العاملين '!$A$3:$AR$260,25),0)","v":0},{"$f":"IF($CM9>0,VLOOKUP($CM9,'العاملين '!$A$3:$AR$260,26),0)","v":0},{"$f":"IF($CM9>0,VLOOKUP($CM9,'العاملين '!$A$3:$CR$260,65),0)","v":0},{"$f":"IF($CM9>0,VLOOKUP($CM9,'العاملين '!$A$3:$CR$260,66),0)","v":0},{"$f":"IF($CM9>0,VLOOKUP($CM9,'العاملين '!$A$3:$CR$260,67),0)","v":0},{"$f":"IF($CM9>0,VLOOKUP($CM9,'العاملين '!$A$3:$CR$260,68),0)","v":0},{"$f":"IF($CM9>0,VLOOKUP($CM9,'العاملين '!$A$3:$CR$260,69),0)","v":0},{"$f":"IF($CM9>0,VLOOKUP($CM9,'العاملين '!$A$3:$CR$260,70),0)","v":0},{"$f":"IF($CM9>0,VLOOKUP($CM9,'العاملين '!$A$3:$CR$260,71),0)","v":0},{"$f":"IF($CM9>0,VLOOKUP($CM9,'العاملين '!$A$3:$CR$260,72),0)","v":0},{"$f":"SUM(AI6:AI8)","v":0},0,0,0,0,null,0,null,null,{"$f":"IF($CM9>0,VLOOKUP($CM9,'العاملين '!$A$3:$AR$260,25),0)","v":0},{"$f":"SUM(N9:AR9)","v":0},{"$f":"IF(AS9>$AT$5,$AT$5,AS9)","v":0},{"$f":"AS9-AT9","v":0},{"$f":"ROUND(($AT9)*15%,2)","v":0},{"$f":"ROUND(($AT9)*1%,2)","v":0},{"$f":"ROUND(($AT9)*3%,2)","v":0},{"$f":"SUM(AV9:AX9)","v":0},{"$f":"IF($CM9>0,VLOOKUP($CM9,'العاملين '!$A$3:$CR$260,64),0)","v":0},{"$f":"IF($CM9>0,VLOOKUP($CM9,'العاملين '!$A$3:$CR$260,52),0)","v":0},{"$f":"SUM(AZ9,AY9,AS9,H9,BA9)","v":0},{"$f":"ROUND(IF(C9<=$CS$7,C9*0.15,$CS$7*0.15),2)","v":0},{"$f":"ROUND(IF(C9<=$CS$7,C9*0.01,$CS$7*0.01),2)","v":0},{"$f":"ROUND(IF(C9<=$CS$7,C9*0.02,$CS$7*0.02),2)","v":0},null,{"$f":"IF($C9>0,ROUND(($C9)*10%,2),\" \")","v":" "},{"$f":"ROUND(IF(C9<=$CS$7,C9*0.08,$CS$7*0.08),2)","v":0},{"$f":"ROUND(IF(C9<=$CS$7,C9*0.03,$CS$7*0.03),2)","v":0},{"$f":"ROUND(IF(C9<=$CS$7,C9*0.01,$CS$7*0.01),2)","v":0},0,0,{"$f":"ROUND(($AT9)*10%,2)","v":0},{"$f":"AX9","v":0},{"$f":"AW9","v":0},{"$f":"IF($CO9=1,ROUND(($C9)*7%,2),IF($CO9=2,VLOOKUP($CM9,'العاملين '!$A$3:$CT$260,53),0))","v":0},{"$f":"IF($CO9=1,0.5,IF($CO9=2,VLOOKUP($CM9,'العاملين '!$A$3:$CS$260,54),0))","v":0},{"$f":"IF($CO9=1,4.5,IF($CO9=2,VLOOKUP($CM9,'العاملين '!$A$3:$CT$260,55),0))","v":0},{"$f":"IF($CM9>0,VLOOKUP($CM9,'العاملين '!$A$3:$AR$260,37),0)","v":0},{"$f":"IF($CM9>0,VLOOKUP($CM9,'العاملين '!$A$3:$AR$260,38),0)","v":0},{"$f":"IF($CO9=1,0.2,IF($CO9=2,VLOOKUP($CM9,'العاملين '!$A$3:$CT$260,55),0))","v":0},{"$f":"IF($CO9=1,0.05,IF($CO9=2,VLOOKUP($CM9,'العاملين '!$A$3:$CT$260,55),0))","v":0},{"$f":"IF($CM9>0,VLOOKUP($CM9,'العاملين '!$A$3:$AR$260,39),0)","v":0},{"$f":"IF($CM9>0,VLOOKUP($CM9,'العاملين '!$A$3:$AR$260,40),0)","v":0},{"$f":"IF($CM9>0,VLOOKUP($CM9,'العاملين '!$A$3:$AR$260,41),0)","v":0},{"$f":"IF($CM9>0,VLOOKUP($CM9,'العاملين '!$A$3:$AR$260,42),0)","v":0},{"$f":"IF($CM9>0,VLOOKUP($CM9,'العاملين '!$A$3:$AR$260,43),0)","v":0},{"$f":"IF($CM9>0,VLOOKUP($CM9,'العاملين '!$A$3:$AR$260,44),0)","v":0},{"$f":"IF($CM9>0,VLOOKUP($CM9,'العاملين '!$A$3:$CR$260,45),0)","v":0},{"$f":"IF($CM9>0,VLOOKUP($CM9,'العاملين '!$A$3:$CR$260,46),0)","v":0},{"$f":"IF($CM9>0,VLOOKUP($CM9,'العاملين '!$A$3:$CR$260,47),0)","v":0},{"$f":"IF($CM9>0,VLOOKUP($CM9,'العاملين '!$A$3:$CR$260,48),0)","v":0},null,{"$f":"IF($CM9>0,VLOOKUP($CM9,'العاملين '!$A$3:$AR$260,41),0)","v":0},{"$f":"CQ9-CK9","v":0},{"$f":"SUM(BC9:CI9)","v":0},{"$f":"FLOOR(CQ9,0.05)","v":0},{"$f":"IF($CM9>0,VLOOKUP($CM9,'العاملين '!$A$3:$AR$260,2),0)","v":0},0,null,{"$f":"IF($CM9>0,VLOOKUP($CM9,'العاملين '!$A$3:$CR$260,3),0)","v":0},{"$f":"IF($CM9>0,VLOOKUP($CM9,'العاملين '!$A$3:$CR$260,49),0)","v":0},0]
[null,3,{"$f":"IF($CM10>0,VLOOKUP($CM10,'العاملين '!$A$3:$AR$260,10),0)","v":0},{"$f":"ROUND(IF(C10<=$CS$7,C10*0.15,$CS$7*0.15),2)","v":0},{"$f":"ROUND(IF(C10<$B$4,C10*$E$7,IF(C10>=$B$4,$E$7*$B$4)),2)","v":0},{"$f":"ROUND(IF(C10<=$CS$7,C10*0.02,$CS$7*0.02),2)","v":0},{"$f":"ROUND(IF(C10<=$CS$7,C10*0.03,$CS$7*0.03),2)","v":0},{"$f":"IF($C10>0,SUM(C10:G10),\" \")","v":" "},{"$f":"IF($CM10>0,VLOOKUP($CM10,'العاملين '!$A$3:$AR$260,11),0)","v":0},{"$f":"IF($CM10>0,VLOOKUP($CM10,'العاملين '!$A$3:$AR$260,12),0)","v":0},{"$f":"IF($CM10>0,VLOOKUP($CM10,'العاملين '!$A$3:$AR$260,13),0)","v":0},{"$f":"IF($CM10>0,VLOOKUP($CM10,'العاملين '!$A$3:$AR$260,14),0)","v":0},{"$f":"IF($CM10>0,VLOOKUP($CM10,'العاملين '!$A$3:$AR$260,15),0)","v":0},{"$f":"IF($C10>0,SUM(I10:M10),0)","v":0},{"$f":"IF($CM10>0,VLOOKUP($CM10,'العاملين '!$A$3:$AR$260,16),0)","v":0},{"$f":"IF($CM10>0,VLOOKUP($CM10,'العاملين '!$A$3:$AR$260,17),0)","v":0},{"$f":"IF($CM10>0,VLOOKUP($CM10,'العاملين '!$A$3:$AR$260,18),0)","v":0},{"$f":"IF($CM10>0,VLOOKUP($CM10,'العاملين '!$A$3:$AR$260,27),0)","v":0},{"$f":"IF($CM10>0,VLOOKUP($CM10,'العاملين '!$A$3:$AR$260,19),0)","v":0},{"$f":"IF($CM10>0,VLOOKUP($CM10,'العاملين '!$A$3:$AR$260,20),0)","v":0},{"$f":"IF($CM10>0,VLOOKUP($CM10,'العاملين '!$A$3:$AR$260,21),0)","v":0},{"$f":"IF($CM10>0,VLOOKUP($CM10,'العاملين '!$A$3:$AR$260,22),0)","v":0},{"$f":"IF($CM10>0,VLOOKUP($CM10,'العاملين '!$A$3:$AR$260,23),0)","v":0},{"$f":"IF($CM10>0,VLOOKUP($CM10,'العاملين '!$A$3:$AR$260,24),0)","v":0},{"$f":"IF($CM10>0,VLOOKUP($CM10,'العاملين '!$A$3:$AR$260,25),0)","v":0},{"$f":"IF($CM10>0,VLOOKUP($CM10,'العاملين '!$A$3:$AR$260,26),0)","v":0},{"$f":"IF($CM10>0,VLOOKUP($CM10,'العاملين '!$A$3:$CR$260,65),0)","v":0},{"$f":"IF($CM10>0,VLOOKUP($CM10,'العاملين '!$A$3:$CR$260,66),0)","v":0},{"$f":"IF($CM10>0,VLOOKUP($CM10,'العاملين '!$A$3:$CR$260,67),0)","v":0},{"$f":"IF($CM10>0,VLOOKUP($CM10,'العاملين '!$A$3:$CR$260,68),0)","v":0},{"$f":"IF($CM10>0,VLOOKUP($CM10,'العاملين '!$A$3:$CR$260,69),0)","v":0},{"$f":"IF($CM10>0,VLOOKUP($CM10,'العاملين '!$A$3:$CR$260,70),0)","v":0},{"$f":"IF($CM10>0,VLOOKUP($CM10,'العاملين '!$A$3:$CR$260,71),0)","v":0},{"$f":"IF($CM10>0,VLOOKUP($CM10,'العاملين '!$A$3:$CR$260,72),0)","v":0},{"$f":"SUM(AI7:AI9)","v":0},0,0,0,0,null,0,null,null,{"$f":"IF($CM10>0,VLOOKUP($CM10,'العاملين '!$A$3:$AR$260,25),0)","v":0},{"$f":"SUM(N10:AR10)","v":0},{"$f":"IF(AS10>$AT$5,$AT$5,AS10)","v":0},{"$f":"AS10-AT10","v":0},{"$f":"ROUND(($AT10)*15%,2)","v":0},{"$f":"ROUND(($AT10)*1%,2)","v":0},{"$f":"ROUND(($AT10)*3%,2)","v":0},{"$f":"SUM(AV10:AX10)","v":0},{"$f":"IF($CM10>0,VLOOKUP($CM10,'العاملين '!$A$3:$CR$260,64),0)","v":0},{"$f":"IF($CM10>0,VLOOKUP($CM10,'العاملين '!$A$3:$CR$260,52),0)","v":0},{"$f":"SUM(AZ10,AY10,AS10,H10,BA10)","v":0},{"$f":"ROUND(IF(C10<=$CS$7,C10*0.15,$CS$7*0.15),2)","v":0},{"$f":"ROUND(IF(C10<=$CS$7,C10*0.01,$CS$7*0.01),2)","v":0},{"$f":"ROUND(IF(C10<=$CS$7,C10*0.02,$CS$7*0.02),2)","v":0},null,{"$f":"IF($C10>0,ROUND(($C10)*10%,2),\" \")","v":" "},{"$f":"ROUND(IF(C10<=$CS$7,C10*0.08,$CS$7*0.08),2)","v":0},{"$f":"ROUND(IF(C10<=$CS$7,C10*0.03,$CS$7*0.03),2)","v":0},{"$f":"ROUND(IF(C10<=$CS$7,C10*0.01,$CS$7*0.01),2)","v":0},0,0,{"$f":"ROUND(($AT10)*10%,2)","v":0},{"$f":"AX10","v":0},{"$f":"AW10","v":0},{"$f":"IF($CO10=1,ROUND(($C10)*7%,2),IF($CO10=2,VLOOKUP($CM10,'العاملين '!$A$3:$CT$260,53),0))","v":0},{"$f":"IF($CO10=1,0.5,IF($CO10=2,VLOOKUP($CM10,'العاملين '!$A$3:$CS$260,54),0))","v":0},{"$f":"IF($CO10=1,4.5,IF($CO10=2,VLOOKUP($CM10,'العاملين '!$A$3:$CT$260,55),0))","v":0},{"$f":"IF($CM10>0,VLOOKUP($CM10,'العاملين '!$A$3:$AR$260,37),0)","v":0},{"$f":"IF($CM10>0,VLOOKUP($CM10,'العاملين '!$A$3:$AR$260,38),0)","v":0},{"$f":"IF($CO10=1,0.2,IF($CO10=2,VLOOKUP($CM10,'العاملين '!$A$3:$CT$260,55),0))","v":0},{"$f":"IF($CO10=1,0.05,IF($CO10=2,VLOOKUP($CM10,'العاملين '!$A$3:$CT$260,55),0))","v":0},{"$f":"IF($CM10>0,VLOOKUP($CM10,'العاملين '!$A$3:$AR$260,39),0)","v":0},{"$f":"IF($CM10>0,VLOOKUP($CM10,'العاملين '!$A$3:$AR$260,40),0)","v":0},{"$f":"IF($CM10>0,VLOOKUP($CM10,'العاملين '!$A$3:$AR$260,41),0)","v":0},{"$f":"IF($CM10>0,VLOOKUP($CM10,'العاملين '!$A$3:$AR$260,42),0)","v":0},{"$f":"IF($CM10>0,VLOOKUP($CM10,'العاملين '!$A$3:$AR$260,43),0)","v":0},{"$f":"IF($CM10>0,VLOOKUP($CM10,'العاملين '!$A$3:$AR$260,44),0)","v":0},{"$f":"IF($CM10>0,VLOOKUP($CM10,'العاملين '!$A$3:$CR$260,45),0)","v":0},{"$f":"IF($CM10>0,VLOOKUP($CM10,'العاملين '!$A$3:$CR$260,46),0)","v":0},{"$f":"IF($CM10>0,VLOOKUP($CM10,'العاملين '!$A$3:$CR$260,47),0)","v":0},{"$f":"IF($CM10>0,VLOOKUP($CM10,'العاملين '!$A$3:$CR$260,48),0)","v":0},null,{"$f":"IF($CM10>0,VLOOKUP($CM10,'العاملين '!$A$3:$AR$260,41),0)","v":0},{"$f":"CQ10-CK10","v":0},{"$f":"SUM(BC10:CI10)","v":0},{"$f":"FLOOR(CQ10,0.05)","v":0},{"$f":"IF($CM10>0,VLOOKUP($CM10,'العاملين '!$A$3:$AR$260,2),0)","v":0},0,null,{"$f":"IF($CM10>0,VLOOKUP($CM10,'العاملين '!$A$3:$CR$260,3),0)","v":0},{"$f":"IF($CM10>0,VLOOKUP($CM10,'العاملين '!$A$3:$CR$260,49),0)","v":0},0]
[null,"الجملة",{"$f":"SUM(C8:C10)","v":1000},{"$f":"SUM(D8:D10)","v":150},10,20,30,1210,0,62.23,62.73,66.69,0,191.64999999999998,4,6,350,0,0,0,0,0,0,0,0,0,333.49,333.49,333.49,166,500,0,0,0,0,0,0,0,0,null,0,null,null,0,2218.12,2218.12,0,332.72,22.18,66.540000000000006,421.44000000000005,10,0,3859.56,150,10,20,0,100,80,30,10,332.72,22.18,221.81,66.540000000000006,22.18,70,0.5,4.5,{"$f":"IF($CM11>0,VLOOKUP($CM11,'العاملين '!$A$3:$AR$260,37),0)","v":0},{"$f":"SUM(BT8:BT10)","v":1},0.2,0.05,7.25,15.45,0,0,0,0,0,0,{"$f":"SUM(CE8:CE10)","v":0},0,0,0,2.9999999999745341E-2,1168.4099999999999,2691.15,"الجملة",0,null,{"$f":"IF($CM11>0,VLOOKUP($CM11,'العاملين '!$A$3:$CR$260,3),0)","v":0},{"$f":"IF($CM11>0,VLOOKUP($CM11,'العاملين '!$A$3:$CR$260,49),0)","v":0},2695.18]
[null,"استمارة9",21092.500000000011,3163.9999999999991,210.99999999999997,421.75000000000006,632.74999999999977,25522.000000000004,0,1158.7500000000002,1171.25,1260.25,0,3590.2500000000023,100,50,0,0,0,0,0,0,0,0,0,0,6301.2500000000027,6301.2500000000027,9451.875,3150,6300,0,0,0,0,0,0,0,0,null,0,null,null,0,35244.625000000007,35244.625000000007,0,5286.7499999999991,352.50000000000006,1057.2499999999998,6696.4999999999982,250,0,67713.125000000015,3163.9999999999991,210.99999999999997,421.75000000000006,0,2109.2499999999986,1687.5,632.74999999999977,210.99999999999997,5286.7499999999991,352.50000000000006,3524.5,1057.2499999999998,352.50000000000006,1476.4999999999991,12.5,112.5,{"$f":"IF($CM12>0,VLOOKUP($CM12,'العاملين '!$A$3:$AR$260,37),0)","v":0},25,5.0000000000000018,1.2500000000000004,550.24999999999989,334.99999999999994,0,0,0,0,0,0,0,0,0,0,0.62499999999658939,21529.374999999989,46183.749999999978,"جملة كشف 9",0,null,{"$f":"IF($CM12>0,VLOOKUP($CM12,'العاملين '!$A$3:$CR$260,3),0)","v":0},{"$f":"IF($CM12>0,VLOOKUP($CM12,'العاملين '!$A$3:$CR$260,49),0)","v":0},46184.375000000015]
[null,"استمارة8",21397.249999999993,3209.5000000000018,214.00000000000003,428.00000000000006,641.99999999999977,25890.750000000004,0,1177.9999999999995,1190.4999999999995,1280.2500000000005,0,3648.7499999999986,100,50,0,0,0,0,0,0,0,0,0,0,6402.2500000000018,6402.2500000000018,9603.3750000000018,3200,6400,0,0,0,0,0,0,0,0,null,0,null,null,0,35806.624999999993,35806.624999999993,0,5371.0000000000018,357.99999999999989,1074.2500000000005,6803.2500000000018,250,0,68750.625000000015,3209.5000000000018,214.00000000000003,428.00000000000006,0,2139.7499999999995,1711.7500000000005,641.99999999999977,214.00000000000003,5371.0000000000018,357.99999999999989,3580.75,1074.2500000000005,357.99999999999989,1497.7500000000002,12.5,112.5,{"$f":"IF($CM13>0,VLOOKUP($CM13,'العاملين '!$A$3:$AR$260,37),0)","v":0},25,5.0000000000000018,1.2500000000000004,556.74999999999989,348.74999999999983,0,0,0,0,0,0,0,0,0,0,0.12499999998567546,21860.624999999985,46889.999999999978,"جملة كشف 8",0,null,{"$f":"IF($CM13>0,VLOOKUP($CM13,'العاملين '!$A$3:$CR$260,3),0)","v":0},{"$f":"IF($CM13>0,VLOOKUP($CM13,'العاملين '!$A$3:$CR$260,49),0)","v":0},46890.125000000015]
[null,"استمارة7",21397.249999999993,3209.5000000000018,214.00000000000003,428.00000000000006,641.99999999999977,25890.750000000004,0,1177.9999999999995,1190.4999999999995,1280.2500000000005,0,3648.7499999999986,100,50,0,0,0,0,0,0,0,0,0,0,6402.2500000000018,6402.2500000000018,9603.3750000000018,3200,6400,0,0,0,0,0,0,0,0,null,0,null,null,0,35806.624999999993,35806.624999999993,0,5371.0000000000018,357.99999999999989,1074.2500000000005,6803.2500000000018,250,0,68750.625000000015,3209.5000000000018,214.00000000000003,428.00000000000006,0,2139.7499999999995,1711.7500000000005,641.99999999999977,214.00000000000003,5371.0000000000018,357.99999999999989,3580.75,1074.2500000000005,357.99999999999989,1497.7500000000002,12.5,112.5,{"$f":"IF($CM14>0,VLOOKUP($CM14,'العاملين '!$A$3:$AR$260,37),0)","v":0},25,5.0000000000000018,1.2500000000000004,556.74999999999989,348.74999999999983,0,0,0,0,0,0,0,0,0,0,0.12499999998567546,21860.624999999985,46889.999999999978,"جملة كشف 7",0,null,{"$f":"IF($CM14>0,VLOOKUP($CM14,'العاملين '!$A$3:$CR$260,3),0)","v":0},{"$f":"IF($CM14>0,VLOOKUP($CM14,'العاملين '!$A$3:$CR$260,49),0)","v":0},46890.125000000015]
[null,"استمارة6",23161.250000000011,3474.2499999999982,231.49999999999991,463.24999999999977,694.74999999999989,28025,0,1302,1314.5,1398.5000000000007,0,4014.9999999999986,100,50,0,0,0,0,0,0,0,0,0,0,6992.4999999999973,6992.4999999999973,10488.749999999998,3475,6975,0,0,0,0,0,0,0,0,null,0,null,null,0,39088.75,39088.75,0,5863.25,390.99999999999977,1172.7499999999998,7426.9999999999991,250,0,74790.75,3474.2499999999982,231.49999999999991,463.24999999999977,0,2316.2500000000009,1852.9999999999991,694.74999999999989,231.49999999999991,5863.25,390.99999999999977,3909.0000000000023,1172.7499999999998,390.99999999999977,1621.2499999999993,12.5,112.5,{"$f":"IF($CM15>0,VLOOKUP($CM15,'العاملين '!$A$3:$AR$260,37),0)","v":0},25,5.0000000000000018,1.2500000000000004,590.75,363.75000000000017,0,0,0,0,0,0,0,0,0,0,0.99999999999909051,23724.499999999993,51066.250000000022,"جملة كشف 6",0,null,{"$f":"IF($CM15>0,VLOOKUP($CM15,'العاملين '!$A$3:$CR$260,3),0)","v":0},{"$f":"IF($CM15>0,VLOOKUP($CM15,'العاملين '!$A$3:$CR$260,49),0)","v":0},51067.25]
[null,"استمارة5",22282.999999999996,3342.4999999999986,222.74999999999994,445.74999999999972,668.50000000000011,26962.5,0,1247.2500000000002,1259.7500000000002,1340.2499999999995,0,3847.2499999999977,100,150,0,0,0,0,0,0,0,0,0,0,6701.5000000000036,6701.5000000000036,10052.250000000002,3350,6700,0,0,0,0,0,0,0,0,null,0,null,null,0,37602.499999999985,37602.499999999985,0,5640.4999999999982,376.00000000000006,1127.9999999999998,7144.4999999999955,250,0,71959.499999999985,3342.4999999999986,222.74999999999994,445.74999999999972,0,2228.2500000000014,1782.7499999999991,668.50000000000011,222.74999999999994,5640.4999999999982,376.00000000000006,3760.2499999999986,1127.9999999999998,376.00000000000006,1559.7500000000007,12.5,112.5,{"$f":"IF($CM16>0,VLOOKUP($CM16,'العاملين '!$A$3:$AR$260,37),0)","v":0},25,5.0000000000000018,1.2500000000000004,493.00000000000034,358.75000000000011,0,0,0,0,0,0,0,0,0,0,0.24999999999977263,22761.999999999993,49197.500000000022,"جملة كشف 5",0,null,{"$f":"IF($CM16>0,VLOOKUP($CM16,'العاملين '!$A$3:$CR$260,3),0)","v":0},{"$f":"IF($CM16>0,VLOOKUP($CM16,'العاملين '!$A$3:$CR$260,49),0)","v":0},49197.749999999985]
[null,"استمارة4",21355.249999999989,3203.2500000000018,213.49999999999986,426.99999999999972,640.75,25839.750000000004,0,1175.25,1187.75,1277.5,0,3640.4999999999982,100,150,0,0,0,0,0,0,0,0,0,0,6387.7500000000036,6387.7500000000036,9581.625,3175,6375,0,0,0,0,0,0,0,0,null,0,null,null,0,35797.624999999993,35797.624999999993,0,5369.75,357.99999999999989,1074.0000000000002,6801.7499999999982,250,0,68689.125000000015,3203.2500000000018,213.49999999999986,426.99999999999972,0,2135.5000000000005,1708.4999999999995,640.75,213.49999999999986,5369.75,357.99999999999989,3579.7500000000009,1074.0000000000002,357.99999999999989,1494.7499999999995,12.5,112.5,{"$f":"IF($CM17>0,VLOOKUP($CM17,'العاملين '!$A$3:$AR$260,37),0)","v":0},25,5.0000000000000018,1.2500000000000004,556.49999999999989,343.75,0,0,0,0,0,0,0,0,0,0,0.12500000000272848,21832.875,46856.25,"جملة كشف 4",0,null,{"$f":"IF($CM17>0,VLOOKUP($CM17,'العاملين '!$A$3:$CR$260,3),0)","v":0},{"$f":"IF($CM17>0,VLOOKUP($CM17,'العاملين '!$A$3:$CR$260,49),0)","v":0},46856.375000000015]
[null,"استمارة3",23465.5,3519.7499999999995,234.74999999999989,469.24999999999983,704,28393.249999999996,0,1319.7499999999995,1332.2499999999995,1417.2500000000007,0,4069.2499999999995,100,150,0,0,0,0,0,0,0,0,0,0,7081.5000000000036,7081.5000000000036,7081.5000000000036,3525,10600,0,0,0,0,0,0,0,0,null,0,null,null,0,39688.75,39688.75,0,5953.2500000000018,396.99999999999994,1190.7500000000005,7541.0000000000027,250,0,75872.999999999971,3519.7499999999995,234.74999999999989,469.24999999999983,0,2346.4999999999995,1877.2499999999993,704,234.74999999999989,5953.2500000000018,396.99999999999994,3969.0000000000027,1190.7500000000005,396.99999999999994,1642.5000000000007,12.5,112.5,{"$f":"IF($CM18>0,VLOOKUP($CM18,'العاملين '!$A$3:$AR$260,37),0)","v":0},25,5.0000000000000018,1.2500000000000004,668.25000000000023,373.74999999999983,0,0,0,0,0,0,0,0,0,0,0.24999999999408828,24134.249999999982,51738.750000000022,"جملة كشف 3",0,null,{"$f":"IF($CM18>0,VLOOKUP($CM18,'العاملين '!$A$3:$CR$260,3),0)","v":0},{"$f":"IF($CM18>0,VLOOKUP($CM18,'العاملين '!$A$3:$CR$260,49),0)","v":0},51738.999999999971]
[null,"استمارة2",37500,5137.5,342.49999999999983,684.99999999999966,1027.5000000000002,44692.499999999993,0,1210.7499999999998,1223.2499999999998,1301.2499999999993,0,3735.2499999999986,100,50,0,0,0,0,0,0,0,0,0,0,8337.2499999999964,8337.2499999999964,16674.499999999993,4150,4150,0,0,0,0,0,0,0,0,null,0,null,null,0,45534.250000000007,45534.250000000007,0,6830.25,455.24999999999989,1366.0000000000005,8651.4999999999927,250,0,99128.250000000029,5137.5,342.49999999999983,684.99999999999966,0,3750,2739.9999999999986,1027.5000000000002,342.49999999999983,6830.25,455.24999999999989,4553.4999999999991,1366.0000000000005,455.24999999999989,2625,12.5,112.5,{"$f":"IF($CM19>0,VLOOKUP($CM19,'العاملين '!$A$3:$AR$260,37),0)","v":0},25,5.0000000000000018,1.2500000000000004,603.49999999999977,337.5,0,0,0,0,0,0,0,0,0,0,0.74999999999363354,31408.250000000015,67720.000000000029,"جملة كشف 2",0,null,{"$f":"IF($CM19>0,VLOOKUP($CM19,'العاملين '!$A$3:$CR$260,3),0)","v":0},{"$f":"IF($CM19>0,VLOOKUP($CM19,'العاملين '!$A$3:$CR$260,49),0)","v":0},67720.750000000029]
[null,"استمارة1",16315.000000000005,2447.2500000000005,163.25,326.25000000000017,489.49999999999972,19741.25,0,813.49999999999977,825.99999999999977,879.75000000000045,0,2519.25,100,100,0,0,0,0,0,0,0,0,0,0,4399.4999999999991,4399.4999999999991,6599.2500000000045,2175,4375,0,0,0,0,0,0,0,0,null,0,null,null,0,24667.500000000011,24667.500000000011,0,3700.2500000000018,246.75000000000006,740.00000000000034,4686.9999999999982,250,0,49345.750000000029,2447.2500000000005,163.25,326.25000000000017,0,1631.5,1305.2500000000005,489.49999999999972,163.25,3700.2500000000018,246.75000000000006,2466.7500000000009,740.00000000000034,246.75000000000006,1141.9999999999995,12.5,112.5,{"$f":"IF($CM20>0,VLOOKUP($CM20,'العاملين '!$A$3:$AR$260,37),0)","v":0},25,5.0000000000000018,1.2500000000000004,266.25000000000006,278.75000000000006,0,0,0,0,0,0,0,0,0,0,0.74999999999931788,15770.749999999998,33575,"جملة كشف 1",0,null,{"$f":"IF($CM20>0,VLOOKUP($CM20,'العاملين '!$A$3:$CR$260,3),0)","v":0},{"$f":"IF($CM20>0,VLOOKUP($CM20,'العاملين '!$A$3:$CR$260,49),0)","v":0},33575.750000000029]
[null,"الاداريون",20718.09,3107.7200000000003,207.21999999999997,414.39,621.6099999999999,4350.9400000000005,null,null,null,null,null,null,null,null,null,null,null,null,null,null,null,null,null,null,null,null,null,null,null,null,null,null,63539.709999999977,13978.939999999999,1293.83,null,null,null,null,null,null,null,58094.39,58094.39,0,8714.0999999999985,580.88999999999987,1742.81,11037.799999999997,null,null,94201.22,3107.7200000000003,207.21999999999997,414.39,null,2071.8599999999997,1657.4699999999998,621.6099999999999,207.21999999999997,8714.0999999999985,580.88999999999987,5809.5099999999984,1742.81,580.88999999999987,640.54130000000009,9.5,85.5,{"$f":"IF($CM21>0,VLOOKUP($CM21,'العاملين '!$A$3:$AR$260,37),0)","v":0},14,0.95000000000000029,3.8000000000000012,1758.6699999999998,334,null,null,0,null,null,null,null,0,0,null,1.3186999999911677,28787.96999999999,65413.25,"جملة الاداريين",0,null,{"$f":"IF($CM21>0,VLOOKUP($CM21,'العاملين '!$A$3:$CR$260,3),0)","v":0},{"$f":"IF($CM21>0,VLOOKUP($CM21,'العاملين '!$A$3:$CR$260,49),0)","v":0},65638.568700000003]
[null,"الجملة",{"$f":"SUM(C11:C21)","v":229685.09},33965.22,2264.4699999999989,4528.6399999999994,6793.3599999999988,256518.69,0,10645.48,10758.48,11501.94,0,32905.899999999994,904,806,350,0,0,0,0,0,0,0,0,0,59339.240000000005,59339.240000000005,89469.989999999991,29566,58775,0,0,0,{"$f":"SUM(AI11:AI21)","v":63539.709999999977},13978.939999999999,1293.83,0,0,null,0,null,null,0,389549.76,389549.76,0,58432.82,3895.5699999999993,11686.6,74014.989999999991,2260,0,743061.53,33965.22,2264.4699999999989,4528.6399999999994,0,22968.61,18115.22,6793.3599999999988,2264.4699999999989,58432.82,3895.5699999999993,38955.570000000007,11686.6,3895.5699999999993,15267.791299999999,122.5,{"$f":"SUM(BR11:BR21)","v":1102.5},0,240,46.150000000000013,15.100000000000003,6607.92,3438.2,0,0,0,0,0,0,0,0,0,0,5.3486999999474847,234839.62999999992,508221.9,null,null,null,null,null,508455.2487]
[]
[null,null,null,null,"مسئول المرتبات/",null,null,{"$f":"ورقة1!C6","v":"محمد"},null,null,null,null,null,null,null,null,null,null,null,null,null,null,null,null,null,null,"يعتمد مدير المدرسة/",null,null,{"$f":"ورقة1!C4","v":"محمد"},null,null,null,null,null,null,null,null,null,null,null,null,null,null,null,null,null,null,null,null,null,null,null,null,null,null,null,null,null,null,null,null,null,null,null,null,null,null,null,null,null,null,null,null,null,null,null,null,null,null,null,null,null,null,null,null,{"$f":"AA24","v":"يعتمد مدير المدرسة/"},null,{"$f":"AD24","v":"محمد"}]